Local authority department which incurred the expenditure,Service Division,Cost Centre,Summary of the Purpose of Expenditure,Expense Type,Expense Code,Detailed Expense Type,Date of Transaction,Transaction Number,Beneficiary,Merchant Category Number,Merchant Category,Gross Amount,VAT,Net Amount
Regeneration and Local Services,Culture Sport and Tourism,030708,VCD - Marketing & Information,Supplies and Services,384199,Miscellaneous Expenses,01-Oct-2019,000008831744895,FACEBK VHAGANEVC2,7311,Other hired and contracted services,191.45,0.00,191.45
Regeneration and Local Services,Environmental Services,031200,North Pennines Core,Transport,235057,Public Transport,01-Oct-2019,000008831745233,RYANAIR,3246,Staff travelling,0.61,0.00,0.61
Children and Young Peoples Services,Head of Education and Skills,071801,Selby Cottage Childcare Centre,Supplies and Services,324117,Provisions E324,01-Oct-2019,000008835816211,JR HOLLAND FOODSERVICE,5499,Catering costs - provisions,444.68,0.00,444.68
Children and Young Peoples Services,Head of Education and Skills,071801,Selby Cottage Childcare Centre,Supplies and Services,328041,Clothing uniforms and laundry E328,01-Oct-2019,000008835816217,THE WORKS,5310,Clothing uniforms and laundry,100.40,0.00,100.40
Children and Young Peoples Services,Head of Education and Skills,071801,Selby Cottage Childcare Centre,Supplies and Services,324117,Provisions E324,01-Oct-2019,000008835816223,WM MORRISONS STORE,5411,Catering costs - provisions,30.00,0.00,30.00
Children and Young Peoples Services,Head of Education and Skills,054640,Durham Learning Resources 054640,Supplies and Services,304245,Equipment and Materials,01-Oct-2019,000008835816259,AMZNMktplace,5999,Materials,20.70,3.45,17.25
Children and Young Peoples Services,Head of Education and Skills,054640,Durham Learning Resources 054640,Supplies and Services,304245,Equipment and Materials,01-Oct-2019,000008835816259 - 1,AMZNMktplace,5999,Materials,0.15,,0.15
Resources BK0010,Digital and Customer Services,065487,ICT Telephony Recharges,Supplies and Services,344033,Telephones,01-Oct-2019,000008835816277,AMZNMktplace,5999,Telephones general-all costs,256.05,42.75,213.30
Children and Young Peoples Services,Head of Childrens Social Care,085501,Child Care Cases Legal Expenses,Supplies and Services,304259,Equipment and Materials,01-Oct-2019,000008835816373,GEN REGISTER OFFICE,9399,Equipment-purchase and rental,38.00,0.00,38.00
Children and Young Peoples Services,Head of Childrens Social Care,085501,Child Care Cases Legal Expenses,Supplies and Services,304259,Equipment and Materials,01-Oct-2019,000008835816381,DARLINGTON BC INTERNET,9399,Equipment-purchase and rental,11.00,0.00,11.00
Regeneration and Local Services,Development and Housing,031500,Housing Solutions - Core Team,Supplies and Services,352001,Conference Expenses,01-Oct-2019,000008835816395,AYCLIFFE BIZ,7011,Conferencesseminars fees etc,70.00,11.67,58.33
Children and Young Peoples Services,Head of Education and Skills,075021,Youth Employment Initiative,Supplies and Services,384199,Miscellaneous Expenses,01-Oct-2019,000008835816409,DARLINGTON BC INTERNET,9399,Other hired and contracted services,11.00,0.00,11.00
Regeneration and Local Services,Environmental Services,010383,C&G - South Street Cleansing,Supplies and Services,304999,Equipment and Materials,01-Oct-2019,000008835816447,Snowballs,5251,Misc equipment tools and materials,26.75,0.00,26.75
Regeneration and Local Services,Culture Sport and Tourism,030708,VCD - Marketing & Information,Supplies and Services,384199,Miscellaneous Expenses,01-Oct-2019,000008835816473,LATER.COM PREMIUM,5734,Other hired and contracted services,138.38,0.00,138.38
Regeneration and Local Services,Culture Sport and Tourism,011263,Louisa Centre 011263,Supplies and Services,324117,Provisions E324,01-Oct-2019,000008835816517,JR HOLLAND FOODSERVICE,5499,Catering costs - provisions,-13.68,0.00,-13.68
Children and Young Peoples Services,Head of Early Help Inclusion & Vulnerable Children.,088104,BA/BC/Crook 0-19 Targeted Family Support,Supplies and Services,338045,Services,01-Oct-2019,000008835816625,SUNDERLAND CC,9399,Legal expenses 338045,11.00,0.00,11.00
Children and Young Peoples Services,Head of Early Help Inclusion & Vulnerable Children.,088105,BA/BC/Crook 0-19 Community Family Hub,Supplies and Services,304259,Equipment and Materials,01-Oct-2019,000008835816633,WWW.RELAXKIDS.COM,8220,Equipment-purchase and rental,767.00,0.00,767.00
Regeneration and Local Services,Corporate Property and Land,021242,Catering - County Hall,Supplies and Services,324117,Provisions E324,01-Oct-2019,000008835816653,JR HOLLAND FOODSERVICE,5499,Catering costs - provisions,221.24,0.00,221.24
Regeneration and Local Services,Corporate Property and Land,021242,Catering - County Hall,Supplies and Services,324117,Provisions E324,01-Oct-2019,000008835816657,JR HOLLAND FOODSERVICE,5499,Catering costs - provisions,31.51,0.00,31.51
Regeneration and Local Services,Corporate Property and Land,021242,Catering - County Hall,Supplies and Services,324117,Provisions E324,01-Oct-2019,000008835816659,JR HOLLAND FOODSERVICE,5499,Catering costs - provisions,239.56,0.00,239.56
Regeneration and Local Services,Corporate Property and Land,021242,Catering - County Hall,Supplies and Services,324117,Provisions E324,01-Oct-2019,000008835816663,WWW.ADELIEFOODS.CO.UK,5499,Catering costs - provisions,49.44,0.00,49.44
Regeneration and Local Services,Corporate Property and Land,021242,Catering - County Hall,Supplies and Services,324117,Provisions E324,01-Oct-2019,000008835816665,WWW.ADELIEFOODS.CO.UK,5499,Catering costs - provisions,49.44,0.00,49.44
Regeneration and Local Services,Corporate Property and Land,021242,Catering - County Hall,Supplies and Services,324117,Provisions E324,01-Oct-2019,000008835816671,WWW.ADELIEFOODS.CO.UK,5499,Catering costs - provisions,49.44,0.00,49.44
Regeneration and Local Services,Corporate Property and Land,021242,Catering - County Hall,Supplies and Services,324117,Provisions E324,01-Oct-2019,000008835816679,WWW.ADELIEFOODS.CO.UK,5499,Catering costs - provisions,49.34,0.00,49.34
Regeneration and Local Services,Corporate Property and Land,021242,Catering - County Hall,Supplies and Services,324117,Provisions E324,01-Oct-2019,000008835816681,WWW.ADELIEFOODS.CO.UK,5499,Catering costs - provisions,190.25,0.00,190.25
Regeneration and Local Services,Corporate Property and Land,021242,Catering - County Hall,Supplies and Services,324117,Provisions E324,01-Oct-2019,000008835816685,WWW.ADELIEFOODS.CO.UK,5499,Catering costs - provisions,64.79,0.00,64.79
Regeneration and Local Services,Corporate Property and Land,021242,Catering - County Hall,Supplies and Services,324117,Provisions E324,01-Oct-2019,000008835816687,WWW.ADELIEFOODS.CO.UK,5499,Catering costs - provisions,79.38,0.00,79.38
Regeneration and Local Services,Corporate Property and Land,021242,Catering - County Hall,Supplies and Services,324117,Provisions E324,01-Oct-2019,000008835816691,WWW.ADELIEFOODS.CO.UK,5499,Catering costs - provisions,-17.12,0.00,-17.12
Regeneration and Local Services,Corporate Property and Land,021242,Catering - County Hall,Supplies and Services,324117,Provisions E324,01-Oct-2019,000008835816695,WWW.ADELIEFOODS.CO.UK,5499,Catering costs - provisions,-3.86,0.00,-3.86
Resources BK0010,Digital and Customer Services,070204,School Services - Systems,Supplies and Services,372009,Subscriptions E372,01-Oct-2019,000008835816709,WEB NETWORKSOLUTIONS,5968,Subscriptions 372009,9.82,0.00,9.82
Regeneration and Local Services,Development and Housing,031576,B& B - Temp Accom,Supplies and Services,352001,Conference Expenses,01-Oct-2019,000008835816731,GRAINGER HOTEL,7011,Conferencesseminars fees etc,100.00,16.67,83.33
Regeneration and Local Services,Development and Housing,031576,B& B - Temp Accom,Supplies and Services,352001,Conference Expenses,01-Oct-2019,000008835816733,HAYAT HOTEL,7011,Conferencesseminars fees etc,89.00,0.00,89.00
Children and Young Peoples Services,Head of Early Help Inclusion & Vulnerable Children.,073998,TTF-Co-ordinator Grant,Supplies and Services,308011,Furniture,01-Oct-2019,000008835816767,J DODDS CARPETS LTD,5713,Furniture repair and replacement,82.02,13.67,68.35
Children and Young Peoples Services,Head of Early Help Inclusion & Vulnerable Children.,073998,TTF-Co-ordinator Grant,Supplies and Services,308011,Furniture,01-Oct-2019,000008835816767 - 1,J DODDS CARPETS LTD,5713,Furniture repair and replacement,49.98,,49.98
Regeneration and Local Services,Development and Housing,031576,B& B - Temp Accom,Supplies and Services,364320,Grants to Voluntary Organisations,01-Oct-2019,000008835816799,NEWCASTLE JEMSOND HOTE,7011,Accommodation assistance,52.48,0.00,52.48
Children and Young Peoples Services,Head of Education and Skills,071732,Dean Bank Childcare,Supplies and Services,324117,Provisions E324,01-Oct-2019,000008835816889,CO-OP GROUP 010503,5411,Catering costs - provisions,4.41,0.00,4.41
Children and Young Peoples Services,Head of Early Help Inclusion & Vulnerable Children.,085956,Lumley,Supplies and Services,328041,Clothing uniforms and laundry E328,01-Oct-2019,000008835817033,PRETTYLITTLETHING.COM,5691,Clothing uniforms and laundry,21.00,0.00,21.00
Regeneration and Local Services,Culture Sport and Tourism,054813,Gala Theatre - Technical,Supplies and Services,324117,Provisions E324,01-Oct-2019,000008835817049,CO-OP GROUP FOOD,5411,Catering costs - provisions,8.34,0.00,8.34
Regeneration and Local Services,Environmental Services,011060,C&G - Hardwick Park Catering,Supplies and Services,324117,Provisions E324,01-Oct-2019,000008835817089,JR HOLLAND FOODSERVICE,5499,Catering costs - provisions,36.22,0.00,36.22
Regeneration and Local Services,Culture Sport and Tourism,054815,Gala Theatre Stage School,Supplies and Services,304403,Equipment and Materials,01-Oct-2019,000008835817127,AMZNMktplace,5999,Other consumables,22.10,0.00,22.10
Regeneration and Local Services,Culture Sport and Tourism,054815,Gala Theatre Stage School,Supplies and Services,324117,Provisions E324,01-Oct-2019,000008835817129,TESCO STORES 2371,5411,Catering costs - provisions,24.00,0.00,24.00
Regeneration and Local Services,Corporate Property and Land,021234,Catering - Locomotion,Supplies and Services,324117,Provisions E324,01-Oct-2019,000008835817143,WWW.ADELIEFOODS.CO.UK,5499,Catering costs - provisions,89.64,0.00,89.64
Regeneration and Local Services,Corporate Property and Land,021234,Catering - Locomotion,Supplies and Services,324117,Provisions E324,01-Oct-2019,000008835817145,WWW.ADELIEFOODS.CO.UK,5499,Catering costs - provisions,104.86,0.00,104.86
Regeneration and Local Services,Corporate Property and Land,021234,Catering - Locomotion,Supplies and Services,324117,Provisions E324,01-Oct-2019,000008835817147,WWW.ADELIEFOODS.CO.UK,5499,Catering costs - provisions,54.31,0.00,54.31
Regeneration and Local Services,Corporate Property and Land,021234,Catering - Locomotion,Supplies and Services,324117,Provisions E324,01-Oct-2019,000008835817149,WWW.ADELIEFOODS.CO.UK,5499,Catering costs - provisions,74.19,0.00,74.19
Regeneration and Local Services,Corporate Property and Land,021234,Catering - Locomotion,Supplies and Services,324117,Provisions E324,01-Oct-2019,000008835817151,WWW.ADELIEFOODS.CO.UK,5499,Catering costs - provisions,224.50,0.00,224.50
Regeneration and Local Services,Corporate Property and Land,021234,Catering - Locomotion,Supplies and Services,324117,Provisions E324,01-Oct-2019,000008835817157,WWW.ADELIEFOODS.CO.UK,5499,Catering costs - provisions,122.12,0.00,122.12
Regeneration and Local Services,Corporate Property and Land,021234,Catering - Locomotion,Supplies and Services,324117,Provisions E324,01-Oct-2019,000008835817159,WWW.ADELIEFOODS.CO.UK,5499,Catering costs - provisions,127.63,0.00,127.63
Regeneration and Local Services,Corporate Property and Land,021234,Catering - Locomotion,Supplies and Services,324117,Provisions E324,01-Oct-2019,000008835817161,WWW.ADELIEFOODS.CO.UK,5499,Catering costs - provisions,98.12,0.00,98.12
Regeneration and Local Services,Corporate Property and Land,010525,Catering - Green Lane,Supplies and Services,324117,Provisions E324,01-Oct-2019,000008835817207,JR HOLLAND FOODSERVICE,5499,Catering costs - provisions,99.49,0.00,99.49
Regeneration and Local Services,Corporate Property and Land,010525,Catering - Green Lane,Supplies and Services,324117,Provisions E324,01-Oct-2019,000008835817215,WWW.ADELIEFOODS.CO.UK,5499,Catering costs - provisions,59.40,0.00,59.40
Regeneration and Local Services,Corporate Property and Land,010525,Catering - Green Lane,Supplies and Services,324117,Provisions E324,01-Oct-2019,000008835817219,WWW.ADELIEFOODS.CO.UK,5499,Catering costs - provisions,52.16,0.00,52.16
Regeneration and Local Services,Corporate Property and Land,010525,Catering - Green Lane,Supplies and Services,324117,Provisions E324,01-Oct-2019,000008835817221,JR HOLLAND FOODSERVICE,5499,Catering costs - provisions,-0.57,0.00,-0.57
Regeneration and Local Services,Development and Housing,030771,Durham Advance Flexible Fund,Supplies and Services,304259,Equipment and Materials,01-Oct-2019,000008835817231,DURHAM TEA ROOM,9399,Equipment-purchase and rental,2.50,0.00,2.50
Children and Young Peoples Services,Head of Childrens Social Care,085551,Short Break Services-Park Hse Sher,Supplies and Services,324117,Provisions E324,01-Oct-2019,000008835817253,JR HOLLAND FOODSERVICE,5499,Catering costs - provisions,176.14,0.00,176.14
Regeneration and Local Services,Technical Services CM0300,025120,Strategic Highways - Asset Management,Supplies and Services,304221,Equipment and Materials,01-Oct-2019,000008835817259,B & Q 1237,5200,Direct materials,66.00,0.00,66.00
Regeneration and Local Services,Development and Housing,030771,Durham Advance Flexible Fund,Supplies and Services,328041,Clothing uniforms and laundry E328,01-Oct-2019,000008835817369,ASDA GEORGE COM LEEDS,5411,Clothing uniforms and laundry,41.95,0.00,41.95
Regeneration and Local Services,Development and Housing,030771,Durham Advance Flexible Fund,Supplies and Services,384700,Miscellaneous Expenses,01-Oct-2019,000008835817377,ASDA STORES LTD,5411,Miscellaneous grants,5.40,0.00,5.40
Regeneration and Local Services,Environmental Services,010367,C&G - South Grounds Maintenance,Supplies and Services,384999,Miscellaneous Expenses,01-Oct-2019,000008835817449,GUSTHARTS.COM,5046,Other expenses,193.18,32.20,160.98
Children and Young Peoples Services,Head of Childrens Social Care,085342,9 Cedar Drive Aycliffe,Supplies and Services,324117,Provisions E324,01-Oct-2019,000008835817481,TESCO STORES 2916,5411,Catering costs - provisions,13.13,0.00,13.13
Children and Young Peoples Services,Head of Early Help Inclusion & Vulnerable Children.,085957,Secure Management,Supplies and Services,304403,Equipment and Materials,01-Oct-2019,000008835817545,AMZNMktplace,5999,Other consumables,40.34,0.00,40.34
Adult and Health Services,Head of Adults,055643,Hawthorn House LD Respite Unit,Supplies and Services,324117,Provisions E324,01-Oct-2019,000008835817669,JR HOLLAND FOODSERVICE,5499,Catering costs - provisions,17.38,0.00,17.38
Children and Young Peoples Services,Head of Education and Skills,070264,EDC Premises,Supplies and Services,304403,Equipment and Materials,01-Oct-2019,000008835817703,AMZNMktplace,5999,Other consumables,23.95,3.99,19.96
Resources BK0010,Digital and Customer Services,065481,Technical Services 065481,Supplies and Services,342053,Computers and Communications,01-Oct-2019,000008835817825,FS.COM LIMITED,5045,Computer software,209.00,0.00,209.00
Transformation and Partnerships,Business Support,052986,CYPS - Locality and Operational Support,Supplies and Services,328041,Clothing uniforms and laundry E328,01-Oct-2019,000008835817853,WWW.ARGOS.CO.UK,5310,Clothing uniforms and laundry,82.94,0.00,82.94
Regeneration and Local Services,Corporate Property and Land,021324,Catering - Meadowfield,Supplies and Services,324117,Provisions E324,01-Oct-2019,000008835817907,JR HOLLAND FOODSERVICE,5499,Catering costs - provisions,14.19,0.00,14.19
Regeneration and Local Services,Corporate Property and Land,021324,Catering - Meadowfield,Supplies and Services,324117,Provisions E324,01-Oct-2019,000008835817917,WWW.ADELIEFOODS.CO.UK,5499,Catering costs - provisions,46.91,0.00,46.91
Children and Young Peoples Services,Head of Childrens Social Care,085332,Middlestone Moor CU,Supplies and Services,304221,Equipment and Materials,01-Oct-2019,000008835818111,HOMEBASE LTD 822,5200,Direct materials,4.00,0.00,4.00
Children and Young Peoples Services,Head of Early Help Inclusion & Vulnerable Children.,088107,Ferryhill & Newton Aycliffe 0-19 Community Family Hub,Supplies and Services,304403,Equipment and Materials,01-Oct-2019,000008835818139,AMZNMKTPLACE AMAZON.CO,5999,Other consumables,74.64,12.44,62.20
Children and Young Peoples Services,Head of Early Help Inclusion & Vulnerable Children.,088107,Ferryhill & Newton Aycliffe 0-19 Community Family Hub,Supplies and Services,304403,Equipment and Materials,01-Oct-2019,000008835818139 - 1,AMZNMKTPLACE AMAZON.CO,5999,Other consumables,24.86,,24.86
Children and Young Peoples Services,Head of Early Help Inclusion & Vulnerable Children.,088107,Ferryhill & Newton Aycliffe 0-19 Community Family Hub,Supplies and Services,304403,Equipment and Materials,01-Oct-2019,000008835818147,AMZNMKTPLACE AMAZON.CO,5999,Other consumables,-4.16,0.00,-4.16
Resources BK0010,Digital and Customer Services,065481,Technical Services 065481,Supplies and Services,342053,Computers and Communications,01-Oct-2019,000008835818267,FS.COM LIMITED,5045,Computer software,495.00,0.00,495.00
Resources BK0010,Digital and Customer Services,070110,School Services - Man Info System (MIS) Support Team,Supplies and Services,304403,Equipment and Materials,01-Oct-2019,000008835818271,PAYPAL Envato Market,5999,Other consumables,18.62,0.00,18.62
Transformation and Partnerships,Business Support,069010,Administration 069010,Transport,235057,Public Transport,01-Oct-2019,000008835818275,Oyster Online,4112,Staff travelling,50.00,0.00,50.00
Regeneration and Local Services,Corporate Property and Land,021235,Catering - Wharton Park,Supplies and Services,324117,Provisions E324,01-Oct-2019,000008835818337,JR HOLLAND FOODSERVICE,5499,Catering costs - provisions,27.58,0.00,27.58
Regeneration and Local Services,Corporate Property and Land,021235,Catering - Wharton Park,Supplies and Services,324117,Provisions E324,01-Oct-2019,000008835818343,WWW.ADELIEFOODS.CO.UK,5499,Catering costs - provisions,31.60,0.00,31.60
Regeneration and Local Services,Corporate Property and Land,021235,Catering - Wharton Park,Supplies and Services,324117,Provisions E324,01-Oct-2019,000008835818347,WWW.ADELIEFOODS.CO.UK,5499,Catering costs - provisions,66.89,0.00,66.89
Regeneration and Local Services,Corporate Property and Land,021235,Catering - Wharton Park,Supplies and Services,324117,Provisions E324,01-Oct-2019,000008835818351,WWW.ADELIEFOODS.CO.UK,5499,Catering costs - provisions,82.04,0.00,82.04
Regeneration and Local Services,Corporate Property and Land,021235,Catering - Wharton Park,Supplies and Services,324117,Provisions E324,01-Oct-2019,000008835818357,WWW.ADELIEFOODS.CO.UK,5499,Catering costs - provisions,66.89,0.00,66.89
Children and Young Peoples Services,Head of Childrens Social Care,085341,High Etherley Satelite Home,Supplies and Services,324117,Provisions E324,01-Oct-2019,000008835818375,TESCO STORES 6329,5411,Catering costs - provisions,114.27,0.00,114.27
Children and Young Peoples Services,Head of Childrens Social Care,085332,Middlestone Moor CU,Supplies and Services,324117,Provisions E324,01-Oct-2019,000008835818505,ASDA SUPERSTORE 4987,5411,Catering costs - provisions,31.74,0.00,31.74
Regeneration and Local Services,Development and Housing,030771,Durham Advance Flexible Fund,Supplies and Services,304221,Equipment and Materials,01-Oct-2019,000008835818535,SCREWFIX DIRECT,5200,Direct materials,15.48,2.58,12.90
Regeneration and Local Services,Development and Housing,030771,Durham Advance Flexible Fund,Supplies and Services,304221,Equipment and Materials,01-Oct-2019,000008835818535 - 1,SCREWFIX DIRECT,5200,Direct materials,22.09,,22.09
Regeneration and Local Services,Development and Housing,030771,Durham Advance Flexible Fund,Supplies and Services,304221,Equipment and Materials,01-Oct-2019,000008835818549,SCREWFIX CONSETT,5211,Direct materials,29.99,5.00,24.99
Regeneration and Local Services,Business Durham CL0850,030694,Plexus 2,Supplies and Services,324117,Provisions E324,01-Oct-2019,000008835818575,SAINSBURYS (2303),5411,Catering costs - provisions,25.30,0.00,25.30
Children and Young Peoples Services,Head of Education and Skills,054640,Durham Learning Resources 054640,Supplies and Services,304245,Equipment and Materials,01-Oct-2019,000008841137265,AMZNMKTPLACE AMAZON.CO,5999,Materials,16.49,0.00,16.49
Children and Young Peoples Services,Head of Education and Skills,054640,Durham Learning Resources 054640,Supplies and Services,312011,Newspapers books and periodicals E312,01-Oct-2019,000008841137271,AMZNMKTPLACE AMAZON.CO,5999,Books-school library,-2.75,0.00,-2.75
Regeneration and Local Services,Development and Housing,031576,B& B - Temp Accom,Employees,040149,Recruitment Instruction and Training,01-Oct-2019,000008841137279,PREMIER INN,3811,Training-all costs,195.50,32.58,162.92
Children and Young Peoples Services,Head of Childrens Social Care,085501,Child Care Cases Legal Expenses,Supplies and Services,304403,Equipment and Materials,01-Oct-2019,000008841137289,GEN REGISTER OFFICE,9399,Other consumables,-31.50,0.00,-31.50
Regeneration and Local Services,Corporate Property and Land,021242,Catering - County Hall,Supplies and Services,324117,Provisions E324,01-Oct-2019,000008841137431,BATLEYS PERTH,5300,Catering costs - provisions,274.02,45.67,228.35
Regeneration and Local Services,Corporate Property and Land,021242,Catering - County Hall,Supplies and Services,324117,Provisions E324,01-Oct-2019,000008841137431 - 1,BATLEYS PERTH,5300,Catering costs - provisions,65.35,,65.35
Regeneration and Local Services,Development and Housing,031576,B& B - Temp Accom,Supplies and Services,364320,Grants to Voluntary Organisations,01-Oct-2019,000008841137597,PREMIER INN,3811,Accommodation assistance,100.50,0.00,100.50
Children and Young Peoples Services,Head of Early Help Inclusion & Vulnerable Children.,071746,Newton Aycliffe Childrens Centre,Supplies and Services,324117,Provisions E324,01-Oct-2019,000008841137735,BATLEYS PERTH,5300,Catering costs - provisions,45.53,0.00,45.53
Children and Young Peoples Services,Head of Early Help Inclusion & Vulnerable Children.,085955,Auckland,Supplies and Services,304403,Equipment and Materials,01-Oct-2019,000008841137767,AMZNMKTPLACE AMAZON.CO,5999,Other consumables,25.00,4.18,20.82
Regeneration and Local Services,Environmental Services,011060,C&G - Hardwick Park Catering,Supplies and Services,324117,Provisions E324,01-Oct-2019,000008841137783,BATLEYS PERTH,5300,Catering costs - provisions,109.56,18.26,91.30
Regeneration and Local Services,Environmental Services,011060,C&G - Hardwick Park Catering,Supplies and Services,324117,Provisions E324,01-Oct-2019,000008841137783 - 1,BATLEYS PERTH,5300,Catering costs - provisions,81.19,,81.19
Regeneration and Local Services,Corporate Property and Land,021234,Catering - Locomotion,Supplies and Services,324117,Provisions E324,01-Oct-2019,000008841137807,BATLEYS PERTH,5300,Catering costs - provisions,267.78,44.63,223.15
Regeneration and Local Services,Corporate Property and Land,021234,Catering - Locomotion,Supplies and Services,324117,Provisions E324,01-Oct-2019,000008841137807 - 1,BATLEYS PERTH,5300,Catering costs - provisions,46.58,,46.58
Regeneration and Local Services,Corporate Property and Land,021324,Catering - Meadowfield,Supplies and Services,324117,Provisions E324,01-Oct-2019,000008841138067,BATLEYS PERTH,5300,Catering costs - provisions,129.84,21.64,108.20
Regeneration and Local Services,Corporate Property and Land,021324,Catering - Meadowfield,Supplies and Services,324117,Provisions E324,01-Oct-2019,000008841138067 - 1,BATLEYS PERTH,5300,Catering costs - provisions,85.98,,85.98
Regeneration and Local Services,Development and Housing,030771,Durham Advance Flexible Fund,Supplies and Services,328041,Clothing uniforms and laundry E328,01-Oct-2019,000008847519953,MATALAN.CO.UK,5691,Clothing uniforms and laundry,53.00,0.00,53.00
Children and Young Peoples Services,Head of Childrens Social Care,085342,9 Cedar Drive Aycliffe,Supplies and Services,372009,Subscriptions E372,01-Oct-2019,000008847519967,NEWTON PRESS,7338,Subscriptions 372009,43.20,0.00,43.20
Resources BK0010,Digital and Customer Services,065432,Web Development Group,Supplies and Services,342053,Computers and Communications,02-Oct-2019,000008835816293,TENON SAAS,5734,Computer software,-2.01,0.00,-2.01
Resources BK0010,Digital and Customer Services,065432,Web Development Group,Supplies and Services,342053,Computers and Communications,02-Oct-2019,000008835816297,TENON SAAS,5734,Computer software,-2.01,0.00,-2.01
Regeneration and Local Services,Culture Sport and Tourism,030708,VCD - Marketing & Information,Supplies and Services,384199,Miscellaneous Expenses,02-Oct-2019,000008835816475,LATER.COM PREMIUM,5734,Other hired and contracted services,3.81,0.00,3.81
Resources BK0010,Digital and Customer Services,070204,School Services - Systems,Supplies and Services,372009,Subscriptions E372,02-Oct-2019,000008835816713,WEB NETWORKSOLUTIONS,5968,Subscriptions 372009,0.27,0.00,0.27
Children and Young Peoples Services,Head of Childrens Social Care,085341,High Etherley Satelite Home,Supplies and Services,324117,Provisions E324,02-Oct-2019,000008841137189,TESCO STORES 6329,5411,Catering costs - provisions,9.95,0.00,9.95
Children and Young Peoples Services,Head of Education and Skills,071801,Selby Cottage Childcare Centre,Supplies and Services,324117,Provisions E324,02-Oct-2019,000008841137241,TESCO STORES 2278,5411,Catering costs - provisions,19.04,0.00,19.04
Children and Young Peoples Services,Head of Education and Skills,071801,Selby Cottage Childcare Centre,Supplies and Services,324117,Provisions E324,02-Oct-2019,000008841137247,TESCO STORES 2278,5411,Catering costs - provisions,12.37,0.00,12.37
Children and Young Peoples Services,Head of Education and Skills,071801,Selby Cottage Childcare Centre,Supplies and Services,328041,Clothing uniforms and laundry E328,02-Oct-2019,000008841137251,POUNDSTRETCHER 692,5331,Clothing uniforms and laundry,34.94,0.00,34.94
Children and Young Peoples Services,Head of Education and Skills,071801,Selby Cottage Childcare Centre,Supplies and Services,324117,Provisions E324,02-Oct-2019,000008841137253,LIDL GB BSHP AUCKLAND,5411,Catering costs - provisions,35.57,0.00,35.57
Children and Young Peoples Services,Head of Education and Skills,071801,Selby Cottage Childcare Centre,Supplies and Services,328041,Clothing uniforms and laundry E328,02-Oct-2019,000008841137257,B&M RETAIL LTD,5310,Clothing uniforms and laundry,81.16,0.00,81.16
Children and Young Peoples Services,Head of Education and Skills,071801,Selby Cottage Childcare Centre,Supplies and Services,324117,Provisions E324,02-Oct-2019,000008841137261,ALDI 32 774,5411,Catering costs - provisions,11.57,0.00,11.57
Children and Young Peoples Services,Head of Childrens Social Care,085357,LAC Bespoke Placements,Supplies and Services,338099,Services,02-Oct-2019,000008841137287,PARKDEAN RESORTS H,7033,Other services,224.00,0.00,224.00
Regeneration and Local Services,Development and Housing,031500,Housing Solutions - Core Team,Supplies and Services,352001,Conference Expenses,02-Oct-2019,000008841137313,AYCLIFFE BIZ,7011,Conferencesseminars fees etc,70.00,11.67,58.33
Children and Young Peoples Services,Head of Education and Skills,075021,Youth Employment Initiative,Supplies and Services,384871,Miscellaneous Expenses,02-Oct-2019,000008841137315,THE POST OFFICE,9402,Training-other activities,45.00,0.00,45.00
Children and Young Peoples Services,Head of Education and Skills,075021,Youth Employment Initiative,Supplies and Services,384999,Miscellaneous Expenses,02-Oct-2019,000008841137317,ASDA GEORGE COM LEEDS,5411,Other expenses,42.00,0.00,42.00
Children and Young Peoples Services,Head of Education and Skills,075021,Youth Employment Initiative,Supplies and Services,384999,Miscellaneous Expenses,02-Oct-2019,000008841137321,ASDA GEORGE COM LEEDS,5411,Other expenses,40.00,0.00,40.00
Children and Young Peoples Services,Head of Education and Skills,075021,Youth Employment Initiative,Supplies and Services,384199,Miscellaneous Expenses,02-Oct-2019,000008841137325,DARLINGTON BC INTERNET,9399,Other hired and contracted services,11.00,0.00,11.00
Regeneration and Local Services,Culture Sport and Tourism,054302,Cornforth Library,Supplies and Services,304259,Equipment and Materials,02-Oct-2019,000008841137343,LEGO,5945,Equipment-purchase and rental,28.20,4.70,23.50
Regeneration and Local Services,Culture Sport and Tourism,030708,VCD - Marketing & Information,Supplies and Services,384199,Miscellaneous Expenses,02-Oct-2019,000008841137347,MAILCHIMP MONTHLY,5968,Other hired and contracted services,266.50,44.42,222.08
Transformation and Partnerships,Business Support,052986,CYPS - Locality and Operational Support,Third Party Payments,430100,Rendered by Private Contractors,02-Oct-2019,000008841137409,PAYPAL THOS RIDLEY,7399,Payments to sub-contractors,35.14,0.00,35.14
Children and Young Peoples Services,Head of Early Help Inclusion & Vulnerable Children.,088105,BA/BC/Crook 0-19 Community Family Hub,Supplies and Services,304259,Equipment and Materials,02-Oct-2019,000008841137429,ARGOS RETAIL GROUP,5310,Equipment-purchase and rental,10.00,0.00,10.00
Regeneration and Local Services,Corporate Property and Land,021242,Catering - County Hall,Supplies and Services,324117,Provisions E324,02-Oct-2019,000008841137441,JR HOLLAND FOODSERVICE,5499,Catering costs - provisions,13.80,0.00,13.80
Regeneration and Local Services,Corporate Property and Land,021242,Catering - County Hall,Supplies and Services,324117,Provisions E324,02-Oct-2019,000008841137443,JR HOLLAND FOODSERVICE,5499,Catering costs - provisions,7.81,0.00,7.81
Regeneration and Local Services,Corporate Property and Land,021242,Catering - County Hall,Supplies and Services,324117,Provisions E324,02-Oct-2019,000008841137447,JR HOLLAND FOODSERVICE,5499,Catering costs - provisions,135.30,0.00,135.30
Children and Young Peoples Services,Head of Childrens Social Care,085332,Middlestone Moor CU,Supplies and Services,384871,Miscellaneous Expenses,02-Oct-2019,000008841137453,ATG TICKET WEB,7922,Training-other activities,201.15,0.00,201.15
Children and Young Peoples Services,Head of Childrens Social Care,085332,Middlestone Moor CU,Premises,115125,Repairs to Grounds,02-Oct-2019,000008841137459,HOMEBASE LTD 822,5200,General maintenance,28.00,0.00,28.00
Resources BK0010,Digital and Customer Services,065481,Technical Services 065481,Supplies and Services,372009,Subscriptions E372,02-Oct-2019,000008841137471,WEB NETWORKSOLUTIONS,5968,Subscriptions 372009,78.49,0.00,78.49
Resources BK0010,Digital and Customer Services,065481,Technical Services 065481,Supplies and Services,372009,Subscriptions E372,02-Oct-2019,000008841137475,WEB NETWORKSOLUTIONS,5968,Subscriptions 372009,-7.84,0.00,-7.84
Resources BK0010,Digital and Customer Services,065481,Technical Services 065481,Supplies and Services,372009,Subscriptions E372,02-Oct-2019,000008841137481,WEB NETWORKSOLUTIONS,5968,Subscriptions 372009,-7.84,0.00,-7.84
Regeneration and Local Services,Culture Sport and Tourism,054812,Gala Theatre - Catering etc,Supplies and Services,324117,Provisions E324,02-Oct-2019,000008841137491,JR HOLLAND FOODSERVICE,5499,Catering costs - provisions,56.25,0.00,56.25
Regeneration and Local Services,Development and Housing,031576,B& B - Temp Accom,Supplies and Services,352001,Conference Expenses,02-Oct-2019,000008841137495,GRAINGER HOTEL,7011,Conferencesseminars fees etc,35.00,0.00,35.00
Children and Young Peoples Services,Head of Childrens Social Care,085511,Emergency Duty Team,Supplies and Services,352001,Conference Expenses,02-Oct-2019,000008841137539,HOTEL 52,7011,Conferencesseminars fees etc,92.96,0.00,92.96
Children and Young Peoples Services,Head of Early Help Inclusion & Vulnerable Children.,073998,TTF-Co-ordinator Grant,Supplies and Services,308011,Furniture,02-Oct-2019,000008841137583,J DODDS CARPETS LTD,5713,Furniture repair and replacement,100.02,16.67,83.35
Children and Young Peoples Services,Head of Early Help Inclusion & Vulnerable Children.,073998,TTF-Co-ordinator Grant,Supplies and Services,308011,Furniture,02-Oct-2019,000008841137583 - 1,J DODDS CARPETS LTD,5713,Furniture repair and replacement,44.98,,44.98
Children and Young Peoples Services,Head of Childrens Social Care,085352,Tow Law CU,Supplies and Services,324117,Provisions E324,02-Oct-2019,000008841137601,TESCO STORES 6329,5411,Catering costs - provisions,62.60,0.00,62.60
Children and Young Peoples Services,Head of Childrens Social Care,085352,Tow Law CU,Supplies and Services,304999,Equipment and Materials,02-Oct-2019,000008841137603,HOME BARGAINS,5251,Misc equipment tools and materials,2.99,0.50,2.49
Children and Young Peoples Services,Head of Education and Skills,071732,Dean Bank Childcare,Supplies and Services,328041,Clothing uniforms and laundry E328,02-Oct-2019,000008841137619,B&M RETAIL LTD,5310,Clothing uniforms and laundry,119.41,0.00,119.41
Regeneration and Local Services,Culture Sport and Tourism,054813,Gala Theatre - Technical,Supplies and Services,340001,Postages E340,02-Oct-2019,000008841137631,TNT_DIRECT,4215,Postages,57.42,0.00,57.42
Regeneration and Local Services,Development and Housing,030771,Durham Advance Flexible Fund,Supplies and Services,348037,Subsistence E348,02-Oct-2019,000008841137713,STARBUCKS,5814,Subsistence,3.90,0.65,3.25
Regeneration and Local Services,Development and Housing,030771,Durham Advance Flexible Fund,Supplies and Services,348037,Subsistence E348,02-Oct-2019,000008841137717,COSTA COFFEE SEAHAM,5812,Subsistence,5.15,0.86,4.29
Regeneration and Local Services,Development and Housing,030771,Durham Advance Flexible Fund,Supplies and Services,324117,Provisions E324,02-Oct-2019,000008841137721,ASDA STORES,5411,Catering costs - provisions,3.85,0.00,3.85
Regeneration and Local Services,Business Durham CL0850,030674,Business Services General,Supplies and Services,304403,Equipment and Materials,02-Oct-2019,000008841137729,ADOBE CREATIVE CLOUD,5734,Other consumables,49.94,8.32,41.62
Regeneration and Local Services,Business Durham CL0850,030674,Business Services General,Supplies and Services,342222,Computers and Communications,02-Oct-2019,000008841137731,FASTHOSTS INTERNET,4816,Comp hardware purch-network servers,72.66,12.11,60.55
Regeneration and Local Services,Business Durham CL0850,030674,Business Services General,Supplies and Services,342222,Computers and Communications,02-Oct-2019,000008841137733,FASTHOSTS INTERNET,4816,Comp hardware purch-network servers,66.30,11.05,55.25
Regeneration and Local Services,Development and Housing,030771,Durham Advance Flexible Fund,Supplies and Services,340001,Postages E340,02-Oct-2019,000008841137739,THE POST OFFICE,9402,Postages,330.00,0.00,330.00
Children and Young Peoples Services,Head of Early Help Inclusion & Vulnerable Children.,071445,Chester le Street One Point Hub,Supplies and Services,352001,Conference Expenses,02-Oct-2019,000008841137743,TRAVELODGE,3615,Conferencesseminars fees etc,42.00,0.00,42.00
Children and Young Peoples Services,Head of Early Help Inclusion & Vulnerable Children.,071445,Chester le Street One Point Hub,Supplies and Services,304259,Equipment and Materials,02-Oct-2019,000008841137747,DARLINGTON BC INTERNET,9399,Equipment-purchase and rental,22.00,0.00,22.00
Children and Young Peoples Services,Head of Early Help Inclusion & Vulnerable Children.,085957,Secure Management,Supplies and Services,352001,Conference Expenses,02-Oct-2019,000008841137753,NFPS LTD,7392,Conferencesseminars fees etc,300.00,50.00,250.00
Children and Young Peoples Services,Head of Early Help Inclusion & Vulnerable Children.,085962,Aycliffe Secure - Durham,Supplies and Services,324117,Provisions E324,02-Oct-2019,000008841137757,TESCO STORES 6329,5411,Catering costs - provisions,72.87,0.00,72.87
Children and Young Peoples Services,Head of Early Help Inclusion & Vulnerable Children.,085956,Lumley,Supplies and Services,304403,Equipment and Materials,02-Oct-2019,000008841137761,AMZNMKTPLACE AMAZON.CO,5999,Other consumables,13.02,2.17,10.85
Children and Young Peoples Services,Head of Early Help Inclusion & Vulnerable Children.,085956,Lumley,Supplies and Services,304403,Equipment and Materials,02-Oct-2019,000008841137761 - 1,AMZNMKTPLACE AMAZON.CO,5999,Other consumables,20.80,,20.80
Children and Young Peoples Services,Head of Early Help Inclusion & Vulnerable Children.,085965,Barnard,Supplies and Services,384999,Miscellaneous Expenses,02-Oct-2019,000008841137769,Amazon.co.uk MO3806LC4,5969,Other expenses,26.89,4.48,22.41
Transformation and Partnerships,Business Support,052986,CYPS - Locality and Operational Support,Supplies and Services,304403,Equipment and Materials,02-Oct-2019,000008841137779,CITY TAXIS,5734,Other consumables,30.00,0.00,30.00
Regeneration and Local Services,Environmental Services,011060,C&G - Hardwick Park Catering,Supplies and Services,324117,Provisions E324,02-Oct-2019,000008841137787,JR HOLLAND FOODSERVICE,5499,Catering costs - provisions,14.13,0.00,14.13
Regeneration and Local Services,Development and Housing,030755,Durham Employment & Skills - Other Training,Employees,040149,Recruitment Instruction and Training,02-Oct-2019,000008841137797,WWW.CSKILLS.ORG,8249,Training-all costs,36.00,6.00,30.00
Regeneration and Local Services,Development and Housing,030755,Durham Employment & Skills - Other Training,Employees,040149,Recruitment Instruction and Training,02-Oct-2019,000008841137801,WWW.CSKILLS.ORG,8249,Training-all costs,36.00,6.00,30.00
Regeneration and Local Services,Development and Housing,030771,Durham Advance Flexible Fund,Supplies and Services,324117,Provisions E324,02-Oct-2019,000008841137831,SAINSBURYS 2199,5411,Catering costs - provisions,94.00,0.00,94.00
Regeneration and Local Services,Development and Housing,030771,Durham Advance Flexible Fund,Supplies and Services,324117,Provisions E324,02-Oct-2019,000008841137833,BRADLEY BURN FARM SHOP,5411,Catering costs - provisions,5.30,0.00,5.30
Regeneration and Local Services,Corporate Property and Land,021234,Catering - Locomotion,Supplies and Services,324117,Provisions E324,02-Oct-2019,000008841137841,SAINSBURYS 0776,5411,Catering costs - provisions,46.05,0.00,46.05
Children and Young Peoples Services,Head of Early Help Inclusion & Vulnerable Children.,071443,Stanley One Point Hub,Supplies and Services,328041,Clothing uniforms and laundry E328,02-Oct-2019,000008841137845,WWW.ARGOS.CO.UK,5310,Clothing uniforms and laundry,183.89,0.00,183.89
Children and Young Peoples Services,Head of Early Help Inclusion & Vulnerable Children.,071443,Stanley One Point Hub,Supplies and Services,328041,Clothing uniforms and laundry E328,02-Oct-2019,000008841137849,WWW.ARGOS.CO.UK,5310,Clothing uniforms and laundry,21.20,0.00,21.20
Regeneration and Local Services,Development and Housing,031500,Housing Solutions - Core Team,Supplies and Services,352001,Conference Expenses,02-Oct-2019,000008841137903,HOTEL 52,7011,Conferencesseminars fees etc,71.99,0.00,71.99
Adult and Health Services,Head of Adults,055301,Stanley Pathways,Supplies and Services,328041,Clothing uniforms and laundry E328,02-Oct-2019,000008841137909,WWW.ARGOS.CO.UK,5310,Clothing uniforms and laundry,97.91,0.00,97.91
Adult and Health Services,Head of Adults,055643,Hawthorn House LD Respite Unit,Supplies and Services,324117,Provisions E324,02-Oct-2019,000008841137951,JR HOLLAND FOODSERVICE,5499,Catering costs - provisions,16.79,0.00,16.79
Regeneration and Local Services,Environmental Services,031233,North Pennines - Pennine Peatlife,Third Party Payments,430100,Rendered by Private Contractors,02-Oct-2019,000008841137957,EB EUROSITE ANNIVERSA,7399,Payments to sub-contractors,113.44,0.00,113.44
Children and Young Peoples Services,Head of Education and Skills,075444,Durham Leadership Centre,Supplies and Services,342053,Computers and Communications,02-Oct-2019,000008841137977,AIRSERVER,5045,Computer software,34.79,5.80,28.99
Regeneration and Local Services,Environmental Services,010301,C&G - North Grounds Maintenance,Supplies and Services,324117,Provisions E324,02-Oct-2019,000008841138001,J VAN VLIET GATESHEAD,5399,Catering costs - provisions,112.32,18.72,93.60
Regeneration and Local Services,Environmental Services,010301,C&G - North Grounds Maintenance,Supplies and Services,304403,Equipment and Materials,02-Oct-2019,000008841138005,BESCOL,5231,Other consumables,29.94,4.99,24.95
Resources BK0010,Digital and Customer Services,065335,School Services - Implementations,Supplies and Services,304639,Equipment and Materials,02-Oct-2019,000008841138033,WWW.ONLINELAPTOPBATTER,5045,Technicians-supplies,39.85,0.00,39.85
Regeneration and Local Services,Transport and Contracted Services,032166,Consett Bus Station 032166,Supplies and Services,384199,Miscellaneous Expenses,02-Oct-2019,000008841138051,FAST KEY SERVICES LIMI,7399,Other hired and contracted services,8.75,1.46,7.29
Children and Young Peoples Services,Head of Childrens Social Care,085342,9 Cedar Drive Aycliffe,Supplies and Services,324117,Provisions E324,02-Oct-2019,000008841138105,TESCO STORES 2916,5411,Catering costs - provisions,79.40,0.00,79.40
Children and Young Peoples Services,Head of Childrens Social Care,085342,9 Cedar Drive Aycliffe,Supplies and Services,324117,Provisions E324,02-Oct-2019,000008841138113,TESCO STORES 2916,5411,Catering costs - provisions,13.57,0.00,13.57
Children and Young Peoples Services,Head of Childrens Social Care,085380,Operations Manager LAC Resources,Supplies and Services,324117,Provisions E324,02-Oct-2019,000008841138179,ASDA STORES,5411,Catering costs - provisions,6.29,0.00,6.29
Regeneration and Local Services,Environmental Services,031200,North Pennines Core,Supplies and Services,324117,Provisions E324,02-Oct-2019,000008841138187,STANHOPE SUPERMARKET,5411,Catering costs - provisions,17.65,0.00,17.65
Regeneration and Local Services,Environmental Services,031200,North Pennines Core,Supplies and Services,304259,Equipment and Materials,02-Oct-2019,000008841138193,EDEN DISTRICT COUN,9399,Equipment-purchase and rental,36.00,0.00,36.00
Adult and Health Services,Head of Adults,055310,Positive Journeys (Tudhoe),Supplies and Services,324117,Provisions E324,02-Oct-2019,000008841138259,ASDA SUPERSTORE 4987,5411,Catering costs - provisions,1.48,0.00,1.48
Children and Young Peoples Services,Head of Childrens Social Care,085341,High Etherley Satelite Home,Supplies and Services,304245,Equipment and Materials,02-Oct-2019,000008841138271,HOMEBASE LTD 822,5200,Materials,36.00,0.00,36.00
Regeneration and Local Services,Development and Housing,030554,International Relations 030554,Transport,235057,Public Transport,02-Oct-2019,000008841138329,3C_ NSL Durham WAP,7523,Staff travelling,4.00,0.00,4.00
Regeneration and Local Services,Corporate Property and Land,021242,Catering - County Hall,Premises,145009,Cleaning and Domestic Supplies,02-Oct-2019,000008847519553,ALLIANCE DISPOSABLES L,2842,Other cleaning and domestic costs,269.27,44.88,224.39
Regeneration and Local Services,Culture Sport and Tourism,054812,Gala Theatre - Catering etc,Supplies and Services,324117,Provisions E324,02-Oct-2019,000008847519587,BATLEYS PERTH,5300,Catering costs - provisions,-36.70,-6.12,-30.58
Regeneration and Local Services,Development and Housing,031576,B& B - Temp Accom,Employees,040149,Recruitment Instruction and Training,02-Oct-2019,000008847519593,PREMIER INN,3811,Training-all costs,164.00,0.00,164.00
Regeneration and Local Services,Environmental Services,011060,C&G - Hardwick Park Catering,Premises,145009,Cleaning and Domestic Supplies,02-Oct-2019,000008847519803,ALLIANCE DISPOSABLES L,2842,Other cleaning and domestic costs,63.23,10.54,52.69
Regeneration and Local Services,Environmental Services,011060,C&G - Hardwick Park Catering,Premises,145009,Cleaning and Domestic Supplies,02-Oct-2019,000008847519805,ALLIANCE DISPOSABLES L,2842,Other cleaning and domestic costs,146.72,24.45,122.27
Regeneration and Local Services,Environmental Services,011060,C&G - Hardwick Park Catering,Premises,145009,Cleaning and Domestic Supplies,02-Oct-2019,000008847519809,ALLIANCE DISPOSABLES L,2842,Other cleaning and domestic costs,43.25,7.21,36.04
Regeneration and Local Services,Development and Housing,031500,Housing Solutions - Core Team,Supplies and Services,348037,Subsistence E348,02-Oct-2019,000008847519963,CORNER HOUSE HOTEL,5813,Subsistence,163.98,0.00,163.98
Regeneration and Local Services,Development and Housing,031576,B& B - Temp Accom,Supplies and Services,364320,Grants to Voluntary Organisations,02-Oct-2019,000008847520147,PREMIER INN,3811,Accommodation assistance,416.00,0.00,416.00
Regeneration and Local Services,Environmental Services,010301,C&G - North Grounds Maintenance,Third Party Payments,430100,Rendered by Private Contractors,02-Oct-2019,000008847520159,JOHN WARREN (ANIMAL BY,7399,Payments to sub-contractors,36.00,6.00,30.00
Resources BK0010,Digital and Customer Services,065481,Technical Services 065481,Supplies and Services,372009,Subscriptions E372,03-Oct-2019,000008841137483,WEB NETWORKSOLUTIONS,5968,Subscriptions 372009,2.16,0.00,2.16
Resources BK0010,Digital and Customer Services,065481,Technical Services 065481,Supplies and Services,372009,Subscriptions E372,03-Oct-2019,000008841137485,WEB NETWORKSOLUTIONS,5968,Subscriptions 372009,-0.22,0.00,-0.22
Resources BK0010,Digital and Customer Services,065481,Technical Services 065481,Supplies and Services,372009,Subscriptions E372,03-Oct-2019,000008841137487,WEB NETWORKSOLUTIONS,5968,Subscriptions 372009,-0.22,0.00,-0.22
Regeneration and Local Services,Environmental Services,031233,North Pennines - Pennine Peatlife,Third Party Payments,430100,Rendered by Private Contractors,03-Oct-2019,000008841137963,EB EUROSITE ANNIVERSA,7399,Payments to sub-contractors,3.12,0.00,3.12
Children and Young Peoples Services,Head of Childrens Social Care,085611,Families First Stanley,Supplies and Services,332047,Printing Stationery and Gen Off Exps,03-Oct-2019,000008847519397,ASDA SUPERSTORE,5411,Stationery,8.00,0.00,8.00
Regeneration and Local Services,Development and Housing,031576,B& B - Temp Accom,Supplies and Services,364320,Grants to Voluntary Organisations,03-Oct-2019,000008847519413,SLEEPERDORM,7011,Accommodation assistance,36.00,0.00,36.00
Regeneration and Local Services,Development and Housing,031576,B& B - Temp Accom,Supplies and Services,364320,Grants to Voluntary Organisations,03-Oct-2019,000008847519419,SLEEPERDORM,7011,Accommodation assistance,184.00,0.00,184.00
Regeneration and Local Services,Environmental Services,010301,C&G - North Grounds Maintenance,Supplies and Services,304221,Equipment and Materials,03-Oct-2019,000008847519425,Olivers Building and T,5211,Direct materials,43.20,7.20,36.00
Regeneration and Local Services,Development and Housing,031500,Housing Solutions - Core Team,Supplies and Services,352001,Conference Expenses,03-Oct-2019,000008847519441,Hotel on Booking.com B,7011,Conferencesseminars fees etc,54.00,0.00,54.00
Regeneration and Local Services,Development and Housing,031500,Housing Solutions - Core Team,Supplies and Services,352001,Conference Expenses,03-Oct-2019,000008847519445,HOTEL 52,7011,Conferencesseminars fees etc,276.90,0.00,276.90
Children and Young Peoples Services,Head of Education and Skills,075021,Youth Employment Initiative,Supplies and Services,384999,Miscellaneous Expenses,03-Oct-2019,000008847519449,WWW.LABEEBY.CO.UK,5691,Other expenses,23.49,3.92,19.57
Adult and Health Services,Head of Adults,055302,Durham Pathways,Supplies and Services,324117,Provisions E324,03-Oct-2019,000008847519471,SAINSBURYS SACAT 0776,5411,Catering costs - provisions,8.85,0.00,8.85
Adult and Health Services,Head of Adults,055302,Durham Pathways,Supplies and Services,324117,Provisions E324,03-Oct-2019,000008847519475,LIDL GB DURHAM,5411,Catering costs - provisions,2.94,0.49,2.45
Adult and Health Services,Head of Adults,055302,Durham Pathways,Supplies and Services,324117,Provisions E324,03-Oct-2019,000008847519475 - 1,LIDL GB DURHAM,5411,Catering costs - provisions,22.28,,22.28
Regeneration and Local Services,Culture Sport and Tourism,011263,Louisa Centre 011263,Supplies and Services,324117,Provisions E324,03-Oct-2019,000008847519501,JR HOLLAND FOODSERVICE,5499,Catering costs - provisions,21.45,0.00,21.45
Regeneration and Local Services,Culture Sport and Tourism,011263,Louisa Centre 011263,Supplies and Services,324117,Provisions E324,03-Oct-2019,000008847519507,JR HOLLAND FOODSERVICE,5499,Catering costs - provisions,43.71,0.00,43.71
Regeneration and Local Services,Corporate Property and Land,021242,Catering - County Hall,Supplies and Services,324117,Provisions E324,03-Oct-2019,000008847519559,JR HOLLAND FOODSERVICE,5499,Catering costs - provisions,94.86,0.00,94.86
Regeneration and Local Services,Corporate Property and Land,021242,Catering - County Hall,Supplies and Services,324117,Provisions E324,03-Oct-2019,000008847519563,JR HOLLAND FOODSERVICE,5499,Catering costs - provisions,13.80,0.00,13.80
Children and Young Peoples Services,Head of Childrens Social Care,085332,Middlestone Moor CU,Supplies and Services,384871,Miscellaneous Expenses,03-Oct-2019,000008847519567,Trainline,4112,Training-other activities,157.46,0.00,157.46
Children and Young Peoples Services,Head of Childrens Social Care,085332,Middlestone Moor CU,Supplies and Services,384871,Miscellaneous Expenses,03-Oct-2019,000008847519573,Opodo,4722,Training-other activities,185.73,0.00,185.73
Regeneration and Local Services,Development and Housing,030773,CLLD North,Transport,235057,Public Transport,03-Oct-2019,000008847519651,ARRIVA NORTH EAST,4131,Staff travelling,7.50,0.00,7.50
Transformation and Partnerships,Business Support,052986,CYPS - Locality and Operational Support,Supplies and Services,304403,Equipment and Materials,03-Oct-2019,000008847519657,AMZNMktplace,5999,Other consumables,12.75,2.13,10.62
Children and Young Peoples Services,Head of Childrens Social Care,085333,Coxhoe Satelite Home,Supplies and Services,344033,Telephones,03-Oct-2019,000008847519673,EE BROADBAND,4812,Telephones general-all costs,54.58,0.00,54.58
Children and Young Peoples Services,Head of Early Help Inclusion & Vulnerable Children.,085956,Lumley,Supplies and Services,304403,Equipment and Materials,03-Oct-2019,000008847519789,AMZNMktplace,5999,Other consumables,50.58,8.43,42.15
Children and Young Peoples Services,Head of Early Help Inclusion & Vulnerable Children.,085956,Lumley,Supplies and Services,304403,Equipment and Materials,03-Oct-2019,000008847519789 - 1,AMZNMktplace,5999,Other consumables,28.89,,28.89
Children and Young Peoples Services,Head of Early Help Inclusion & Vulnerable Children.,085955,Auckland,Supplies and Services,324117,Provisions E324,03-Oct-2019,000008847519797,TESCO STORES 6329,5411,Catering costs - provisions,84.92,0.00,84.92
Regeneration and Local Services,Environmental Services,011060,C&G - Hardwick Park Catering,Supplies and Services,324117,Provisions E324,03-Oct-2019,000008847519817,JR HOLLAND FOODSERVICE,5499,Catering costs - provisions,17.15,0.00,17.15
Resources BK0010,People & Talent Management,010984,Training and Development,Employees,040149,Recruitment Instruction and Training,03-Oct-2019,000008847519835,NCS VUE WAMITAB TEST,8299,Training-all costs,139.00,0.00,139.00
Children and Young Peoples Services,Head of Childrens Social Care,085331,New Lea Childrens Home,Supplies and Services,324117,Provisions E324,03-Oct-2019,000008847519847,ASDA SUPERSTORE,5411,Catering costs - provisions,63.04,0.00,63.04
Regeneration and Local Services,Corporate Property and Land,010525,Catering - Green Lane,Premises,145009,Cleaning and Domestic Supplies,03-Oct-2019,000008847519863,ALLIANCE DISPOSABLES L,2842,Other cleaning and domestic costs,130.85,21.81,109.04
Regeneration and Local Services,Corporate Property and Land,010525,Catering - Green Lane,Supplies and Services,324117,Provisions E324,03-Oct-2019,000008847519871,JR HOLLAND FOODSERVICE,5499,Catering costs - provisions,37.65,0.00,37.65
Regeneration and Local Services,Development and Housing,030771,Durham Advance Flexible Fund,Supplies and Services,352001,Conference Expenses,03-Oct-2019,000008847519877,GET LICENSED,7392,Conferencesseminars fees etc,104.98,0.00,104.98
Children and Young Peoples Services,Head of Childrens Social Care,085333,Coxhoe Satelite Home,Supplies and Services,324117,Provisions E324,03-Oct-2019,000008847519961,TESCO STORES 2371,5411,Catering costs - provisions,2.18,0.00,2.18
Children and Young Peoples Services,Head of Childrens Social Care,085342,9 Cedar Drive Aycliffe,Supplies and Services,304403,Equipment and Materials,03-Oct-2019,000008847519971,CARD FACTORY,5947,Other consumables,8.02,0.00,8.02
Regeneration and Local Services,Corporate Property and Land,030691,Catering - Durham Dales Centre,Supplies and Services,324117,Provisions E324,03-Oct-2019,000008847519981,JR HOLLAND FOODSERVICE,5499,Catering costs - provisions,36.62,0.00,36.62
Children and Young Peoples Services,Head of Childrens Social Care,085332,Middlestone Moor CU,Supplies and Services,308011,Furniture,03-Oct-2019,000008847519991,FRANKS THE FLOORING ST,5713,Furniture repair and replacement,340.00,0.00,340.00
Children and Young Peoples Services,Head of Childrens Social Care,085332,Middlestone Moor CU,Supplies and Services,308011,Furniture,03-Oct-2019,000008847519993,FRANKS THE FLOORING ST,5713,Furniture repair and replacement,500.00,0.00,500.00
Regeneration and Local Services,Development and Housing,031576,B& B - Temp Accom,Supplies and Services,364320,Grants to Voluntary Organisations,03-Oct-2019,000008847520009,GRAINGER HOTEL,7011,Accommodation assistance,50.00,8.33,41.67
Regeneration and Local Services,Development and Housing,031576,B& B - Temp Accom,Supplies and Services,364320,Grants to Voluntary Organisations,03-Oct-2019,000008847520011,HAYAT HOTEL,7011,Accommodation assistance,267.00,0.00,267.00
Adult and Health Services,Head of Adults,055643,Hawthorn House LD Respite Unit,Supplies and Services,324117,Provisions E324,03-Oct-2019,000008847520017,JR HOLLAND FOODSERVICE,5499,Catering costs - provisions,5.69,0.00,5.69
Adult and Health Services,Head of Adults,055643,Hawthorn House LD Respite Unit,Supplies and Services,324117,Provisions E324,03-Oct-2019,000008847520021,JR HOLLAND FOODSERVICE,5499,Catering costs - provisions,10.55,0.00,10.55
Regeneration and Local Services,Environmental Services,031233,North Pennines - Pennine Peatlife,Third Party Payments,430100,Rendered by Private Contractors,03-Oct-2019,000008847520029,EB EUROSITE ANNIVERSA,7399,Payments to sub-contractors,75.88,0.00,75.88
Regeneration and Local Services,Environmental Services,031233,North Pennines - Pennine Peatlife,Third Party Payments,430100,Rendered by Private Contractors,03-Oct-2019,000008847520033,EB EUROSITE ANNIVERSA,7399,Payments to sub-contractors,-107.03,0.00,-107.03
Regeneration and Local Services,Corporate Property and Land,010932,Building Design 010932,Supplies and Services,342033,Computers and Communications,03-Oct-2019,000008847520071,AMZNMktplace,5999,Computer hardware,67.46,11.24,56.22
Transformation and Partnerships,Transformation,060290,Riep - Modern ways of working,Supplies and Services,384999,Miscellaneous Expenses,03-Oct-2019,000008847520077,PRACTICALLY PERFECT PA,7922,Other expenses,"1,200.00",200.00,1000.00
Adult and Health Services,Head of Adults,052720,Mental Health S28A and Central,Supplies and Services,312009,Newspapers books and periodicals E312,03-Oct-2019,000008847520083,Amazon.co.uk MO8273LB4,5969,Newspapers books and periodicals,65.94,0.00,65.94
Regeneration and Local Services,Corporate Property and Land,021324,Catering - Meadowfield,Supplies and Services,324117,Provisions E324,03-Oct-2019,000008847520095,JR HOLLAND FOODSERVICE,5499,Catering costs - provisions,81.56,0.00,81.56
Regeneration and Local Services,Corporate Property and Land,021324,Catering - Meadowfield,Supplies and Services,324117,Provisions E324,03-Oct-2019,000008847520099,JR HOLLAND FOODSERVICE,5499,Catering costs - provisions,10.35,0.00,10.35
Adult and Health Services,Head of Adults,055301,Stanley Pathways,Third Party Payments,474101,Purchase of Care,03-Oct-2019,000008847520135,PIONEERING CARE PARTNE,8050,Nursing care payments,48.00,0.00,48.00
Children and Young Peoples Services,Head of Childrens Social Care,085342,9 Cedar Drive Aycliffe,Supplies and Services,324117,Provisions E324,03-Oct-2019,000008847520205,TESCO STORES 2916,5411,Catering costs - provisions,67.99,0.00,67.99
Regeneration and Local Services,Culture Sport and Tourism,011263,Louisa Centre 011263,Supplies and Services,324117,Provisions E324,03-Oct-2019,000008847520293,ASDA SUPERSTORE,5411,Catering costs - provisions,2.50,0.00,2.50
Regeneration and Local Services,Culture Sport and Tourism,011272,Empire Theatre Programmes & Productions,Supplies and Services,304403,Equipment and Materials,03-Oct-2019,000008847520303,PAYPAL Envato Market,5999,Other consumables,15.29,0.00,15.29
Adult and Health Services,Head of Adults,055309,Peterlee Pathways,Supplies and Services,324117,Provisions E324,03-Oct-2019,000008847520317,ASDA SUPERSTORE 4987,5411,Catering costs - provisions,18.00,0.00,18.00
Children and Young Peoples Services,Head of Childrens Social Care,085632,Families First Seaham,Transport,235057,Public Transport,03-Oct-2019,000008847520323,SUNDERLAND CC,7523,Staff travelling,70.00,0.00,70.00
Children and Young Peoples Services,Head of Childrens Social Care,085650,Pre Birth Team,Supplies and Services,304259,Equipment and Materials,03-Oct-2019,000008847520329,DARLINGTON BC INTERNET,9399,Equipment-purchase and rental,22.00,0.00,22.00
Transformation and Partnerships,Partnerships & Community Engagement Div.,060472,Syrian Vulnerable Persons Scheme,Supplies and Services,308011,Furniture,03-Oct-2019,000008847520345,www.247blinds.co.uk,5714,Furniture repair and replacement,611.08,101.85,509.23
Children and Young Peoples Services,Head of Education and Skills,071801,Selby Cottage Childcare Centre,Supplies and Services,328041,Clothing uniforms and laundry E328,03-Oct-2019,000008854873697,ARGOS LTD,5310,Clothing uniforms and laundry,19.99,0.00,19.99
Children and Young Peoples Services,Head of Education and Skills,071801,Selby Cottage Childcare Centre,Supplies and Services,304259,Equipment and Materials,03-Oct-2019,000008854873703,WILKO RETAIL LIMIT,5722,Equipment-purchase and rental,12.50,0.00,12.50
Transformation and Partnerships,Business Support,069010,Administration 069010,Transport,235057,Public Transport,03-Oct-2019,000008854873747,Oyster Online,4112,Staff travelling,-50.00,0.00,-50.00
Regeneration and Local Services,Development and Housing,031576,B& B - Temp Accom,Employees,040149,Recruitment Instruction and Training,03-Oct-2019,000008854873755,PREMIER INN,3811,Training-all costs,69.00,11.50,57.50
Resources BK0010,Finance & Transactional Services,065180,Collections,Employees,040149,Recruitment Instruction and Training,03-Oct-2019,000008854873933,CHARTERED INSTITUTE OF,8244,Training-all costs,100.00,0.00,100.00
Children and Young Peoples Services,Head of Childrens Social Care,085332,Middlestone Moor CU,Supplies and Services,384871,Miscellaneous Expenses,03-Oct-2019,000008854874063,RYANAIR,3246,Training-other activities,197.88,0.00,197.88
Children and Young Peoples Services,Head of Childrens Social Care,085352,Tow Law CU,Supplies and Services,352001,Conference Expenses,03-Oct-2019,000008854874345,Park Head Hotel,7011,Conferencesseminars fees etc,32.85,0.00,32.85
Children and Young Peoples Services,Head of Early Help Inclusion & Vulnerable Children.,088109,Spennymoor & Shildon 0-19 Community Family Hub,Supplies and Services,328041,Clothing uniforms and laundry E328,03-Oct-2019,000008854874403,B & M RETAIL,5310,Clothing uniforms and laundry,118.16,0.00,118.16
Regeneration and Local Services,Development and Housing,030771,Durham Advance Flexible Fund,Transport,235057,Public Transport,03-Oct-2019,000008854874491,WALKERGATE CAR PAR,7523,Staff travelling,9.00,0.00,9.00
Regeneration and Local Services,Culture Sport and Tourism,054813,Gala Theatre - Technical,Supplies and Services,328041,Clothing uniforms and laundry E328,03-Oct-2019,000008854874589,ARGOS LTD,5310,Clothing uniforms and laundry,59.99,0.00,59.99
Regeneration and Local Services,Culture Sport and Tourism,054813,Gala Theatre - Technical,Supplies and Services,324117,Provisions E324,03-Oct-2019,000008854874597,CO-OP GROUP 070133,5411,Catering costs - provisions,11.29,0.00,11.29
Regeneration and Local Services,Culture Sport and Tourism,054813,Gala Theatre - Technical,Supplies and Services,324117,Provisions E324,03-Oct-2019,000008854874605,WM MORRISONS STORE,5411,Catering costs - provisions,88.95,0.00,88.95
Regeneration and Local Services,Environmental Services,011060,C&G - Hardwick Park Catering,Supplies and Services,324117,Provisions E324,03-Oct-2019,000008854874659,BATLEYS PERTH,5300,Catering costs - provisions,343.62,57.27,286.35
Regeneration and Local Services,Environmental Services,011060,C&G - Hardwick Park Catering,Supplies and Services,324117,Provisions E324,03-Oct-2019,000008854874659 - 1,BATLEYS PERTH,5300,Catering costs - provisions,222.35,,222.35
Regeneration and Local Services,Environmental Services,011060,C&G - Hardwick Park Catering,Supplies and Services,324117,Provisions E324,03-Oct-2019,000008854874693,BATLEYS PERTH,5300,Catering costs - provisions,-30.24,-5.04,-25.20
Resources BK0010,Finance & Transactional Services,065176,Quality/Subsidy/Appeals/Training/Support,Supplies and Services,338048,Services,03-Oct-2019,000008854874969,HMCOURTS-SERVICE.G,9222,Court costs 338048,"1,068.00",0.00,1068.00
Regeneration and Local Services,Environmental Services,010367,C&G - South Grounds Maintenance,Supplies and Services,384999,Miscellaneous Expenses,03-Oct-2019,000008854875019,GUSTHARTS.COM,5046,Other expenses,259.58,43.26,216.32
Children and Young Peoples Services,Head of Childrens Social Care,085334,West Rainton Satelite Home,Supplies and Services,348037,Subsistence E348,03-Oct-2019,000008854875195,OAK TREE FARM,5813,Subsistence,22.47,0.00,22.47
Regeneration and Local Services,Environmental Services,010301,C&G - North Grounds Maintenance,Supplies and Services,304221,Equipment and Materials,03-Oct-2019,000008854875235,HARELAW SAWMILL,5211,Direct materials,114.25,19.04,95.21
Regeneration and Local Services,Development and Housing,031576,B& B - Temp Accom,Supplies and Services,364320,Grants to Voluntary Organisations,03-Oct-2019,000008854875369,PREMIER INN,3811,Accommodation assistance,76.00,0.00,76.00
Regeneration and Local Services,Corporate Property and Land,021235,Catering - Wharton Park,Supplies and Services,324117,Provisions E324,03-Oct-2019,000008854875691,BATLEYS PERTH,5300,Catering costs - provisions,46.92,7.82,39.10
Regeneration and Local Services,Corporate Property and Land,021235,Catering - Wharton Park,Supplies and Services,324117,Provisions E324,03-Oct-2019,000008854875691 - 1,BATLEYS PERTH,5300,Catering costs - provisions,20.41,,20.41
Children and Young Peoples Services,Head of Childrens Social Care,085632,Families First Seaham,Supplies and Services,304259,Equipment and Materials,03-Oct-2019,000008854875711,WWW.DURHAM.GOV.UK,9399,Equipment-purchase and rental,35.00,0.00,35.00
Children and Young Peoples Services,Head of Early Help Inclusion & Vulnerable Children.,071443,Stanley One Point Hub,Supplies and Services,384999,Miscellaneous Expenses,04-Oct-2019,000008847519919,Amazon.co.uk MO3RE9ZP4,5969,Other expenses,80.40,13.40,67.00
Children and Young Peoples Services,Head of Early Help Inclusion & Vulnerable Children.,071443,Stanley One Point Hub,Supplies and Services,384999,Miscellaneous Expenses,04-Oct-2019,000008847519919 - 1,Amazon.co.uk MO3RE9ZP4,5969,Other expenses,75.25,,75.25
Regeneration and Local Services,Environmental Services,031233,North Pennines - Pennine Peatlife,Third Party Payments,430100,Rendered by Private Contractors,04-Oct-2019,000008847520035,EB EUROSITE ANNIVERSA,7399,Payments to sub-contractors,2.09,0.00,2.09
Regeneration and Local Services,Environmental Services,031233,North Pennines - Pennine Peatlife,Third Party Payments,430100,Rendered by Private Contractors,04-Oct-2019,000008847520037,EB EUROSITE ANNIVERSA,7399,Payments to sub-contractors,-2.94,0.00,-2.94
Resources BK0010,Finance & Transactional Services,065180,Collections,Charges,720130,Fees and Charges,04-Oct-2019,000008854873739,HMCOURT-SERVICES.G,9222,Fees-legal,110.00,0.00,110.00
Transformation and Partnerships,Business Support,069010,Administration 069010,Transport,235057,Public Transport,04-Oct-2019,000008854873751,Oyster Online,4112,Staff travelling,-50.00,0.00,-50.00
Regeneration and Local Services,Development and Housing,031576,B& B - Temp Accom,Employees,040149,Recruitment Instruction and Training,04-Oct-2019,000008854873763,PREMIER INN,3811,Training-all costs,269.00,44.83,224.17
Children and Young Peoples Services,Head of Education and Skills,070264,EDC Premises,Supplies and Services,324117,Provisions E324,04-Oct-2019,000008854873771,HOPWELLS LTD,5811,Catering costs - provisions,57.72,9.62,48.10
Children and Young Peoples Services,Head of Education and Skills,070264,EDC Premises,Supplies and Services,324117,Provisions E324,04-Oct-2019,000008854873771 - 1,HOPWELLS LTD,5811,Catering costs - provisions,316.70,,316.70
Children and Young Peoples Services,Head of Childrens Social Care,085501,Child Care Cases Legal Expenses,Supplies and Services,304403,Equipment and Materials,04-Oct-2019,000008854873807,SUNDERLAND CC,9399,Other consumables,44.00,0.00,44.00
Children and Young Peoples Services,Head of Childrens Social Care,085501,Child Care Cases Legal Expenses,Supplies and Services,304403,Equipment and Materials,04-Oct-2019,000008854873811,GEN REGISTER OFFICE,9399,Other consumables,38.00,0.00,38.00
Regeneration and Local Services,Development and Housing,031500,Housing Solutions - Core Team,Supplies and Services,352001,Conference Expenses,04-Oct-2019,000008854873823,AYCLIFFE BIZ,7011,Conferencesseminars fees etc,280.00,46.67,233.33
Regeneration and Local Services,Development and Housing,031500,Housing Solutions - Core Team,Supplies and Services,352001,Conference Expenses,04-Oct-2019,000008854873829,HOLIDAYINN E MIDDLESBR,7011,Conferencesseminars fees etc,200.00,0.00,200.00
Regeneration and Local Services,Development and Housing,031500,Housing Solutions - Core Team,Supplies and Services,352001,Conference Expenses,04-Oct-2019,000008854873835,HOLIDAYINN E MIDDLESBR,7011,Conferencesseminars fees etc,358.00,0.00,358.00
Children and Young Peoples Services,Head of Education and Skills,075021,Youth Employment Initiative,Supplies and Services,384199,Miscellaneous Expenses,04-Oct-2019,000008854873853,WWW.DURHAM.GOV.UK,9399,Other hired and contracted services,22.00,0.00,22.00
Regeneration and Local Services,Community Protection,010934,Works in Default Holding Code,Charges,720130,Fees and Charges,04-Oct-2019,000008854873937,WWW.MONEYCLAIM.GOV,9399,Fees-legal,77.00,0.00,77.00
Regeneration and Local Services,Corporate Property and Land,021242,Catering - County Hall,Supplies and Services,324117,Provisions E324,04-Oct-2019,000008854874007,HOPWELLS LTD,5811,Catering costs - provisions,353.35,0.00,353.35
Regeneration and Local Services,Corporate Property and Land,021242,Catering - County Hall,Supplies and Services,324117,Provisions E324,04-Oct-2019,000008854874017,HOPWELLS LTD,5811,Catering costs - provisions,214.32,0.00,214.32
Regeneration and Local Services,Corporate Property and Land,021242,Catering - County Hall,Premises,145009,Cleaning and Domestic Supplies,04-Oct-2019,000008854874023,ALLIANCE DISPOSABLES L,2842,Other cleaning and domestic costs,46.43,7.74,38.69
Regeneration and Local Services,Corporate Property and Land,021242,Catering - County Hall,Supplies and Services,324117,Provisions E324,04-Oct-2019,000008854874027,JR HOLLAND FOODSERVICE,5499,Catering costs - provisions,13.84,0.00,13.84
Regeneration and Local Services,Corporate Property and Land,021242,Catering - County Hall,Supplies and Services,324117,Provisions E324,04-Oct-2019,000008854874033,JR HOLLAND FOODSERVICE,5499,Catering costs - provisions,132.32,0.00,132.32
Children and Young Peoples Services,Head of Childrens Social Care,085380,Operations Manager LAC Resources,Supplies and Services,328041,Clothing uniforms and laundry E328,04-Oct-2019,000008854874041,ARGOS RETAIL GROUP,5310,Clothing uniforms and laundry,199.97,0.00,199.97
Regeneration and Local Services,Development and Housing,030773,CLLD North,Transport,235057,Public Transport,04-Oct-2019,000008854874245,ARRIVA NORTH EAST,4131,Staff travelling,26.20,0.00,26.20
Regeneration and Local Services,Development and Housing,030773,CLLD North,Transport,235057,Public Transport,04-Oct-2019,000008854874251,ARRIVA NORTH EAST,4131,Staff travelling,90.00,0.00,90.00
Children and Young Peoples Services,Head of Childrens Social Care,085334,West Rainton Satelite Home,Supplies and Services,324117,Provisions E324,04-Oct-2019,000008854874333,TESCO STORES 2371,5411,Catering costs - provisions,55.22,0.00,55.22
Children and Young Peoples Services,Head of Childrens Social Care,085334,West Rainton Satelite Home,Supplies and Services,304999,Equipment and Materials,04-Oct-2019,000008854874335,HOME BARGAINS,5251,Misc equipment tools and materials,7.77,1.30,6.47
Regeneration and Local Services,Development and Housing,030771,Durham Advance Flexible Fund,Supplies and Services,344033,Telephones,04-Oct-2019,000008854874431,EE TOP UP VESTA,4814,Telephones general-all costs,20.00,0.00,20.00
Regeneration and Local Services,Environmental Services,031221,North Pennines - Bowlees,Supplies and Services,324117,Provisions E324,04-Oct-2019,000008854874439,TESCO STORES 4358,5411,Catering costs - provisions,10.00,0.00,10.00
Regeneration and Local Services,Business Durham CL0850,030674,Business Services General,Supplies and Services,342033,Computers and Communications,04-Oct-2019,000008854874515,STK Shutterstock,7333,Computer hardware,19.00,0.00,19.00
Regeneration and Local Services,Business Durham CL0850,030674,Business Services General,Supplies and Services,342222,Computers and Communications,04-Oct-2019,000008854874519,FASTHOSTS INTERNET,4816,Comp hardware purch-network servers,6.34,1.06,5.28
Children and Young Peoples Services,Head of Early Help Inclusion & Vulnerable Children.,085965,Barnard,Supplies and Services,324117,Provisions E324,04-Oct-2019,000008854874553,TESCO STORES 6329,5411,Catering costs - provisions,184.58,0.00,184.58
Regeneration and Local Services,Culture Sport and Tourism,054813,Gala Theatre - Technical,Supplies and Services,304999,Equipment and Materials,04-Oct-2019,000008854874613,Prime Video,5968,Misc equipment tools and materials,7.99,0.00,7.99
Transformation and Partnerships,Business Support,052986,CYPS - Locality and Operational Support,Supplies and Services,304403,Equipment and Materials,04-Oct-2019,000008854874625,CITY TAXIS,5734,Other consumables,50.00,0.00,50.00
Regeneration and Local Services,Environmental Services,011060,C&G - Hardwick Park Catering,Supplies and Services,324117,Provisions E324,04-Oct-2019,000008854874675,HOPWELLS LTD,5811,Catering costs - provisions,183.96,30.66,153.30
Regeneration and Local Services,Environmental Services,011060,C&G - Hardwick Park Catering,Supplies and Services,324117,Provisions E324,04-Oct-2019,000008854874675 - 1,HOPWELLS LTD,5811,Catering costs - provisions,160.05,,160.05
Regeneration and Local Services,Environmental Services,011060,C&G - Hardwick Park Catering,Supplies and Services,324117,Provisions E324,04-Oct-2019,000008854874683,JR HOLLAND FOODSERVICE,5499,Catering costs - provisions,36.30,0.00,36.30
Resources BK0010,People & Talent Management,010984,Training and Development,Employees,040149,Recruitment Instruction and Training,04-Oct-2019,000008854874729,NCS VUE WAMITAB TEST,8299,Training-all costs,139.00,0.00,139.00
Resources BK0010,People & Talent Management,010984,Training and Development,Employees,040149,Recruitment Instruction and Training,04-Oct-2019,000008854874731,NCS VUE WAMITAB TEST,8299,Training-all costs,139.00,0.00,139.00
Regeneration and Local Services,Culture Sport and Tourism,054815,Gala Theatre Stage School,Supplies and Services,324117,Provisions E324,04-Oct-2019,000008854874739,SAINSBURYS SACAT 0776,5411,Catering costs - provisions,9.00,0.00,9.00
Regeneration and Local Services,Corporate Property and Land,021234,Catering - Locomotion,Supplies and Services,324117,Provisions E324,04-Oct-2019,000008854874777,HOPWELLS LTD,5811,Catering costs - provisions,64.86,10.81,54.05
Regeneration and Local Services,Corporate Property and Land,021234,Catering - Locomotion,Supplies and Services,324117,Provisions E324,04-Oct-2019,000008854874777 - 1,HOPWELLS LTD,5811,Catering costs - provisions,295.03,,295.03
Regeneration and Local Services,Corporate Property and Land,021234,Catering - Locomotion,Premises,145009,Cleaning and Domestic Supplies,04-Oct-2019,000008854874783,ALLIANCE DISPOSABLES L,2842,Other cleaning and domestic costs,133.73,22.30,111.43
Regeneration and Local Services,Corporate Property and Land,010525,Catering - Green Lane,Supplies and Services,324117,Provisions E324,04-Oct-2019,000008854874821,HOPWELLS LTD,5811,Catering costs - provisions,86.98,0.00,86.98
Children and Young Peoples Services,Head of Early Help Inclusion & Vulnerable Children.,088108,Spennymoor & Shildon 0-19 Targeted Family Support,Supplies and Services,384999,Miscellaneous Expenses,04-Oct-2019,000008854874869,AMZNMKTPLACE AMAZON.CO,5999,Other expenses,43.98,7.34,36.64
Children and Young Peoples Services,Head of Early Help Inclusion & Vulnerable Children.,071443,Stanley One Point Hub,Supplies and Services,304403,Equipment and Materials,04-Oct-2019,000008854874875,AMZNMKTPLACE AMAZON.CO,5999,Other consumables,3.48,0.58,2.90
Children and Young Peoples Services,Head of Early Help Inclusion & Vulnerable Children.,071443,Stanley One Point Hub,Supplies and Services,304403,Equipment and Materials,04-Oct-2019,000008854874875 - 1,AMZNMKTPLACE AMAZON.CO,5999,Other consumables,107.70,,107.70
Children and Young Peoples Services,Head of Childrens Social Care,085342,9 Cedar Drive Aycliffe,Supplies and Services,324117,Provisions E324,04-Oct-2019,000008854875027,TESCO STORES 2916,5411,Catering costs - provisions,27.60,0.00,27.60
Regeneration and Local Services,Corporate Property and Land,030691,Catering - Durham Dales Centre,Supplies and Services,324117,Provisions E324,04-Oct-2019,000008854875083,HOPWELLS LTD,5811,Catering costs - provisions,150.85,0.00,150.85
Regeneration and Local Services,Corporate Property and Land,030691,Catering - Durham Dales Centre,Supplies and Services,324117,Provisions E324,04-Oct-2019,000008854875089,HOPWELLS LTD,5811,Catering costs - provisions,145.10,0.00,145.10
Regeneration and Local Services,Corporate Property and Land,030691,Catering - Durham Dales Centre,Supplies and Services,324117,Provisions E324,04-Oct-2019,000008854875093,JR HOLLAND FOODSERVICE,5499,Catering costs - provisions,175.73,0.00,175.73
Regeneration and Local Services,Corporate Property and Land,030691,Catering - Durham Dales Centre,Supplies and Services,324117,Provisions E324,04-Oct-2019,000008854875099,JR HOLLAND FOODSERVICE,5499,Catering costs - provisions,149.60,0.00,149.60
Children and Young Peoples Services,Head of Childrens Social Care,085332,Middlestone Moor CU,Supplies and Services,308011,Furniture,04-Oct-2019,000008854875105,WAYFAIR #2191889214,5712,Furniture repair and replacement,429.99,0.00,429.99
Regeneration and Local Services,Development and Housing,031576,B& B - Temp Accom,Supplies and Services,364320,Grants to Voluntary Organisations,04-Oct-2019,000008854875157,BANNATYNE.CO.UK,7011,Accommodation assistance,252.00,42.00,210.00
Regeneration and Local Services,Environmental Services,031200,North Pennines Core,Transport,235057,Public Transport,04-Oct-2019,000008854875165,Trainline,4112,Staff travelling,255.90,0.00,255.90
Children and Young Peoples Services,Head of Childrens Social Care,085342,9 Cedar Drive Aycliffe,Employees,040149,Recruitment Instruction and Training,04-Oct-2019,000008854875261,PARENTPAY E-COM R,8220,Training-all costs,56.00,0.00,56.00
Transformation and Partnerships,Business Support,052986,CYPS - Locality and Operational Support,Supplies and Services,328041,Clothing uniforms and laundry E328,04-Oct-2019,000008854875317,WWW.ARGOS.CO.UK,5310,Clothing uniforms and laundry,392.94,0.00,392.94
Transformation and Partnerships,Business Support,052986,CYPS - Locality and Operational Support,Supplies and Services,328041,Clothing uniforms and laundry E328,04-Oct-2019,000008854875323,WWW.ARGOS.CO.UK,5310,Clothing uniforms and laundry,-38.99,0.00,-38.99
Regeneration and Local Services,Corporate Property and Land,021324,Catering - Meadowfield,Supplies and Services,324117,Provisions E324,04-Oct-2019,000008854875341,HOPWELLS LTD,5811,Catering costs - provisions,82.53,0.00,82.53
Regeneration and Local Services,Corporate Property and Land,021324,Catering - Meadowfield,Premises,145009,Cleaning and Domestic Supplies,04-Oct-2019,000008854875347,ALLIANCE DISPOSABLES L,2842,Other cleaning and domestic costs,46.37,7.73,38.64
Regeneration and Local Services,Development and Housing,031576,B& B - Temp Accom,Supplies and Services,364320,Grants to Voluntary Organisations,04-Oct-2019,000008854875375,PREMIER INN,3811,Accommodation assistance,192.50,0.00,192.50
Children and Young Peoples Services,Head of Early Help Inclusion & Vulnerable Children.,085801,CDYJS - Support,Employees,040149,Recruitment Instruction and Training,04-Oct-2019,000008854875379,BRITISHPSYCHOLOGICALSO,8699,Training-all costs,90.00,15.00,75.00
Children and Young Peoples Services,Head of Childrens Social Care,085342,9 Cedar Drive Aycliffe,Supplies and Services,324117,Provisions E324,04-Oct-2019,000008854875417,COOPLANDS BAKERY,5462,Catering costs - provisions,10.68,0.00,10.68
Children and Young Peoples Services,Head of Childrens Social Care,085342,9 Cedar Drive Aycliffe,Supplies and Services,304259,Equipment and Materials,04-Oct-2019,000008854875423,WILKO RETAIL LIMIT,5722,Equipment-purchase and rental,12.35,0.00,12.35
Children and Young Peoples Services,Head of Education and Skills,070169,Durham SSP,Supplies and Services,384199,Miscellaneous Expenses,04-Oct-2019,000008854875459,PAYPAL COVENTRYTRO,5331,Other hired and contracted services,187.90,0.00,187.90
Children and Young Peoples Services,Head of Education and Skills,070169,Durham SSP,Supplies and Services,384199,Miscellaneous Expenses,04-Oct-2019,000008854875465,EXECUTIVE ONLINE RETAI,5111,Other hired and contracted services,616.40,102.73,513.67
Regeneration and Local Services,Development and Housing,031500,Housing Solutions - Core Team,Supplies and Services,352001,Conference Expenses,04-Oct-2019,000008854875545,OYO TECHNOLOGY AND HOS,7011,Conferencesseminars fees etc,92.00,0.00,92.00
Regeneration and Local Services,Development and Housing,031500,Housing Solutions - Core Team,Supplies and Services,352001,Conference Expenses,04-Oct-2019,000008854875551,HOTEL 52,7011,Conferencesseminars fees etc,337.91,0.00,337.91
Regeneration and Local Services,Development and Housing,031500,Housing Solutions - Core Team,Supplies and Services,352001,Conference Expenses,04-Oct-2019,000008854875557,HOTEL 52,7011,Conferencesseminars fees etc,337.91,0.00,337.91
Regeneration and Local Services,Development and Housing,031500,Housing Solutions - Core Team,Supplies and Services,352001,Conference Expenses,04-Oct-2019,000008854875563,HOTEL 52,7011,Conferencesseminars fees etc,367.91,0.00,367.91
Regeneration and Local Services,Development and Housing,031500,Housing Solutions - Core Team,Supplies and Services,352001,Conference Expenses,04-Oct-2019,000008854875567,NEWCASTLE JEMSOND HOTE,7011,Conferencesseminars fees etc,156.00,0.00,156.00
Regeneration and Local Services,Development and Housing,031500,Housing Solutions - Core Team,Supplies and Services,352001,Conference Expenses,04-Oct-2019,000008854875569,NEWCASTLE JEMSOND HOTE,7011,Conferencesseminars fees etc,56.00,0.00,56.00
Regeneration and Local Services,Development and Housing,031500,Housing Solutions - Core Team,Supplies and Services,352001,Conference Expenses,04-Oct-2019,000008854875573,GRAINGER HOTEL,7011,Conferencesseminars fees etc,206.00,0.00,206.00
Regeneration and Local Services,Development and Housing,031500,Housing Solutions - Core Team,Supplies and Services,352001,Conference Expenses,04-Oct-2019,000008854875579,HAYAT HOTEL,7011,Conferencesseminars fees etc,267.00,0.00,267.00
Children and Young Peoples Services,Head of Childrens Social Care,085333,Coxhoe Satelite Home,Supplies and Services,324117,Provisions E324,04-Oct-2019,000008854875649,CO-OP GROUP 310016,5411,Catering costs - provisions,14.25,0.00,14.25
Adult and Health Services,Head of Adults,055310,Positive Journeys (Tudhoe),Supplies and Services,324117,Provisions E324,04-Oct-2019,000008854875679,CO-OP GROUP FOOD,5411,Catering costs - provisions,1.50,0.00,1.50
Regeneration and Local Services,Environmental Services,031071,Sustainability and Climate Change,Supplies and Services,324117,Provisions E324,04-Oct-2019,000008854875701,SAINSBURYS LOC (4320),5411,Catering costs - provisions,4.35,0.00,4.35
Regeneration and Local Services,Environmental Services,031071,Sustainability and Climate Change,Supplies and Services,324117,Provisions E324,04-Oct-2019,000008854875707,SAINSBURYS LOC4634,5411,Catering costs - provisions,3.55,0.59,2.96
Regeneration and Local Services,Development and Housing,030771,Durham Advance Flexible Fund,Supplies and Services,340001,Postages E340,04-Oct-2019,000008854875797,POST OFFICE COUNTER,9402,Postages,210.00,0.00,210.00
Regeneration and Local Services,Development and Housing,030554,International Relations 030554,Supplies and Services,384926,Miscellaneous Expenses,04-Oct-2019,000008854875839,ROYAL DUTCH AIRLINES (KLM),3010,International visits,436.60,0.00,436.60
Regeneration and Local Services,Development and Housing,030554,International Relations 030554,Supplies and Services,384926,Miscellaneous Expenses,04-Oct-2019,000008854875843,ROYAL DUTCH AIRLINES (KLM),3010,International visits,436.60,0.00,436.60
Regeneration and Local Services,Development and Housing,030554,International Relations 030554,Supplies and Services,384926,Miscellaneous Expenses,04-Oct-2019,000008854875849,ROYAL DUTCH AIRLINES (KLM),3010,International visits,436.60,0.00,436.60
Children and Young Peoples Services,Head of Education and Skills,070264,EDC Premises,Supplies and Services,324117,Provisions E324,04-Oct-2019,000008863374953,BATLEYS PERTH,5300,Catering costs - provisions,41.66,0.00,41.66
Children and Young Peoples Services,Head of Childrens Social Care,085501,Child Care Cases Legal Expenses,Supplies and Services,304403,Equipment and Materials,04-Oct-2019,000008863374969,GEN REGISTER OFFICE,9399,Other consumables,-31.50,0.00,-31.50
Regeneration and Local Services,Corporate Property and Land,021242,Catering - County Hall,Supplies and Services,324117,Provisions E324,04-Oct-2019,000008863375093,BATLEYS PERTH,5300,Catering costs - provisions,157.02,26.17,130.85
Regeneration and Local Services,Corporate Property and Land,021242,Catering - County Hall,Supplies and Services,324117,Provisions E324,04-Oct-2019,000008863375093 - 1,BATLEYS PERTH,5300,Catering costs - provisions,269.17,,269.17
Regeneration and Local Services,Corporate Property and Land,010525,Catering - Green Lane,Supplies and Services,324117,Provisions E324,04-Oct-2019,000008863375435,BATLEYS PERTH,5300,Catering costs - provisions,108.84,18.14,90.70
Regeneration and Local Services,Corporate Property and Land,010525,Catering - Green Lane,Supplies and Services,324117,Provisions E324,04-Oct-2019,000008863375435 - 1,BATLEYS PERTH,5300,Catering costs - provisions,103.87,,103.87
Adult and Health Services,Head of Adults,055643,Hawthorn House LD Respite Unit,Supplies and Services,324117,Provisions E324,04-Oct-2019,000008863375747,BATLEYS PERTH,5300,Catering costs - provisions,16.92,2.82,14.10
Adult and Health Services,Head of Adults,055643,Hawthorn House LD Respite Unit,Supplies and Services,324117,Provisions E324,04-Oct-2019,000008863375747 - 1,BATLEYS PERTH,5300,Catering costs - provisions,96.65,,96.65
Children and Young Peoples Services,Head of Childrens Social Care,085333,Coxhoe Satelite Home,Supplies and Services,324117,Provisions E324,05-Oct-2019,000008854873973,CO-OP GROUP 310016,5411,Catering costs - provisions,9.23,0.00,9.23
Children and Young Peoples Services,Head of Childrens Social Care,085332,Middlestone Moor CU,Supplies and Services,384871,Miscellaneous Expenses,05-Oct-2019,000008854874071,SPLASH,7997,Training-other activities,11.20,0.00,11.20
Children and Young Peoples Services,Head of Childrens Social Care,085332,Middlestone Moor CU,Supplies and Services,328041,Clothing uniforms and laundry E328,05-Oct-2019,000008854874079,ASDA STORES 4320,5411,Clothing uniforms and laundry,32.23,0.00,32.23
Children and Young Peoples Services,Head of Childrens Social Care,085332,Middlestone Moor CU,Supplies and Services,324117,Provisions E324,05-Oct-2019,000008854874083,ASDA SUPERSTORE 4987,5411,Catering costs - provisions,4.30,0.00,4.30
Children and Young Peoples Services,Head of Childrens Social Care,085352,Tow Law CU,Supplies and Services,328041,Clothing uniforms and laundry E328,05-Oct-2019,000008854874349,POUNDLAND LTD 1554,5310,Clothing uniforms and laundry,64.00,0.00,64.00
Children and Young Peoples Services,Head of Childrens Social Care,085352,Tow Law CU,Supplies and Services,328041,Clothing uniforms and laundry E328,05-Oct-2019,000008854874361,THEWORKS,5310,Clothing uniforms and laundry,3.00,0.50,2.50
Children and Young Peoples Services,Head of Childrens Social Care,085352,Tow Law CU,Supplies and Services,304259,Equipment and Materials,05-Oct-2019,000008854874365,WILKO RETAIL LIMIT,5722,Equipment-purchase and rental,20.05,0.00,20.05
Children and Young Peoples Services,Head of Childrens Social Care,085352,Tow Law CU,Supplies and Services,304259,Equipment and Materials,05-Oct-2019,000008854874369,REPUBLIC.COM RETAI,5941,Equipment-purchase and rental,56.99,0.00,56.99
Children and Young Peoples Services,Head of Childrens Social Care,085352,Tow Law CU,Supplies and Services,304999,Equipment and Materials,05-Oct-2019,000008854874377,HOME BARGAINS,5251,Misc equipment tools and materials,10.29,1.72,8.57
Children and Young Peoples Services,Head of Childrens Social Care,085352,Tow Law CU,Supplies and Services,324117,Provisions E324,05-Oct-2019,000008854874381,TESCO STORES 6329,5411,Catering costs - provisions,74.17,0.00,74.17
Children and Young Peoples Services,Head of Childrens Social Care,085352,Tow Law CU,Supplies and Services,324117,Provisions E324,05-Oct-2019,000008854874385,TESCO STORES 6329,5411,Catering costs - provisions,14.99,0.00,14.99
Children and Young Peoples Services,Head of Early Help Inclusion & Vulnerable Children.,085956,Lumley,Supplies and Services,324117,Provisions E324,05-Oct-2019,000008854874557,TESCO STORES 6329,5411,Catering costs - provisions,94.54,0.00,94.54
Children and Young Peoples Services,Head of Early Help Inclusion & Vulnerable Children.,085956,Lumley,Supplies and Services,324117,Provisions E324,05-Oct-2019,000008854874575,TESCO STORES 6329,5411,Catering costs - provisions,-12.00,0.00,-12.00
Regeneration and Local Services,Environmental Services,031200,North Pennines Core,Supplies and Services,348037,Subsistence E348,05-Oct-2019,000008854874637,CAFE VISITORS CENTRE,5813,Subsistence,5.44,0.00,5.44
Regeneration and Local Services,Environmental Services,031231,North Pennines - Plugging the Gaps,Supplies and Services,336005,Advertising E336,05-Oct-2019,000008854874655,FACEBK 6YXSSN6RE2,7311,Advertising other than for staff,40.00,0.00,40.00
Children and Young Peoples Services,Head of Early Help Inclusion & Vulnerable Children.,085962,Aycliffe Secure - Durham,Supplies and Services,328041,Clothing uniforms and laundry E328,05-Oct-2019,000008854874753,END CLOTHING,5651,Clothing uniforms and laundry,77.95,0.00,77.95
Children and Young Peoples Services,Head of Early Help Inclusion & Vulnerable Children.,085962,Aycliffe Secure - Durham,Supplies and Services,304259,Equipment and Materials,05-Oct-2019,000008854874759,SPORTSDIRECT.COM,5941,Equipment-purchase and rental,83.99,0.00,83.99
Children and Young Peoples Services,Head of Early Help Inclusion & Vulnerable Children.,085962,Aycliffe Secure - Durham,Supplies and Services,304259,Equipment and Materials,05-Oct-2019,000008854874763,SPORTSDIRECT.COM,5941,Equipment-purchase and rental,32.99,0.00,32.99
Children and Young Peoples Services,Head of Childrens Social Care,085341,High Etherley Satelite Home,Supplies and Services,328041,Clothing uniforms and laundry E328,05-Oct-2019,000008854874893,PRIMARK,5651,Clothing uniforms and laundry,14.00,0.00,14.00
Children and Young Peoples Services,Head of Childrens Social Care,085341,High Etherley Satelite Home,Supplies and Services,324117,Provisions E324,05-Oct-2019,000008854874899,TESCO STORES 6329,5411,Catering costs - provisions,28.09,0.00,28.09
Children and Young Peoples Services,Head of Childrens Social Care,085341,High Etherley Satelite Home,Supplies and Services,304999,Equipment and Materials,05-Oct-2019,000008854874903,BOOTS/0548,5912,Misc equipment tools and materials,2.35,0.00,2.35
Children and Young Peoples Services,Head of Childrens Social Care,085334,West Rainton Satelite Home,Supplies and Services,328041,Clothing uniforms and laundry E328,05-Oct-2019,000008854875201,THE WORKS,5310,Clothing uniforms and laundry,10.00,0.00,10.00
Children and Young Peoples Services,Head of Childrens Social Care,085334,West Rainton Satelite Home,Supplies and Services,348037,Subsistence E348,05-Oct-2019,000008854875209,INSHANGHAI,5812,Subsistence,35.20,0.00,35.20
Children and Young Peoples Services,Head of Childrens Social Care,085334,West Rainton Satelite Home,Supplies and Services,312009,Newspapers books and periodicals E312,05-Oct-2019,000008854875213,WH SMITH,5994,Newspapers books and periodicals,11.96,0.00,11.96
Children and Young Peoples Services,Head of Childrens Social Care,085334,West Rainton Satelite Home,Supplies and Services,384999,Miscellaneous Expenses,05-Oct-2019,000008854875219,ATG TICKETS,7922,Other expenses,125.00,0.00,125.00
Resources BK0010,Digital and Customer Services,065481,Technical Services 065481,Supplies and Services,342033,Computers and Communications,05-Oct-2019,000008854875305,AMZNMKTPLACE AMAZON.CO,5999,Computer hardware,419.70,70.00,349.70
Children and Young Peoples Services,Head of Childrens Social Care,085333,Coxhoe Satelite Home,Supplies and Services,324117,Provisions E324,05-Oct-2019,000008854875651,TESCO STORES 2371,5411,Catering costs - provisions,8.00,0.00,8.00
Children and Young Peoples Services,Head of Early Help Inclusion & Vulnerable Children.,085962,Aycliffe Secure - Durham,Supplies and Services,324117,Provisions E324,05-Oct-2019,000008854875663,SAINSBURYS SACAT 0555,5411,Catering costs - provisions,12.50,0.00,12.50
Regeneration and Local Services,Development and Housing,031500,Housing Solutions - Core Team,Supplies and Services,352001,Conference Expenses,06-Oct-2019,000008854873845,HAYAT HOTEL,7011,Conferencesseminars fees etc,89.00,0.00,89.00
Children and Young Peoples Services,Head of Early Help Inclusion & Vulnerable Children.,079599,Psychological-HQ,Supplies and Services,304403,Equipment and Materials,06-Oct-2019,000008854874167,AMZNMktplace,5999,Other consumables,131.82,21.97,109.85
Children and Young Peoples Services,Head of Childrens Social Care,085333,Coxhoe Satelite Home,Supplies and Services,324117,Provisions E324,06-Oct-2019,000008854874295,TESCO STORES 2916,5411,Catering costs - provisions,26.23,0.00,26.23
Children and Young Peoples Services,Head of Childrens Social Care,085333,Coxhoe Satelite Home,Supplies and Services,324117,Provisions E324,06-Oct-2019,000008854874301,TESCO STORES 2916,5411,Catering costs - provisions,6.10,0.00,6.10
Children and Young Peoples Services,Head of Childrens Social Care,085334,West Rainton Satelite Home,Supplies and Services,384237,Miscellaneous Expenses,06-Oct-2019,000008854874447,DYNAMIX,7999,Recreational exps outings parties,8.00,0.00,8.00
Children and Young Peoples Services,Head of Childrens Social Care,085334,West Rainton Satelite Home,Supplies and Services,384237,Miscellaneous Expenses,06-Oct-2019,000008854874451,DYNAMIX,7999,Recreational exps outings parties,4.00,0.00,4.00
Children and Young Peoples Services,Head of Early Help Inclusion & Vulnerable Children.,085954,Walworth,Supplies and Services,324117,Provisions E324,06-Oct-2019,000008854874563,TESCO STORES 6329,5411,Catering costs - provisions,95.58,0.00,95.58
Children and Young Peoples Services,Head of Early Help Inclusion & Vulnerable Children.,085957,Secure Management,Supplies and Services,304999,Equipment and Materials,06-Oct-2019,000008854874569,TESCO DELIVERY SAVER2,5968,Misc equipment tools and materials,6.99,0.00,6.99
Regeneration and Local Services,Culture Sport and Tourism,054813,Gala Theatre - Technical,Supplies and Services,328041,Clothing uniforms and laundry E328,06-Oct-2019,000008854874619,WWW.ARGOS.CO.UK,5310,Clothing uniforms and laundry,163.93,0.00,163.93
Children and Young Peoples Services,Head of Early Help Inclusion & Vulnerable Children.,085962,Aycliffe Secure - Durham,Supplies and Services,348037,Subsistence E348,06-Oct-2019,000008854874747,Just Eat,5814,Subsistence,58.50,0.00,58.50
Children and Young Peoples Services,Head of Childrens Social Care,085342,9 Cedar Drive Aycliffe,Supplies and Services,332047,Printing Stationery and Gen Off Exps,06-Oct-2019,000008854875033,RYMAN,5943,Stationery,27.91,0.00,27.91
Children and Young Peoples Services,Head of Childrens Social Care,085342,9 Cedar Drive Aycliffe,Supplies and Services,328041,Clothing uniforms and laundry E328,06-Oct-2019,000008854875035,THE RANGE,5311,Clothing uniforms and laundry,13.58,0.00,13.58
Transformation and Partnerships,Transformation,060290,Riep - Modern ways of working,Supplies and Services,384999,Miscellaneous Expenses,06-Oct-2019,000008854875675,Amazon.co.uk MO8RR3NS4,5969,Other expenses,93.48,15.60,77.88
Regeneration and Local Services,Corporate Property and Land,030691,Catering - Durham Dales Centre,Supplies and Services,324117,Provisions E324,06-Oct-2019,000008854875819,TESCO STORES 6329,5411,Catering costs - provisions,28.47,0.00,28.47
Children and Young Peoples Services,Head of Childrens Social Care,085342,9 Cedar Drive Aycliffe,Supplies and Services,304259,Equipment and Materials,06-Oct-2019,000008863375691,SPORTSDIRECT.COM,5941,Equipment-purchase and rental,22.98,3.83,19.15
Children and Young Peoples Services,Head of Childrens Social Care,085342,9 Cedar Drive Aycliffe,Supplies and Services,304259,Equipment and Materials,06-Oct-2019,000008863375691 - 1,SPORTSDIRECT.COM,5941,Equipment-purchase and rental,5.00,,5.00
Resources BK0010,Digital and Customer Services,065335,School Services - Implementations,Supplies and Services,304639,Equipment and Materials,06-Oct-2019,000008863375799,AMZNMKTPLACE AMAZON.CO,5999,Technicians-supplies,8.58,0.00,8.58
Resources BK0010,Digital and Customer Services,065335,School Services - Implementations,Supplies and Services,304639,Equipment and Materials,06-Oct-2019,000008863375807,AMZNMKTPLACE AMAZON.CO,5999,Technicians-supplies,-1.44,0.00,-1.44
Children and Young Peoples Services,Head of Childrens Social Care,085342,9 Cedar Drive Aycliffe,Supplies and Services,304259,Equipment and Materials,07-Oct-2019,000008854875265,Kindle Svcs MO8267J44,5735,Equipment-purchase and rental,6.10,0.00,6.10
Resources BK0010,Digital and Customer Services,065481,Technical Services 065481,Supplies and Services,344033,Telephones,07-Oct-2019,000008863374927,FS.COM LIMITED,5045,Telephones general-all costs,495.00,0.00,495.00
Resources BK0010,Digital and Customer Services,065321,Operations - Digital & Customer Services,Supplies and Services,312009,Newspapers books and periodicals E312,07-Oct-2019,000008863374931,Amazon.co.uk MO74V9JY4,5969,Newspapers books and periodicals,12.59,0.00,12.59
Regeneration and Local Services,Environmental Services,010909,C&G - Technical & Service Development Team,Supplies and Services,344033,Telephones,07-Oct-2019,000008863374933,AMZNMktplace,5999,Telephones general-all costs,11.08,1.85,9.23
Adult and Health Services,Head of Adults,052760,OP Management,Supplies and Services,304335,Equipment and Materials,07-Oct-2019,000008863374939,AMZNMktplace,5999,ICT supplies etc,27.99,4.67,23.32
Resources BK0010,Digital and Customer Services,070204,School Services - Systems,Supplies and Services,342053,Computers and Communications,07-Oct-2019,000008863374941,GOOGLE APPS LOGIN FOR,5734,Computer software,182.84,0.00,182.84
Adult and Health Services,Commissioning inc Supporting People,052100,Supporting the Provider Market,Supplies and Services,338057,Services,07-Oct-2019,000008863374943,GBP WESSEX MEDICAL LTD,5047,Medical fees 338057,476.22,79.37,396.85
Regeneration and Local Services,Technical Services CM0300,011039,Highway Capitalised Maint-Carriageway UNC Class Roads,Supplies and Services,304259,Equipment and Materials,07-Oct-2019,000008863374945,WWW.DURHAM.GOV.UK,9399,Equipment-purchase and rental,116.00,0.00,116.00
Children and Young Peoples Services,Head of Education and Skills,070264,EDC Premises,Supplies and Services,324117,Provisions E324,07-Oct-2019,000008863374959,FREEMAN CATERING BUTCH,5422,Catering costs - provisions,58.44,0.00,58.44
Regeneration and Local Services,Environmental Services,010367,C&G - South Grounds Maintenance,Supplies and Services,304221,Equipment and Materials,07-Oct-2019,000008863375023,CARRS BILLINGTON SPENN,5599,Direct materials,92.26,15.38,76.88
Children and Young Peoples Services,Head of Early Help Inclusion & Vulnerable Children.,088105,BA/BC/Crook 0-19 Community Family Hub,Supplies and Services,304259,Equipment and Materials,07-Oct-2019,000008863375079,Amazon.co.uk MO6ZD7TP4,5969,Equipment-purchase and rental,37.12,6.19,30.93
Regeneration and Local Services,Corporate Property and Land,021242,Catering - County Hall,Supplies and Services,324117,Provisions E324,07-Oct-2019,000008863375101,FREEMAN CATERING BUTCH,5422,Catering costs - provisions,176.57,0.00,176.57
Children and Young Peoples Services,Head of Childrens Social Care,085332,Middlestone Moor CU,Supplies and Services,384871,Miscellaneous Expenses,07-Oct-2019,000008863375111,Hotel on Booking.com S,7011,Training-other activities,195.16,0.00,195.16
Children and Young Peoples Services,Head of Childrens Social Care,085332,Middlestone Moor CU,Supplies and Services,324117,Provisions E324,07-Oct-2019,000008863375117,ASDA SUPERSTORE 4987,5411,Catering costs - provisions,11.24,0.00,11.24
Children and Young Peoples Services,Head of Childrens Social Care,085332,Middlestone Moor CU,Supplies and Services,384871,Miscellaneous Expenses,07-Oct-2019,000008863375121,footballticketnet.com,7922,Training-other activities,205.33,0.00,205.33
Children and Young Peoples Services,Head of Childrens Social Care,085361,LAC & Permanence Team 1,Supplies and Services,304403,Equipment and Materials,07-Oct-2019,000008863375151,HM PASSPORT OFFICE,9399,Other consumables,49.00,0.00,49.00
Regeneration and Local Services,Development and Housing,031576,B& B - Temp Accom,Supplies and Services,364320,Grants to Voluntary Organisations,07-Oct-2019,000008863375177,THE HONEST LAWYER,7011,Accommodation assistance,78.95,0.00,78.95
Children and Young Peoples Services,Head of Early Help Inclusion & Vulnerable Children.,088109,Spennymoor & Shildon 0-19 Community Family Hub,Supplies and Services,324117,Provisions E324,07-Oct-2019,000008863375211,TESCO STORES 6329,5411,Catering costs - provisions,12.44,0.00,12.44
Children and Young Peoples Services,Head of Education and Skills,071732,Dean Bank Childcare,Supplies and Services,304403,Equipment and Materials,07-Oct-2019,000008863375225,AMZNMktplace,5999,Other consumables,7.99,1.33,6.66
Children and Young Peoples Services,Head of Education and Skills,071732,Dean Bank Childcare,Supplies and Services,324117,Provisions E324,07-Oct-2019,000008863375229,ASDA GROCERIES ONLINE,5411,Catering costs - provisions,50.92,0.00,50.92
Children and Young Peoples Services,Head of Education and Skills,071732,Dean Bank Childcare,Supplies and Services,324117,Provisions E324,07-Oct-2019,000008863375235,ASDA GROCERIES ONLINE,5411,Catering costs - provisions,40.30,0.00,40.30
Children and Young Peoples Services,Head of Education and Skills,071732,Dean Bank Childcare,Supplies and Services,324117,Provisions E324,07-Oct-2019,000008863375239,ASDA GROCERIES ONLINE,5411,Catering costs - provisions,-0.06,0.00,-0.06
Regeneration and Local Services,Development and Housing,031500,Housing Solutions - Core Team,Supplies and Services,364320,Grants to Voluntary Organisations,07-Oct-2019,000008863375349,HOTEL 52,7011,Accommodation assistance,317.88,52.98,264.90
Regeneration and Local Services,Development and Housing,031500,Housing Solutions - Core Team,Supplies and Services,364320,Grants to Voluntary Organisations,07-Oct-2019,000008863375349 - 1,HOTEL 52,7011,Accommodation assistance,0.03,,0.03
Regeneration and Local Services,Development and Housing,030771,Durham Advance Flexible Fund,Employees,040149,Recruitment Instruction and Training,07-Oct-2019,000008863375355,WAYBRITE LTD,8249,Training-all costs,317.97,0.00,317.97
Children and Young Peoples Services,Head of Early Help Inclusion & Vulnerable Children.,071445,Chester le Street One Point Hub,Supplies and Services,304259,Equipment and Materials,07-Oct-2019,000008863375377,DARLINGTON BC INTERNET,9399,Equipment-purchase and rental,22.00,0.00,22.00
Children and Young Peoples Services,Head of Early Help Inclusion & Vulnerable Children.,085952,Secure Education,Supplies and Services,324117,Provisions E324,07-Oct-2019,000008863375381,TESCO STORES 6329,5411,Catering costs - provisions,210.22,0.00,210.22
Regeneration and Local Services,Culture Sport and Tourism,054813,Gala Theatre - Technical,Supplies and Services,304259,Equipment and Materials,07-Oct-2019,000008863375389,Prime Video MO6U81TD4,5735,Equipment-purchase and rental,1.99,0.00,1.99
Regeneration and Local Services,Environmental Services,011060,C&G - Hardwick Park Catering,Supplies and Services,324117,Provisions E324,07-Oct-2019,000008863375399,FREEMAN CATERING BUTCH,5422,Catering costs - provisions,27.60,0.00,27.60
Regeneration and Local Services,Environmental Services,011060,C&G - Hardwick Park Catering,Supplies and Services,324117,Provisions E324,07-Oct-2019,000008863375403,FREEMAN CATERING BUTCH,5422,Catering costs - provisions,33.10,0.00,33.10
Regeneration and Local Services,Corporate Property and Land,021234,Catering - Locomotion,Supplies and Services,324117,Provisions E324,07-Oct-2019,000008863375415,FREEMAN CATERING BUTCH,5422,Catering costs - provisions,90.97,0.00,90.97
Regeneration and Local Services,Corporate Property and Land,010525,Catering - Green Lane,Supplies and Services,324117,Provisions E324,07-Oct-2019,000008863375445,FREEMAN CATERING BUTCH,5422,Catering costs - provisions,11.50,0.00,11.50
Regeneration and Local Services,Corporate Property and Land,010525,Catering - Green Lane,Supplies and Services,324117,Provisions E324,07-Oct-2019,000008863375451,FREEMAN CATERING BUTCH,5422,Catering costs - provisions,43.35,0.00,43.35
Regeneration and Local Services,Development and Housing,030771,Durham Advance Flexible Fund,Supplies and Services,304221,Equipment and Materials,07-Oct-2019,000008863375455,SCREWFIX DIRECT,5200,Direct materials,289.97,48.33,241.64
Children and Young Peoples Services,Head of Early Help Inclusion & Vulnerable Children.,088108,Spennymoor & Shildon 0-19 Targeted Family Support,Supplies and Services,304649,Equipment and Materials,07-Oct-2019,000008863375491,AMZNMktplace,5999,Toys,358.50,0.00,358.50
Children and Young Peoples Services,Head of Childrens Social Care,085626,Families First Shildon/Chilton,Supplies and Services,384999,Miscellaneous Expenses,07-Oct-2019,000008863375493,ALDI 15 774,5411,Other expenses,17.56,0.00,17.56
Children and Young Peoples Services,Head of Childrens Social Care,085341,High Etherley Satelite Home,Supplies and Services,324117,Provisions E324,07-Oct-2019,000008863375521,TESCO STORES 2371,5411,Catering costs - provisions,192.29,0.00,192.29
Children and Young Peoples Services,Head of Childrens Social Care,085334,West Rainton Satelite Home,Supplies and Services,324117,Provisions E324,07-Oct-2019,000008863375533,TESCO STORES 2371,5411,Catering costs - provisions,71.15,0.00,71.15
Regeneration and Local Services,Development and Housing,030771,Durham Advance Flexible Fund,Supplies and Services,384700,Miscellaneous Expenses,07-Oct-2019,000008863375613,IZ Cafedral Durham,5812,Miscellaneous grants,6.30,0.00,6.30
Regeneration and Local Services,Development and Housing,030771,Durham Advance Flexible Fund,Transport,235057,Public Transport,07-Oct-2019,000008863375619,WALKERGATE CAR PAR,7523,Staff travelling,3.00,0.00,3.00
Children and Young Peoples Services,Head of Childrens Social Care,085333,Coxhoe Satelite Home,Supplies and Services,348037,Subsistence E348,07-Oct-2019,000008863375641,SUBWAY THINGFORD NORTH,5814,Subsistence,13.38,0.00,13.38
Children and Young Peoples Services,Head of Childrens Social Care,085333,Coxhoe Satelite Home,Supplies and Services,324117,Provisions E324,07-Oct-2019,000008863375649,ASDA SUPERSTORE 4987,5411,Catering costs - provisions,92.41,0.00,92.41
Children and Young Peoples Services,Head of Childrens Social Care,085342,9 Cedar Drive Aycliffe,Supplies and Services,324117,Provisions E324,07-Oct-2019,000008863375685,TESCO STORES 2916,5411,Catering costs - provisions,6.00,0.00,6.00
Regeneration and Local Services,Corporate Property and Land,030691,Catering - Durham Dales Centre,Supplies and Services,324117,Provisions E324,07-Oct-2019,000008863375699,FREEMAN CATERING BUTCH,5422,Catering costs - provisions,89.44,0.00,89.44
Regeneration and Local Services,Corporate Property and Land,030691,Catering - Durham Dales Centre,Supplies and Services,324117,Provisions E324,07-Oct-2019,000008863375705,FREEMAN CATERING BUTCH,5422,Catering costs - provisions,61.47,0.00,61.47
Regeneration and Local Services,Corporate Property and Land,030691,Catering - Durham Dales Centre,Supplies and Services,324117,Provisions E324,07-Oct-2019,000008863375707,FREEMAN CATERING BUTCH,5422,Catering costs - provisions,88.09,0.00,88.09
Regeneration and Local Services,Corporate Property and Land,030691,Catering - Durham Dales Centre,Supplies and Services,324117,Provisions E324,07-Oct-2019,000008863375709,FREEMAN CATERING BUTCH,5422,Catering costs - provisions,62.87,0.00,62.87
Children and Young Peoples Services,Head of Childrens Social Care,085332,Middlestone Moor CU,Supplies and Services,324117,Provisions E324,07-Oct-2019,000008863375713,ASDA GROCERIES ONLINE,5411,Catering costs - provisions,122.89,0.00,122.89
Children and Young Peoples Services,Head of Childrens Social Care,085332,Middlestone Moor CU,Supplies and Services,324117,Provisions E324,07-Oct-2019,000008863375719,ASDA GROCERIES ONLINE,5411,Catering costs - provisions,-0.25,0.00,-0.25
Adult and Health Services,Head of Adults,055643,Hawthorn House LD Respite Unit,Supplies and Services,324117,Provisions E324,07-Oct-2019,000008863375751,FREEMAN CATERING BUTCH,5422,Catering costs - provisions,50.29,0.00,50.29
Children and Young Peoples Services,Head of Childrens Social Care,085334,West Rainton Satelite Home,Supplies and Services,304403,Equipment and Materials,07-Oct-2019,000008863375771,AMZNMktplace,5999,Other consumables,16.99,0.00,16.99
Regeneration and Local Services,Environmental Services,010301,C&G - North Grounds Maintenance,Supplies and Services,304999,Equipment and Materials,07-Oct-2019,000008863375785,HEXHAM MACHINERY CENTR,780,Misc equipment tools and materials,191.88,31.98,159.90
Resources BK0010,Digital and Customer Services,065236,Operations - Desktop Services,Supplies and Services,342033,Computers and Communications,07-Oct-2019,000008863375803,AMZNMktplace,5999,Computer hardware,13.99,0.00,13.99
Children and Young Peoples Services,Head of Childrens Social Care,085342,9 Cedar Drive Aycliffe,Supplies and Services,384999,Miscellaneous Expenses,07-Oct-2019,000008863375811,Amazon.co.uk MO7040JG4,5969,Other expenses,40.00,0.00,40.00
Children and Young Peoples Services,Head of Childrens Social Care,085342,9 Cedar Drive Aycliffe,Supplies and Services,304999,Equipment and Materials,07-Oct-2019,000008863375815,Amazon Prime MO5YI5T24,5968,Misc equipment tools and materials,7.99,0.00,7.99
Regeneration and Local Services,Corporate Property and Land,021324,Catering - Meadowfield,Supplies and Services,324117,Provisions E324,07-Oct-2019,000008863375827,FREEMAN CATERING BUTCH,5422,Catering costs - provisions,62.61,0.00,62.61
Regeneration and Local Services,Corporate Property and Land,021324,Catering - Meadowfield,Supplies and Services,324117,Provisions E324,07-Oct-2019,000008863375831,FREEMAN CATERING BUTCH,5422,Catering costs - provisions,59.44,0.00,59.44
Regeneration and Local Services,Corporate Property and Land,021324,Catering - Meadowfield,Supplies and Services,324117,Provisions E324,07-Oct-2019,000008863375837,FREEMAN CATERING BUTCH,5422,Catering costs - provisions,62.07,0.00,62.07
Children and Young Peoples Services,Head of Education and Skills,071802,Louisa Cent Nursery,Supplies and Services,324117,Provisions E324,07-Oct-2019,000008863375895,ASDA SUPERSTORE,5411,Catering costs - provisions,107.30,0.00,107.30
Children and Young Peoples Services,Head of Education and Skills,070169,Durham SSP,Supplies and Services,384199,Miscellaneous Expenses,07-Oct-2019,000008863375909,CYCLE EXPERIENCE,8220,Other hired and contracted services,252.00,42.00,210.00
Children and Young Peoples Services,Head of Childrens Social Care,085380,Operations Manager LAC Resources,Supplies and Services,324117,Provisions E324,07-Oct-2019,000008863375943,ASDA STORES,5411,Catering costs - provisions,11.28,0.00,11.28
Adult and Health Services,Head of Adults,055310,Positive Journeys (Tudhoe),Supplies and Services,324117,Provisions E324,07-Oct-2019,000008863376017,TESCO STORES 2371,5411,Catering costs - provisions,2.50,0.00,2.50
Adult and Health Services,Head of Adults,055309,Peterlee Pathways,Supplies and Services,304259,Equipment and Materials,07-Oct-2019,000008863376045,WILKO RETAIL LIMIT,5722,Equipment-purchase and rental,13.00,0.00,13.00
Children and Young Peoples Services,Head of Childrens Social Care,085650,Pre Birth Team,Supplies and Services,384999,Miscellaneous Expenses,07-Oct-2019,000008863376053,Amazon.co.uk MO6957TL4,5969,Other expenses,37.98,6.33,31.65
Regeneration and Local Services,Business Durham CL0850,030694,Plexus 2,Supplies and Services,384999,Miscellaneous Expenses,07-Oct-2019,000008863376081,Amazon.co.uk MO5M18T14,5969,Other expenses,17.53,2.92,14.61
Regeneration and Local Services,Business Durham CL0850,030694,Plexus 2,Supplies and Services,304403,Equipment and Materials,07-Oct-2019,000008863376089,AMZNMktplace,5999,Other consumables,7.92,1.32,6.60
Regeneration and Local Services,Corporate Property and Land,021242,Catering - County Hall,Supplies and Services,324117,Provisions E324,07-Oct-2019,000008867695307,BATLEYS PERTH,5300,Catering costs - provisions,-27.55,0.00,-27.55
Regeneration and Local Services,Culture Sport and Tourism,054812,Gala Theatre - Catering etc,Supplies and Services,324117,Provisions E324,07-Oct-2019,000008867695351,BATLEYS PERTH,5300,Catering costs - provisions,11.40,1.90,9.50
Regeneration and Local Services,Culture Sport and Tourism,054812,Gala Theatre - Catering etc,Supplies and Services,324117,Provisions E324,07-Oct-2019,000008867695351 - 1,BATLEYS PERTH,5300,Catering costs - provisions,73.85,,73.85
Regeneration and Local Services,Environmental Services,011060,C&G - Hardwick Park Catering,Supplies and Services,324117,Provisions E324,07-Oct-2019,000008867695797,BATLEYS PERTH,5300,Catering costs - provisions,-24.26,-4.04,-20.22
Children and Young Peoples Services,Head of Childrens Social Care,085333,Coxhoe Satelite Home,Transport,215995,Running Costs of Vehicles,07-Oct-2019,000008867696131,BP THINFORD NORTH,5541,Vehicle running expenses,2.75,0.00,2.75
Regeneration and Local Services,Corporate Property and Land,030691,Catering - Durham Dales Centre,Supplies and Services,324117,Provisions E324,07-Oct-2019,000008867696231,BATLEYS PERTH,5300,Catering costs - provisions,46.68,7.78,38.90
Regeneration and Local Services,Corporate Property and Land,030691,Catering - Durham Dales Centre,Supplies and Services,324117,Provisions E324,07-Oct-2019,000008867696231 - 1,BATLEYS PERTH,5300,Catering costs - provisions,155.87,,155.87
Regeneration and Local Services,Corporate Property and Land,030691,Catering - Durham Dales Centre,Supplies and Services,324117,Provisions E324,07-Oct-2019,000008867696243,BATLEYS PERTH,5300,Catering costs - provisions,13.79,2.30,11.49
Resources BK0010,Digital and Customer Services,070204,School Services - Systems,Supplies and Services,342053,Computers and Communications,08-Oct-2019,000008863374949,GOOGLE APPS LOGIN FOR,5734,Computer software,5.03,0.00,5.03
Children and Young Peoples Services,Head of Childrens Social Care,085332,Middlestone Moor CU,Supplies and Services,384871,Miscellaneous Expenses,08-Oct-2019,000008863375123,Hotel on Booking.com S,7011,Training-other activities,5.37,0.00,5.37
Children and Young Peoples Services,Head of Childrens Social Care,085332,Middlestone Moor CU,Supplies and Services,384871,Miscellaneous Expenses,08-Oct-2019,000008863375127,footballticketnet.com,7922,Training-other activities,5.65,0.00,5.65
Children and Young Peoples Services,Head of Education and Skills,071801,Selby Cottage Childcare Centre,Supplies and Services,324117,Provisions E324,08-Oct-2019,000008867694933,TESCO STORES 2278,5411,Catering costs - provisions,15.07,0.00,15.07
Children and Young Peoples Services,Head of Education and Skills,071801,Selby Cottage Childcare Centre,Supplies and Services,304999,Equipment and Materials,08-Oct-2019,000008867694945,Amazon Prime MO8ZD6AR4,5968,Misc equipment tools and materials,7.99,0.00,7.99
Children and Young Peoples Services,Head of Childrens Social Care,085501,Child Care Cases Legal Expenses,Supplies and Services,304403,Equipment and Materials,08-Oct-2019,000008867695043,SUNDERLAND CC,7523,Other consumables,33.00,0.00,33.00
Regeneration and Local Services,Development and Housing,030773,CLLD North,Supplies and Services,328041,Clothing uniforms and laundry E328,08-Oct-2019,000008867695055,PEACOCK STORES LTD,5331,Clothing uniforms and laundry,44.05,0.00,44.05
Regeneration and Local Services,Development and Housing,031500,Housing Solutions - Core Team,Supplies and Services,352001,Conference Expenses,08-Oct-2019,000008867695061,AYCLIFFE BIZ,7011,Conferencesseminars fees etc,140.00,23.33,116.67
Regeneration and Local Services,Environmental Services,010367,C&G - South Grounds Maintenance,Supplies and Services,304221,Equipment and Materials,08-Oct-2019,000008867695225,CARRS BILLINGTON SPENN,5599,Direct materials,139.50,23.25,116.25
Regeneration and Local Services,Environmental Services,010367,C&G - South Grounds Maintenance,Supplies and Services,304221,Equipment and Materials,08-Oct-2019,000008867695233,CARRS BILLINGTON SPENN,5599,Direct materials,-92.26,0.00,-92.26
Regeneration and Local Services,Corporate Property and Land,021242,Catering - County Hall,Supplies and Services,324117,Provisions E324,08-Oct-2019,000008867695279,JR HOLLAND FOODSERVICE,5499,Catering costs - provisions,13.80,0.00,13.80
Regeneration and Local Services,Corporate Property and Land,021242,Catering - County Hall,Supplies and Services,324117,Provisions E324,08-Oct-2019,000008867695287,JR HOLLAND FOODSERVICE,5499,Catering costs - provisions,177.60,0.00,177.60
Regeneration and Local Services,Corporate Property and Land,021242,Catering - County Hall,Supplies and Services,324117,Provisions E324,08-Oct-2019,000008867695293,JR HOLLAND FOODSERVICE,5499,Catering costs - provisions,31.51,0.00,31.51
Regeneration and Local Services,Corporate Property and Land,021242,Catering - County Hall,Supplies and Services,324117,Provisions E324,08-Oct-2019,000008867695297,JR HOLLAND FOODSERVICE,5499,Catering costs - provisions,130.16,0.00,130.16
Regeneration and Local Services,Corporate Property and Land,021242,Catering - County Hall,Supplies and Services,324117,Provisions E324,08-Oct-2019,000008867695301,JR HOLLAND FOODSERVICE,5499,Catering costs - provisions,243.03,0.00,243.03
Resources BK0010,Digital and Customer Services,065481,Technical Services 065481,Supplies and Services,372009,Subscriptions E372,08-Oct-2019,000008867695325,NOMINET UK,7392,Subscriptions 372009,13.50,2.25,11.25
Resources BK0010,Digital and Customer Services,065481,Technical Services 065481,Supplies and Services,372009,Subscriptions E372,08-Oct-2019,000008867695329,NOMINET UK,7392,Subscriptions 372009,13.50,2.25,11.25
Regeneration and Local Services,Environmental Services,010367,C&G - South Grounds Maintenance,Supplies and Services,304999,Equipment and Materials,08-Oct-2019,000008867695337,Snowballs,5251,Misc equipment tools and materials,19.20,3.20,16.00
Regeneration and Local Services,Culture Sport and Tourism,054812,Gala Theatre - Catering etc,Supplies and Services,324117,Provisions E324,08-Oct-2019,000008867695359,JR HOLLAND FOODSERVICE,5499,Catering costs - provisions,52.53,0.00,52.53
Children and Young Peoples Services,Head of Early Help Inclusion & Vulnerable Children.,079599,Psychological-HQ,Third Party Payments,430100,Rendered by Private Contractors,08-Oct-2019,000008867695375,EB INCLUDED NORTH,7399,Payments to sub-contractors,11.25,0.00,11.25
Regeneration and Local Services,Development and Housing,030773,CLLD North,Transport,235057,Public Transport,08-Oct-2019,000008867695431,ARRIVA NORTH EAST,4131,Staff travelling,4.70,0.00,4.70
Regeneration and Local Services,Development and Housing,030773,CLLD North,Supplies and Services,304259,Equipment and Materials,08-Oct-2019,000008867695439,Durham County CNCL,9399,Equipment-purchase and rental,11.00,0.00,11.00
Regeneration and Local Services,Development and Housing,031576,B& B - Temp Accom,Supplies and Services,364320,Grants to Voluntary Organisations,08-Oct-2019,000008867695501,HOTEL 52,7011,Accommodation assistance,335.92,55.99,279.93
Regeneration and Local Services,Development and Housing,031576,B& B - Temp Accom,Supplies and Services,364320,Grants to Voluntary Organisations,08-Oct-2019,000008867695509,BANNATYNE.CO.UK,7011,Accommodation assistance,55.00,9.17,45.83
Children and Young Peoples Services,Head of Education and Skills,071732,Dean Bank Childcare,Supplies and Services,304403,Equipment and Materials,08-Oct-2019,000008867695545,AMZNMktplace,5999,Other consumables,98.00,0.00,98.00
Children and Young Peoples Services,Head of Education and Skills,071732,Dean Bank Childcare,Supplies and Services,324117,Provisions E324,08-Oct-2019,000008867695551,TESCO STORES 2916,5411,Catering costs - provisions,111.01,0.00,111.01
Children and Young Peoples Services,Head of Education and Skills,071732,Dean Bank Childcare,Supplies and Services,324117,Provisions E324,08-Oct-2019,000008867695559,SAINSBURYS SACAT (2303,5411,Catering costs - provisions,4.85,0.00,4.85
Children and Young Peoples Services,Head of Education and Skills,071732,Dean Bank Childcare,Supplies and Services,384999,Miscellaneous Expenses,08-Oct-2019,000008867695565,Amazon.co.uk MO06C8AI4,5969,Other expenses,22.77,3.80,18.97
Children and Young Peoples Services,Head of Education and Skills,071732,Dean Bank Childcare,Supplies and Services,328041,Clothing uniforms and laundry E328,08-Oct-2019,000008867695573,B & M RETAIL,5310,Clothing uniforms and laundry,68.13,0.00,68.13
Regeneration and Local Services,Culture Sport and Tourism,054813,Gala Theatre - Technical,Supplies and Services,304403,Equipment and Materials,08-Oct-2019,000008867695581,AMZNMktplace,5999,Other consumables,91.54,0.00,91.54
Regeneration and Local Services,Culture Sport and Tourism,054813,Gala Theatre - Technical,Supplies and Services,304221,Equipment and Materials,08-Oct-2019,000008867695589,SFX SUPPLIERS AND HIRI,7394,Direct materials,34.20,0.00,34.20
Regeneration and Local Services,Culture Sport and Tourism,054813,Gala Theatre - Technical,Supplies and Services,340001,Postages E340,08-Oct-2019,000008867695593,TNT_DIRECT,4215,Postages,17.16,0.00,17.16
Regeneration and Local Services,Culture Sport and Tourism,054813,Gala Theatre - Technical,Supplies and Services,340001,Postages E340,08-Oct-2019,000008867695601,TNT_DIRECT,4215,Postages,27.94,0.00,27.94
Regeneration and Local Services,Environmental Services,031221,North Pennines - Bowlees,Supplies and Services,304403,Equipment and Materials,08-Oct-2019,000008867695623,WWW.REXLONDONTRADE.COM,5947,Other consumables,162.86,27.14,135.72
Regeneration and Local Services,Development and Housing,030771,Durham Advance Flexible Fund,Transport,235057,Public Transport,08-Oct-2019,000008867695655,ARRIVA NORTH EAST,4131,Staff travelling,26.20,0.00,26.20
Regeneration and Local Services,Development and Housing,030771,Durham Advance Flexible Fund,Supplies and Services,304259,Equipment and Materials,08-Oct-2019,000008867695663,GEN REGISTER OFFICE,9399,Equipment-purchase and rental,14.00,0.00,14.00
Regeneration and Local Services,Development and Housing,030771,Durham Advance Flexible Fund,Supplies and Services,324117,Provisions E324,08-Oct-2019,000008867695695,ASDA STORES,5411,Catering costs - provisions,1.20,0.00,1.20
Children and Young Peoples Services,Head of Early Help Inclusion & Vulnerable Children.,085965,Barnard,Supplies and Services,328041,Clothing uniforms and laundry E328,08-Oct-2019,000008867695747,VERY,5964,Clothing uniforms and laundry,31.99,0.00,31.99
Children and Young Peoples Services,Head of Early Help Inclusion & Vulnerable Children.,085965,Barnard,Supplies and Services,328041,Clothing uniforms and laundry E328,08-Oct-2019,000008867695753,SPORTSDIRECT.COM,5941,Clothing uniforms and laundry,28.99,4.83,24.16
Regeneration and Local Services,Environmental Services,026591,C&G - Hardwick Park,Supplies and Services,304259,Equipment and Materials,08-Oct-2019,000008867695775,AMZNMktplace,5999,Equipment-purchase and rental,6.95,1.16,5.79
Regeneration and Local Services,Environmental Services,031231,North Pennines - Plugging the Gaps,Supplies and Services,336005,Advertising E336,08-Oct-2019,000008867695781,FACEBK G8E35NARE2,7311,Advertising other than for staff,40.00,0.00,40.00
Regeneration and Local Services,Environmental Services,011060,C&G - Hardwick Park Catering,Supplies and Services,324117,Provisions E324,08-Oct-2019,000008867695793,JR HOLLAND FOODSERVICE,5499,Catering costs - provisions,32.74,0.00,32.74
Resources BK0010,People & Talent Management,010984,Training and Development,Employees,040149,Recruitment Instruction and Training,08-Oct-2019,000008867695835,WWW.WAMITAB.ORG.UK,8299,Training-all costs,295.00,0.00,295.00
Regeneration and Local Services,Development and Housing,030755,Durham Employment & Skills - Other Training,Employees,040149,Recruitment Instruction and Training,08-Oct-2019,000008867695845,WWW.CSKILLS.ORG,8249,Training-all costs,36.00,6.00,30.00
Regeneration and Local Services,Corporate Property and Land,021234,Catering - Locomotion,Supplies and Services,324117,Provisions E324,08-Oct-2019,000008867695853,JR HOLLAND FOODSERVICE,5499,Catering costs - provisions,72.87,0.00,72.87
Regeneration and Local Services,Corporate Property and Land,010525,Catering - Green Lane,Supplies and Services,324117,Provisions E324,08-Oct-2019,000008867695919,JR HOLLAND FOODSERVICE,5499,Catering costs - provisions,119.77,0.00,119.77
Regeneration and Local Services,Development and Housing,030771,Durham Advance Flexible Fund,Supplies and Services,304259,Equipment and Materials,08-Oct-2019,000008867695927,DURHAM TEA ROOM,9399,Equipment-purchase and rental,5.00,0.00,5.00
Children and Young Peoples Services,Head of Early Help Inclusion & Vulnerable Children.,088105,BA/BC/Crook 0-19 Community Family Hub,Supplies and Services,324117,Provisions E324,08-Oct-2019,000008867695963,ASDA STORES,5411,Catering costs - provisions,11.75,0.00,11.75
Children and Young Peoples Services,Head of Early Help Inclusion & Vulnerable Children.,088108,Spennymoor & Shildon 0-19 Targeted Family Support,Supplies and Services,324117,Provisions E324,08-Oct-2019,000008867695969,LIDL GB BSHP AUCKLAND,5411,Catering costs - provisions,0.79,0.00,0.79
Children and Young Peoples Services,Head of Early Help Inclusion & Vulnerable Children.,071443,Stanley One Point Hub,Supplies and Services,384999,Miscellaneous Expenses,08-Oct-2019,000008867695979,SMYTHSTOYS.COM,5945,Other expenses,199.98,0.00,199.98
Children and Young Peoples Services,Head of Early Help Inclusion & Vulnerable Children.,071443,Stanley One Point Hub,Supplies and Services,384999,Miscellaneous Expenses,08-Oct-2019,000008867695983,SMYTHSTOYS.COM,5945,Other expenses,199.98,0.00,199.98
Children and Young Peoples Services,Head of Childrens Social Care,085341,High Etherley Satelite Home,Supplies and Services,348037,Subsistence E348,08-Oct-2019,000008867696039,COSTA COFFEE,5814,Subsistence,4.55,0.00,4.55
Children and Young Peoples Services,Head of Childrens Social Care,085341,High Etherley Satelite Home,Supplies and Services,304403,Equipment and Materials,08-Oct-2019,000008867696045,IZ GAMERS LOUNGE,5999,Other consumables,20.00,0.00,20.00
Children and Young Peoples Services,Head of Childrens Social Care,085341,High Etherley Satelite Home,Supplies and Services,328041,Clothing uniforms and laundry E328,08-Oct-2019,000008867696053,B M RETAIL,5310,Clothing uniforms and laundry,32.94,0.00,32.94
Regeneration and Local Services,Development and Housing,031500,Housing Solutions - Core Team,Supplies and Services,304999,Equipment and Materials,08-Oct-2019,000008867696139,SQ T GUEST HOUSE,6513,Misc equipment tools and materials,350.00,0.00,350.00
Adult and Health Services,Head of Adults,055301,Stanley Pathways,Supplies and Services,324117,Provisions E324,08-Oct-2019,000008867696181,ASDA SUPERSTORE,5411,Catering costs - provisions,33.49,0.00,33.49
Children and Young Peoples Services,Head of Childrens Social Care,085352,Tow Law CU,Supplies and Services,324117,Provisions E324,08-Oct-2019,000008867696221,ASDA SUPERSTORE 4987,5411,Catering costs - provisions,162.13,0.00,162.13
Adult and Health Services,Head of Adults,055643,Hawthorn House LD Respite Unit,Supplies and Services,324117,Provisions E324,08-Oct-2019,000008867696253,JR HOLLAND FOODSERVICE,5499,Catering costs - provisions,4.32,0.00,4.32
Adult and Health Services,Head of Adults,055643,Hawthorn House LD Respite Unit,Supplies and Services,324117,Provisions E324,08-Oct-2019,000008867696259,JR HOLLAND FOODSERVICE,5499,Catering costs - provisions,17.38,0.00,17.38
Regeneration and Local Services,Culture Sport and Tourism,054399,Local Delivery-Libraries,Supplies and Services,312009,Newspapers books and periodicals E312,08-Oct-2019,000008867696267,Amazon.co.uk MO2L86T44,5969,Newspapers books and periodicals,159.80,0.00,159.80
Children and Young Peoples Services,Head of Education and Skills,070264,EDC Premises,Supplies and Services,304221,Equipment and Materials,08-Oct-2019,000008867696297,SCREWFIX BISHOP AUCKLA,5211,Direct materials,8.97,1.50,7.47
Children and Young Peoples Services,Head of Early Help Inclusion & Vulnerable Children.,074000,TTF-Attachment and Results,Transfer Payments,525033,Other,08-Oct-2019,000008867696307,SCHOOLS-DIRECT.CO.UK,5970,Grants to individuals,45.51,7.59,37.92
Regeneration and Local Services,Development and Housing,030771,Durham Advance Flexible Fund,Supplies and Services,348037,Subsistence E348,08-Oct-2019,000008867696317,COSTA COFFEE,5814,Subsistence,4.90,0.82,4.08
Transformation and Partnerships,Business Support,069010,Administration 069010,Supplies and Services,340001,Postages E340,08-Oct-2019,000008867696325,WWW.NEOPOST.CO.UK,5111,Postages,500.00,0.00,500.00
Regeneration and Local Services,Environmental Services,031081,Heritage Coast 031081,Supplies and Services,364320,Grants to Voluntary Organisations,08-Oct-2019,000008867696331,JURYS INN SOUTHAMPTON,7011,Accommodation assistance,80.00,0.00,80.00
Regeneration and Local Services,Development and Housing,031500,Housing Solutions - Core Team,Supplies and Services,352001,Conference Expenses,08-Oct-2019,000008867696341,GRAINGER HOTEL,7011,Conferencesseminars fees etc,100.00,0.00,100.00
Regeneration and Local Services,Business Durham CL0850,030690,Durham Dales Centre - Tourist Information Centre,Supplies and Services,304221,Equipment and Materials,08-Oct-2019,000008867696349,A AND K HOSIERY LTD,5099,Direct materials,503.31,83.89,419.42
Regeneration and Local Services,Corporate Property and Land,021324,Catering - Meadowfield,Supplies and Services,324117,Provisions E324,08-Oct-2019,000008867696357,JR HOLLAND FOODSERVICE,5499,Catering costs - provisions,77.85,0.00,77.85
Regeneration and Local Services,Corporate Property and Land,021324,Catering - Meadowfield,Supplies and Services,324117,Provisions E324,08-Oct-2019,000008867696363,JR HOLLAND FOODSERVICE,5499,Catering costs - provisions,66.80,0.00,66.80
Regeneration and Local Services,Corporate Property and Land,021324,Catering - Meadowfield,Supplies and Services,324117,Provisions E324,08-Oct-2019,000008867696371,JR HOLLAND FOODSERVICE,5499,Catering costs - provisions,14.19,0.00,14.19
Children and Young Peoples Services,Head of Early Help Inclusion & Vulnerable Children.,085801,CDYJS - Support,Employees,040149,Recruitment Instruction and Training,08-Oct-2019,000008867696391,BRITISHPSYCHOLOGICALSO,8699,Training-all costs,90.00,15.00,75.00
Children and Young Peoples Services,Head of Early Help Inclusion & Vulnerable Children.,085801,CDYJS - Support,Employees,040149,Recruitment Instruction and Training,08-Oct-2019,000008867696399,BRITISHPSYCHOLOGICALSO,8699,Training-all costs,90.00,15.00,75.00
Children and Young Peoples Services,Head of Early Help Inclusion & Vulnerable Children.,085801,CDYJS - Support,Employees,040149,Recruitment Instruction and Training,08-Oct-2019,000008867696407,BRITISHPSYCHOLOGICALSO,8699,Training-all costs,90.00,15.00,75.00
Children and Young Peoples Services,Head of Childrens Social Care,085342,9 Cedar Drive Aycliffe,Supplies and Services,324117,Provisions E324,08-Oct-2019,000008867696433,TESCO STORES 2916,5411,Catering costs - provisions,58.61,0.00,58.61
Resources BK0010,People & Talent Management,010984,Training and Development,Employees,040149,Recruitment Instruction and Training,08-Oct-2019,000008867696489,WWW.WAMITAB.ORG.UK,8299,Training-all costs,400.00,0.00,400.00
Children and Young Peoples Services,Head of Childrens Social Care,085333,Coxhoe Satelite Home,Supplies and Services,324117,Provisions E324,08-Oct-2019,000008867696531,TESCO STORES 2371,5411,Catering costs - provisions,4.39,0.00,4.39
Adult and Health Services,Head of Adults,055309,Peterlee Pathways,Supplies and Services,324117,Provisions E324,08-Oct-2019,000008867696587,ASDA STORES LTD,5411,Catering costs - provisions,0.97,0.00,0.97
Adult and Health Services,Head of Adults,055309,Peterlee Pathways,Supplies and Services,324117,Provisions E324,08-Oct-2019,000008867696595,LIDL GB PETERLEE,5411,Catering costs - provisions,4.74,0.00,4.74
Regeneration and Local Services,Corporate Property and Land,021242,Catering - County Hall,Supplies and Services,324117,Provisions E324,08-Oct-2019,000008872995417,BATLEYS PERTH,5300,Catering costs - provisions,160.92,26.82,134.10
Regeneration and Local Services,Corporate Property and Land,021242,Catering - County Hall,Supplies and Services,324117,Provisions E324,08-Oct-2019,000008872995417 - 1,BATLEYS PERTH,5300,Catering costs - provisions,171.26,,171.26
Children and Young Peoples Services,Head of Early Help Inclusion & Vulnerable Children.,085965,Barnard,Supplies and Services,328041,Clothing uniforms and laundry E328,08-Oct-2019,000008872995735,FLANNELSFASHION.,5691,Clothing uniforms and laundry,91.99,15.33,76.66
Regeneration and Local Services,Environmental Services,011060,C&G - Hardwick Park Catering,Supplies and Services,324117,Provisions E324,08-Oct-2019,000008872995787,BATLEYS PERTH,5300,Catering costs - provisions,184.46,0.00,184.46
Regeneration and Local Services,Corporate Property and Land,021234,Catering - Locomotion,Supplies and Services,324117,Provisions E324,08-Oct-2019,000008872995817,BATLEYS PERTH,5300,Catering costs - provisions,472.32,78.72,393.60
Regeneration and Local Services,Corporate Property and Land,021234,Catering - Locomotion,Supplies and Services,324117,Provisions E324,08-Oct-2019,000008872995817 - 1,BATLEYS PERTH,5300,Catering costs - provisions,109.33,,109.33
Regeneration and Local Services,Corporate Property and Land,021324,Catering - Meadowfield,Supplies and Services,324117,Provisions E324,08-Oct-2019,000008872996249,BATLEYS PERTH,5300,Catering costs - provisions,117.54,19.59,97.95
Regeneration and Local Services,Corporate Property and Land,021324,Catering - Meadowfield,Supplies and Services,324117,Provisions E324,08-Oct-2019,000008872996249 - 1,BATLEYS PERTH,5300,Catering costs - provisions,86.39,,86.39
Regeneration and Local Services,Development and Housing,031500,Housing Solutions - Core Team,Supplies and Services,352001,Conference Expenses,08-Oct-2019,000008872996419,HOLIDAYINN E MIDDLESBR,7011,Conferencesseminars fees etc,89.00,0.00,89.00
Regeneration and Local Services,Culture Sport and Tourism,054307,Seaham Library 054307,Supplies and Services,304403,Equipment and Materials,09-Oct-2019,000008872995197,KICKTEK LTD,5732,Other consumables,66.47,11.08,55.39
Regeneration and Local Services,Environmental Services,011068,Nei.Prot - Civic Pride,Supplies and Services,304403,Equipment and Materials,09-Oct-2019,000008872995201,WILKO.COM,5399,Other consumables,125.00,20.83,104.17
Adult and Health Services,Commissioning inc Supporting People,052100,Supporting the Provider Market,Supplies and Services,338057,Services,09-Oct-2019,000008872995205,GBP WESSEX MEDICAL LTD,5047,Medical fees 338057,480.36,80.06,400.30
Children and Young Peoples Services,Head of Childrens Social Care,085501,Child Care Cases Legal Expenses,Supplies and Services,304403,Equipment and Materials,09-Oct-2019,000008872995253,SUNDERLAND CC,7523,Other consumables,44.00,0.00,44.00
Children and Young Peoples Services,Head of Childrens Social Care,085501,Child Care Cases Legal Expenses,Supplies and Services,304403,Equipment and Materials,09-Oct-2019,000008872995259,HARTLEPOOL BC,9399,Other consumables,11.00,0.00,11.00
Children and Young Peoples Services,Head of Childrens Social Care,085501,Child Care Cases Legal Expenses,Supplies and Services,304403,Equipment and Materials,09-Oct-2019,000008872995265,HARTLEPOOL BC,9399,Other consumables,11.00,0.00,11.00
Children and Young Peoples Services,Head of Childrens Social Care,085501,Child Care Cases Legal Expenses,Supplies and Services,304403,Equipment and Materials,09-Oct-2019,000008872995269,L B CAMDEN INT,9399,Other consumables,46.00,0.00,46.00
Children and Young Peoples Services,Head of Childrens Social Care,085501,Child Care Cases Legal Expenses,Supplies and Services,304403,Equipment and Materials,09-Oct-2019,000008872995275,LAMBETH INTERNET PAYM,9399,Other consumables,37.00,0.00,37.00
Children and Young Peoples Services,Head of Childrens Social Care,085501,Child Care Cases Legal Expenses,Supplies and Services,304403,Equipment and Materials,09-Oct-2019,000008872995281,SHEFFIELD CITY CNC,9399,Other consumables,35.00,0.00,35.00
Children and Young Peoples Services,Head of Childrens Social Care,085501,Child Care Cases Legal Expenses,Supplies and Services,304403,Equipment and Materials,09-Oct-2019,000008872995283,WWW.EASTSUSSEXCC.GOV.U,9399,Other consumables,35.00,0.00,35.00
Children and Young Peoples Services,Head of Education and Skills,075021,Youth Employment Initiative,Supplies and Services,384199,Miscellaneous Expenses,09-Oct-2019,000008872995293,WWW.DURHAM.GOV.UK,9399,Other hired and contracted services,11.00,0.00,11.00
Adult and Health Services,Head of Adults,055302,Durham Pathways,Supplies and Services,324117,Provisions E324,09-Oct-2019,000008872995307,SAINSBURYS SACAT 0776,5411,Catering costs - provisions,13.85,0.00,13.85
Regeneration and Local Services,Environmental Services,010383,C&G - South Street Cleansing,Supplies and Services,304999,Equipment and Materials,09-Oct-2019,000008872995313,Snowballs,5251,Misc equipment tools and materials,121.32,0.00,121.32
Regeneration and Local Services,Community Protection,010934,Works in Default Holding Code,Charges,720130,Fees and Charges,09-Oct-2019,000008872995321,WWW.MONEYCLAIM.GOV,9399,Fees-legal,77.00,0.00,77.00
Regeneration and Local Services,Environmental Services,010367,C&G - South Grounds Maintenance,Supplies and Services,304221,Equipment and Materials,09-Oct-2019,000008872995371,HARELAW SAWMILL,5211,Direct materials,14.75,2.46,12.29
Regeneration and Local Services,Corporate Property and Land,021242,Catering - County Hall,Premises,145009,Cleaning and Domestic Supplies,09-Oct-2019,000008872995425,ALLIANCE DISPOSABLES L,2842,Other cleaning and domestic costs,508.92,84.82,424.10
Regeneration and Local Services,Corporate Property and Land,021242,Catering - County Hall,Premises,145009,Cleaning and Domestic Supplies,09-Oct-2019,000008872995425 - 1,ALLIANCE DISPOSABLES L,2842,Other cleaning and domestic costs,0.06,,0.06
Regeneration and Local Services,Corporate Property and Land,021242,Catering - County Hall,Premises,145009,Cleaning and Domestic Supplies,09-Oct-2019,000008872995431,ALLIANCE DISPOSABLES L,2842,Other cleaning and domestic costs,25.13,4.19,20.94
Children and Young Peoples Services,Head of Early Help Inclusion & Vulnerable Children.,079599,Psychological-HQ,Supplies and Services,384999,Miscellaneous Expenses,09-Oct-2019,000008872995471,Amazon.co.uk MO8AA8NH4,5969,Other expenses,51.96,0.00,51.96
Children and Young Peoples Services,Head of Childrens Social Care,085341,High Etherley Satelite Home,Supplies and Services,348037,Subsistence E348,09-Oct-2019,000008872995491,MCDONALDS,5812,Subsistence,4.36,0.00,4.36
Regeneration and Local Services,Development and Housing,031576,B& B - Temp Accom,Supplies and Services,364320,Grants to Voluntary Organisations,09-Oct-2019,000008872995507,HOTEL 52,7011,Accommodation assistance,332.88,55.48,277.40
Regeneration and Local Services,Development and Housing,031576,B& B - Temp Accom,Supplies and Services,364320,Grants to Voluntary Organisations,09-Oct-2019,000008872995507 - 1,HOTEL 52,7011,Accommodation assistance,0.03,,0.03
Regeneration and Local Services,Development and Housing,031576,B& B - Temp Accom,Supplies and Services,364320,Grants to Voluntary Organisations,09-Oct-2019,000008872995513,GRAINGER HOTEL,7011,Accommodation assistance,50.00,0.00,50.00
Regeneration and Local Services,Development and Housing,031576,B& B - Temp Accom,Supplies and Services,364320,Grants to Voluntary Organisations,09-Oct-2019,000008872995519,HAYAT HOTEL,7011,Accommodation assistance,267.00,0.00,267.00
Regeneration and Local Services,Development and Housing,031576,B& B - Temp Accom,Supplies and Services,364320,Grants to Voluntary Organisations,09-Oct-2019,000008872995527,HAYAT HOTEL,7011,Accommodation assistance,50.00,0.00,50.00
Children and Young Peoples Services,Head of Education and Skills,071732,Dean Bank Childcare,Supplies and Services,304403,Equipment and Materials,09-Oct-2019,000008872995579,AMZNMktplace,5999,Other consumables,52.94,0.00,52.94
Children and Young Peoples Services,Head of Education and Skills,071732,Dean Bank Childcare,Supplies and Services,328041,Clothing uniforms and laundry E328,09-Oct-2019,000008872995589,MUDDY PUDDLES,5651,Clothing uniforms and laundry,475.40,0.00,475.40
Children and Young Peoples Services,Head of Education and Skills,071732,Dean Bank Childcare,Supplies and Services,328041,Clothing uniforms and laundry E328,09-Oct-2019,000008872995597,B & M RETAIL,5310,Clothing uniforms and laundry,30.28,0.00,30.28
Regeneration and Local Services,Development and Housing,030771,Durham Advance Flexible Fund,Supplies and Services,384700,Miscellaneous Expenses,09-Oct-2019,000008872995621,ARRIVA NORTH EAST,4131,Miscellaneous grants,4.70,0.00,4.70
Regeneration and Local Services,Development and Housing,030771,Durham Advance Flexible Fund,Supplies and Services,384700,Miscellaneous Expenses,09-Oct-2019,000008872995627,ARRIVA NORTH EAST,4131,Miscellaneous grants,4.70,0.00,4.70
Regeneration and Local Services,Development and Housing,030771,Durham Advance Flexible Fund,Supplies and Services,348037,Subsistence E348,09-Oct-2019,000008872995675,Seventeen,5812,Subsistence,4.00,0.00,4.00
Regeneration and Local Services,Development and Housing,030771,Durham Advance Flexible Fund,Supplies and Services,324117,Provisions E324,09-Oct-2019,000008872995683,ASDA STORES,5411,Catering costs - provisions,2.60,0.00,2.60
Regeneration and Local Services,Business Durham CL0850,030674,Business Services General,Supplies and Services,304999,Equipment and Materials,09-Oct-2019,000008872995687,MAILCHIMP MONTHLY,5968,Misc equipment tools and materials,74.57,0.00,74.57
Regeneration and Local Services,Business Durham CL0850,030674,Business Services General,Supplies and Services,342033,Computers and Communications,09-Oct-2019,000008872995695,SLICKPLAN.COM,7372,Computer hardware,8.19,0.00,8.19
Children and Young Peoples Services,Head of Early Help Inclusion & Vulnerable Children.,085962,Aycliffe Secure - Durham,Supplies and Services,324117,Provisions E324,09-Oct-2019,000008872995705,TESCO STORES 6329,5411,Catering costs - provisions,58.97,0.00,58.97
Children and Young Peoples Services,Head of Early Help Inclusion & Vulnerable Children.,085965,Barnard,Supplies and Services,328041,Clothing uniforms and laundry E328,09-Oct-2019,000008872995707,FOOTASYLUM PLC,5691,Clothing uniforms and laundry,89.98,0.00,89.98
Children and Young Peoples Services,Head of Early Help Inclusion & Vulnerable Children.,085965,Barnard,Supplies and Services,304649,Equipment and Materials,09-Oct-2019,000008872995713,Amazon.co.uk MO6212AR4,5969,Toys,19.44,3.24,16.20
Children and Young Peoples Services,Head of Early Help Inclusion & Vulnerable Children.,085965,Barnard,Supplies and Services,312009,Newspapers books and periodicals E312,09-Oct-2019,000008872995717,Amazon.co.uk MO8216AJ4,5969,Newspapers books and periodicals,32.94,0.00,32.94
Children and Young Peoples Services,Head of Early Help Inclusion & Vulnerable Children.,085965,Barnard,Supplies and Services,328041,Clothing uniforms and laundry E328,09-Oct-2019,000008872995723,NEXT DIRECTORY,5965,Clothing uniforms and laundry,39.99,0.00,39.99
Children and Young Peoples Services,Head of Early Help Inclusion & Vulnerable Children.,085956,Lumley,Supplies and Services,328041,Clothing uniforms and laundry E328,09-Oct-2019,000008872995729,VERY,5964,Clothing uniforms and laundry,23.98,0.00,23.98
Regeneration and Local Services,Culture Sport and Tourism,054813,Gala Theatre - Technical,Supplies and Services,312009,Newspapers books and periodicals E312,09-Oct-2019,000008872995751,THE POST OFFICE,5994,Newspapers books and periodicals,13.78,0.00,13.78
Regeneration and Local Services,Culture Sport and Tourism,054813,Gala Theatre - Technical,Supplies and Services,304221,Equipment and Materials,09-Oct-2019,000008872995757,ARCO LTD,5085,Direct materials,132.25,0.00,132.25
Regeneration and Local Services,Environmental Services,011060,C&G - Hardwick Park Catering,Supplies and Services,332047,Printing Stationery and Gen Off Exps,09-Oct-2019,000008872995775,AMZNMKTPLACE AMAZON.CO,5999,Stationery,2.98,0.50,2.48
Regeneration and Local Services,Environmental Services,011060,C&G - Hardwick Park Catering,Premises,145009,Cleaning and Domestic Supplies,09-Oct-2019,000008872995795,ALLIANCE DISPOSABLES L,2842,Other cleaning and domestic costs,97.25,16.21,81.04
Regeneration and Local Services,Development and Housing,030755,Durham Employment & Skills - Other Training,Employees,040149,Recruitment Instruction and Training,09-Oct-2019,000008872995813,WWW.CSKILLS.ORG,8249,Training-all costs,36.00,6.00,30.00
Children and Young Peoples Services,Head of Childrens Social Care,085331,New Lea Childrens Home,Supplies and Services,348037,Subsistence E348,09-Oct-2019,000008872995843,SORELLA SORELLA,5812,Subsistence,81.30,0.00,81.30
Children and Young Peoples Services,Head of Childrens Social Care,085331,New Lea Childrens Home,Supplies and Services,332047,Printing Stationery and Gen Off Exps,09-Oct-2019,000008872995861,ODEON/BOOKIT,7832,Stationery,47.00,0.00,47.00
Children and Young Peoples Services,Head of Childrens Social Care,085331,New Lea Childrens Home,Transport,215995,Running Costs of Vehicles,09-Oct-2019,000008872995865,ANNFIELD PLAIN SVS,5541,Vehicle running expenses,30.00,0.00,30.00
Regeneration and Local Services,Development and Housing,030771,Durham Advance Flexible Fund,Supplies and Services,324117,Provisions E324,09-Oct-2019,000008872995877,ASDA STORES,5411,Catering costs - provisions,42.00,0.00,42.00
Children and Young Peoples Services,Head of Childrens Social Care,085551,Short Break Services-Park Hse Sher,Supplies and Services,304999,Equipment and Materials,09-Oct-2019,000008872995903,HOME BARGAINS,5251,Misc equipment tools and materials,7.05,0.00,7.05
Children and Young Peoples Services,Head of Childrens Social Care,085551,Short Break Services-Park Hse Sher,Supplies and Services,324117,Provisions E324,09-Oct-2019,000008872995909,ICELAND,5411,Catering costs - provisions,15.00,0.00,15.00
Children and Young Peoples Services,Head of Childrens Social Care,085551,Short Break Services-Park Hse Sher,Supplies and Services,328041,Clothing uniforms and laundry E328,09-Oct-2019,000008872995915,ARGOS LTD,5310,Clothing uniforms and laundry,29.99,0.00,29.99
Children and Young Peoples Services,Head of Childrens Social Care,085551,Short Break Services-Park Hse Sher,Supplies and Services,324117,Provisions E324,09-Oct-2019,000008872995919,ALDI 12 774,5411,Catering costs - provisions,38.20,0.00,38.20
Regeneration and Local Services,Development and Housing,030554,International Relations 030554,Transport,235057,Public Transport,09-Oct-2019,000008872995935,NATIONAL HOLIDAYS,4722,Staff travelling,392.00,0.00,392.00
Regeneration and Local Services,Development and Housing,030554,International Relations 030554,Transport,235057,Public Transport,09-Oct-2019,000008872995939,3C_ NSL Durham WAP,7523,Staff travelling,3.20,0.00,3.20
Regeneration and Local Services,Development and Housing,030554,International Relations 030554,Supplies and Services,352001,Conference Expenses,09-Oct-2019,000008872995943,HOTEL INDIGO DURHAM,7011,Conferencesseminars fees etc,5.35,0.00,5.35
Children and Young Peoples Services,Head of Early Help Inclusion & Vulnerable Children.,071443,Stanley One Point Hub,Supplies and Services,328041,Clothing uniforms and laundry E328,09-Oct-2019,000008872995949,ETSY.COM - BUTLERANDGR,5699,Clothing uniforms and laundry,17.45,0.00,17.45
Children and Young Peoples Services,Head of Childrens Social Care,085333,Coxhoe Satelite Home,Supplies and Services,348037,Subsistence E348,09-Oct-2019,000008872996055,MCDONALDS,5814,Subsistence,4.02,0.67,3.35
Children and Young Peoples Services,Head of Childrens Social Care,085333,Coxhoe Satelite Home,Supplies and Services,348037,Subsistence E348,09-Oct-2019,000008872996055 - 1,MCDONALDS,5814,Subsistence,1.77,,1.77
Children and Young Peoples Services,Head of Childrens Social Care,085333,Coxhoe Satelite Home,Supplies and Services,324117,Provisions E324,09-Oct-2019,000008872996075,CO-OP GROUP 310016,5411,Catering costs - provisions,26.89,0.00,26.89
Resources BK0010,Resources Management CK0450,069000,Resources Management 069000,Supplies and Services,324117,Provisions E324,09-Oct-2019,000008872996081,SAINSBURYS SACAT 0776,5411,Catering costs - provisions,20.20,0.00,20.20
Adult and Health Services,Head of Adults,055301,Stanley Pathways,Supplies and Services,324117,Provisions E324,09-Oct-2019,000008872996103,ASDA SUPERSTORE,5411,Catering costs - provisions,7.79,0.00,7.79
Adult and Health Services,Head of Adults,055301,Stanley Pathways,Supplies and Services,324117,Provisions E324,09-Oct-2019,000008872996107,ASDA SUPERSTORE,5411,Catering costs - provisions,3.96,0.00,3.96
Children and Young Peoples Services,Head of Early Help Inclusion & Vulnerable Children.,085957,Secure Management,Supplies and Services,328041,Clothing uniforms and laundry E328,09-Oct-2019,000008872996149,FOOTASYLUM PLC,5691,Clothing uniforms and laundry,92.96,0.00,92.96
Children and Young Peoples Services,Head of Childrens Social Care,085332,Middlestone Moor CU,Supplies and Services,324117,Provisions E324,09-Oct-2019,000008872996159,SAINSBURYS SACAT 2199,5411,Catering costs - provisions,18.10,0.00,18.10
Children and Young Peoples Services,Head of Childrens Social Care,085332,Middlestone Moor CU,Supplies and Services,328041,Clothing uniforms and laundry E328,09-Oct-2019,000008872996163,ARGOS BISHOP AUCKL,5310,Clothing uniforms and laundry,59.99,0.00,59.99
Regeneration and Local Services,Culture Sport and Tourism,011263,Louisa Centre 011263,Supplies and Services,304999,Equipment and Materials,09-Oct-2019,000008872996203,HOME BARGAINS,5251,Misc equipment tools and materials,10.00,0.00,10.00
Regeneration and Local Services,Development and Housing,030771,Durham Advance Flexible Fund,Supplies and Services,348037,Subsistence E348,09-Oct-2019,000008872996217,COSTA COFFEE,5814,Subsistence,4.90,0.82,4.08
Regeneration and Local Services,Development and Housing,030771,Durham Advance Flexible Fund,Supplies and Services,348037,Subsistence E348,09-Oct-2019,000008872996223,COSTA COFFEE,5814,Subsistence,3.80,0.63,3.17
Regeneration and Local Services,Development and Housing,030771,Durham Advance Flexible Fund,Supplies and Services,328041,Clothing uniforms and laundry E328,09-Oct-2019,000008872996227,MATALAN,5691,Clothing uniforms and laundry,41.00,0.00,41.00
Regeneration and Local Services,Development and Housing,030771,Durham Advance Flexible Fund,Supplies and Services,304259,Equipment and Materials,09-Oct-2019,000008872996233,GEN REGISTER OFFICE,9399,Equipment-purchase and rental,14.00,0.00,14.00
Resources BK0010,Digital and Customer Services,065481,Technical Services 065481,Supplies and Services,344033,Telephones,09-Oct-2019,000008872996239,FS.COM LIMITED,5045,Telephones general-all costs,375.00,0.00,375.00
Dedicated Schools Grant BG0015,DSG High Needs Block,079044,Ed Health Needs,Employees,040149,Recruitment Instruction and Training,09-Oct-2019,000008872996243,MATHS MADE EASY,8299,Training-all costs,20.47,0.00,20.47
Regeneration and Local Services,Corporate Property and Land,021324,Catering - Meadowfield,Premises,145009,Cleaning and Domestic Supplies,09-Oct-2019,000008872996257,ALLIANCE DISPOSABLES L,2842,Other cleaning and domestic costs,44.57,7.43,37.14
Children and Young Peoples Services,Head of Childrens Social Care,085342,9 Cedar Drive Aycliffe,Supplies and Services,324117,Provisions E324,09-Oct-2019,000008872996305,WALKERS BUTCHERS & BAK,5499,Catering costs - provisions,41.20,0.00,41.20
Children and Young Peoples Services,Head of Early Help Inclusion & Vulnerable Children.,088107,Ferryhill & Newton Aycliffe 0-19 Community Family Hub,Supplies and Services,304403,Equipment and Materials,09-Oct-2019,000008872996405,AMZNMktplace,5999,Other consumables,7.97,1.33,6.64
Children and Young Peoples Services,Head of Early Help Inclusion & Vulnerable Children.,088107,Ferryhill & Newton Aycliffe 0-19 Community Family Hub,Supplies and Services,304403,Equipment and Materials,09-Oct-2019,000008872996411,AMZNMktplace,5999,Other consumables,102.00,17.00,85.00
Children and Young Peoples Services,Head of Early Help Inclusion & Vulnerable Children.,088107,Ferryhill & Newton Aycliffe 0-19 Community Family Hub,Supplies and Services,304403,Equipment and Materials,09-Oct-2019,000008872996411 - 1,AMZNMktplace,5999,Other consumables,0.20,,0.20
Adult and Health Services,Head of Adults,055310,Positive Journeys (Tudhoe),Supplies and Services,324117,Provisions E324,09-Oct-2019,000008872996507,ASDA SUPERSTORE 4987,5411,Catering costs - provisions,8.15,0.00,8.15
Regeneration and Local Services,Development and Housing,030775,LINKCD,Transport,235057,Public Transport,09-Oct-2019,000008872996515,GO NORTH EAST LIMITED,4131,Staff travelling,7.00,0.00,7.00
Regeneration and Local Services,Development and Housing,030771,Durham Advance Flexible Fund,Transport,235057,Public Transport,09-Oct-2019,000008872996571,GO NORTH EAST LIMITED,4131,Staff travelling,14.00,0.00,14.00
Regeneration and Local Services,Development and Housing,030771,Durham Advance Flexible Fund,Transport,235057,Public Transport,09-Oct-2019,000008872996579,GO NORTH EAST LIMITED,4131,Staff travelling,95.00,0.00,95.00
Regeneration and Local Services,Technical Services CM0300,018700,Highways Services - Management and Administration,Supplies and Services,344033,Telephones,09-Oct-2019,000008878793997,AMZNMKTPLACE AMAZON.CO,5999,Telephones general-all costs,49.95,0.00,49.95
Resources BK0010,Digital and Customer Services,065482,Data Centres,Supplies and Services,304335,Equipment and Materials,09-Oct-2019,000008878794003,Premier Farnell,5065,ICT supplies etc,12.10,2.02,10.08
Regeneration and Local Services,Technical Services CM0300,018700,Highways Services - Management and Administration,Supplies and Services,344033,Telephones,09-Oct-2019,000008878794013,AMZNMKTPLACE AMAZON.CO,5999,Telephones general-all costs,-8.35,0.00,-8.35
Children and Young Peoples Services,Head of Childrens Social Care,085333,Coxhoe Satelite Home,Supplies and Services,342222,Computers and Communications,09-Oct-2019,000008878794227,PAYPAL PAYPALGIFTS,4816,Comp hardware purch-network servers,30.00,0.00,30.00
Regeneration and Local Services,Development and Housing,031576,B& B - Temp Accom,Supplies and Services,364320,Grants to Voluntary Organisations,09-Oct-2019,000008878794265,HOLIDAYINN E MIDDLESBR,7011,Accommodation assistance,82.00,13.67,68.33
Children and Young Peoples Services,Head of Early Help Inclusion & Vulnerable Children.,085965,Barnard,Supplies and Services,328041,Clothing uniforms and laundry E328,09-Oct-2019,000008878794459,SPORTSDIRECT.COM,5941,Clothing uniforms and laundry,31.99,5.33,26.66
Children and Young Peoples Services,Head of Childrens Social Care,085352,Tow Law CU,Supplies and Services,328041,Clothing uniforms and laundry E328,09-Oct-2019,000008878794801,ARGOS RETAIL GROUP,5310,Clothing uniforms and laundry,499.00,0.00,499.00
Resources BK0010,Legal & Democratic Services,067953,Coroner County Durham & Darlington,Supplies and Services,364320,Grants to Voluntary Organisations,09-Oct-2019,000008878794975,SCARMAN,7011,Accommodation assistance,108.00,18.00,90.00
Resources BK0010,People & Talent Management,010984,Training and Development,Supplies and Services,384999,Miscellaneous Expenses,09-Oct-2019,000008878795063,WWW.LIFESAVERSDIRECT,5965,Other expenses,171.50,0.00,171.50
Regeneration and Local Services,Business Durham CL0850,030674,Business Services General,Supplies and Services,304999,Equipment and Materials,10-Oct-2019,000008872995699,MAILCHIMP MONTHLY,5968,Misc equipment tools and materials,2.05,0.00,2.05
Regeneration and Local Services,Business Durham CL0850,030674,Business Services General,Supplies and Services,342033,Computers and Communications,10-Oct-2019,000008872995701,SLICKPLAN.COM,7372,Computer hardware,0.23,0.00,0.23
Children and Young Peoples Services,Head of Education and Skills,071801,Selby Cottage Childcare Centre,Supplies and Services,304403,Equipment and Materials,10-Oct-2019,000008878793969,AMZNMktplace,5999,Other consumables,89.02,0.00,89.02
Children and Young Peoples Services,Head of Education and Skills,071801,Selby Cottage Childcare Centre,Supplies and Services,324117,Provisions E324,10-Oct-2019,000008878793975,WM MORRISONS STORE,5411,Catering costs - provisions,15.10,0.00,15.10
Children and Young Peoples Services,Head of Education and Skills,071801,Selby Cottage Childcare Centre,Supplies and Services,304259,Equipment and Materials,10-Oct-2019,000008878793981,WILKO RETAIL LIMIT,5722,Equipment-purchase and rental,21.30,0.00,21.30
Children and Young Peoples Services,Head of Education and Skills,054640,Durham Learning Resources 054640,Supplies and Services,312011,Newspapers books and periodicals E312,10-Oct-2019,000008878793991,Amazon.co.uk MO9O06E74,5969,Books-school library,45.40,0.00,45.40
Transformation and Partnerships,Transformation,060290,Riep - Modern ways of working,Supplies and Services,304335,Equipment and Materials,10-Oct-2019,000008878794009,AMZNMktplace,5999,ICT supplies etc,29.99,5.00,24.99
Regeneration and Local Services,Development and Housing,031576,B& B - Temp Accom,Employees,040149,Recruitment Instruction and Training,10-Oct-2019,000008878794023,SYLVESTER PROPERTIES,8999,Training-all costs,57.69,0.00,57.69
Regeneration and Local Services,Development and Housing,031576,B& B - Temp Accom,Supplies and Services,352001,Conference Expenses,10-Oct-2019,000008878794029,HAYAT HOTEL,7011,Conferencesseminars fees etc,350.00,0.00,350.00
Children and Young Peoples Services,Head of Childrens Social Care,085501,Child Care Cases Legal Expenses,Supplies and Services,304403,Equipment and Materials,10-Oct-2019,000008878794041,HARTLEPOOL BC,9399,Other consumables,-11.00,0.00,-11.00
Children and Young Peoples Services,Head of Childrens Social Care,085501,Child Care Cases Legal Expenses,Supplies and Services,304403,Equipment and Materials,10-Oct-2019,000008878794047,HARTLEPOOL BC,9399,Other consumables,-11.00,0.00,-11.00
Children and Young Peoples Services,Head of Education and Skills,075021,Youth Employment Initiative,Supplies and Services,384999,Miscellaneous Expenses,10-Oct-2019,000008878794053,SAINSBURY`S,5411,Other expenses,132.95,0.00,132.95
Children and Young Peoples Services,Head of Childrens Social Care,085352,Tow Law CU,Supplies and Services,324117,Provisions E324,10-Oct-2019,000008878794133,SAINSBURYS 0776,5411,Catering costs - provisions,7.20,0.00,7.20
Children and Young Peoples Services,Head of Childrens Social Care,085352,Tow Law CU,Supplies and Services,324117,Provisions E324,10-Oct-2019,000008878794139,SAINSBURYS 0776,5411,Catering costs - provisions,2.25,0.00,2.25
Regeneration and Local Services,Development and Housing,030773,CLLD North,Transport,235057,Public Transport,10-Oct-2019,000008878794215,ARRIVA NORTH EAST,4131,Staff travelling,26.20,0.00,26.20
Children and Young Peoples Services,Head of Education and Skills,071732,Dean Bank Childcare,Supplies and Services,384999,Miscellaneous Expenses,10-Oct-2019,000008878794291,Amazon.co.uk MO8PG1EX4,5969,Other expenses,55.70,9.28,46.42
Adult and Health Services,Head of Adults,055807,Newton Aycliffe Pathways,Third Party Payments,474101,Purchase of Care,10-Oct-2019,000008878794319,PIONEERING CARE PARTNE,8050,Nursing care payments,57.00,0.00,57.00
Regeneration and Local Services,Development and Housing,030771,Durham Advance Flexible Fund,Supplies and Services,348037,Subsistence E348,10-Oct-2019,000008878794427,COSTA COFFEE 43038640,5814,Subsistence,6.05,1.01,5.04
Regeneration and Local Services,Business Durham CL0850,030674,Business Services General,Third Party Payments,430100,Rendered by Private Contractors,10-Oct-2019,000008878794439,BLS monday.com,7399,Payments to sub-contractors,148.80,0.00,148.80
Children and Young Peoples Services,Head of Early Help Inclusion & Vulnerable Children.,085957,Secure Management,Supplies and Services,304221,Equipment and Materials,10-Oct-2019,000008878794455,SCREWFIX DIRECT,5200,Direct materials,100.57,16.76,83.81
Regeneration and Local Services,Culture Sport and Tourism,054813,Gala Theatre - Technical,Supplies and Services,304259,Equipment and Materials,10-Oct-2019,000008878794467,Prime Video MO2DQ9EB4,5735,Equipment-purchase and rental,7.99,0.00,7.99
Regeneration and Local Services,Culture Sport and Tourism,054813,Gala Theatre - Technical,Supplies and Services,324117,Provisions E324,10-Oct-2019,000008878794471,WM MORRISONS STORE,5411,Catering costs - provisions,75.70,0.00,75.70
Transformation and Partnerships,Business Support,052986,CYPS - Locality and Operational Support,Supplies and Services,304403,Equipment and Materials,10-Oct-2019,000008878794479,CITY TAXIS,5734,Other consumables,50.00,0.00,50.00
Transformation and Partnerships,Business Support,052986,CYPS - Locality and Operational Support,Employees,040149,Recruitment Instruction and Training,10-Oct-2019,000008878794485,SQ ANIMAL STORY,8398,Training-all costs,100.00,0.00,100.00
Regeneration and Local Services,Environmental Services,010367,C&G - South Grounds Maintenance,Supplies and Services,304221,Equipment and Materials,10-Oct-2019,000008878794503,SCREWFIX PETERLEE,5211,Direct materials,466.96,77.83,389.13
Resources BK0010,People & Talent Management,010984,Training and Development,Employees,040149,Recruitment Instruction and Training,10-Oct-2019,000008878794515,NCS VUE WAMITAB TEST,8299,Training-all costs,139.00,0.00,139.00
Children and Young Peoples Services,Head of Early Help Inclusion & Vulnerable Children.,085962,Aycliffe Secure - Durham,Supplies and Services,324117,Provisions E324,10-Oct-2019,000008878794531,TESCO STORES 2916,5411,Catering costs - provisions,15.15,0.00,15.15
Children and Young Peoples Services,Head of Childrens Social Care,085331,New Lea Childrens Home,Supplies and Services,324117,Provisions E324,10-Oct-2019,000008878794543,ASDA SUPERSTORE,5411,Catering costs - provisions,18.45,0.00,18.45
Children and Young Peoples Services,Head of Childrens Social Care,085331,New Lea Childrens Home,Supplies and Services,328041,Clothing uniforms and laundry E328,10-Oct-2019,000008878794545,CLEARANCE BARGAINS,5310,Clothing uniforms and laundry,129.99,0.00,129.99
Children and Young Peoples Services,Head of Childrens Social Care,085551,Short Break Services-Park Hse Sher,Supplies and Services,324117,Provisions E324,10-Oct-2019,000008878794577,ALDI 15 774,5411,Catering costs - provisions,13.48,0.00,13.48
Regeneration and Local Services,Corporate Property and Land,021234,Catering - Locomotion,Supplies and Services,324117,Provisions E324,10-Oct-2019,000008878794615,ASDA SUPERSTORE 4987,5411,Catering costs - provisions,20.81,0.00,20.81
Regeneration and Local Services,Environmental Services,010367,C&G - South Grounds Maintenance,Supplies and Services,304221,Equipment and Materials,10-Oct-2019,000008878794659,JT DOVE LTD,5211,Direct materials,25.82,0.00,25.82
Regeneration and Local Services,Business Durham CL0850,030717,Business Services,Supplies and Services,324117,Provisions E324,10-Oct-2019,000008878794693,TESCO STORES 6329,5411,Catering costs - provisions,8.00,0.00,8.00
Children and Young Peoples Services,Head of Childrens Social Care,085333,Coxhoe Satelite Home,Supplies and Services,384999,Miscellaneous Expenses,10-Oct-2019,000008878794699,Amazon.co.uk MO1MF5E74,5969,Other expenses,69.00,11.50,57.50
Children and Young Peoples Services,Head of Childrens Social Care,085333,Coxhoe Satelite Home,Supplies and Services,384999,Miscellaneous Expenses,10-Oct-2019,000008878794701,Amazon.co.uk MO7GS6E04,5969,Other expenses,6.48,1.08,5.40
Children and Young Peoples Services,Head of Childrens Social Care,085333,Coxhoe Satelite Home,Supplies and Services,384999,Miscellaneous Expenses,10-Oct-2019,000008878794701 - 1,Amazon.co.uk MO7GS6E04,5969,Other expenses,2.02,,2.02
Regeneration and Local Services,Development and Housing,031500,Housing Solutions - Core Team,Supplies and Services,352001,Conference Expenses,10-Oct-2019,000008878794735,HOTEL 52,7011,Conferencesseminars fees etc,332.91,0.00,332.91
Regeneration and Local Services,Development and Housing,031500,Housing Solutions - Core Team,Supplies and Services,352001,Conference Expenses,10-Oct-2019,000008878794741,GRAINGER HOTEL,7011,Conferencesseminars fees etc,240.00,0.00,240.00
Children and Young Peoples Services,Head of Childrens Social Care,085342,9 Cedar Drive Aycliffe,Premises,145009,Cleaning and Domestic Supplies,10-Oct-2019,000008878794745,MALCOLMS CLEANING,7349,Other cleaning and domestic costs,26.00,0.00,26.00
Children and Young Peoples Services,Head of Childrens Social Care,085352,Tow Law CU,Supplies and Services,324117,Provisions E324,10-Oct-2019,000008878794795,SAINSBURYS 2199,5411,Catering costs - provisions,10.55,0.00,10.55
Regeneration and Local Services,Development and Housing,031576,B& B - Temp Accom,Supplies and Services,364320,Grants to Voluntary Organisations,10-Oct-2019,000008878794841,HAYAT HOTEL,7011,Accommodation assistance,350.00,0.00,350.00
Children and Young Peoples Services,Head of Education and Skills,070264,EDC Premises,Supplies and Services,304221,Equipment and Materials,10-Oct-2019,000008878794855,SCREWFIX BISHOP AUCKLA,5211,Direct materials,-1.80,0.00,-1.80
Children and Young Peoples Services,Head of Childrens Social Care,085334,West Rainton Satelite Home,Supplies and Services,384237,Miscellaneous Expenses,10-Oct-2019,000008878794863,WWW.ADVENTUREVALLEY.CO,7999,Recreational exps outings parties,97.75,0.00,97.75
Children and Young Peoples Services,Head of Early Help Inclusion & Vulnerable Children.,088101,CLS 0-19 Community Family Hub,Supplies and Services,304403,Equipment and Materials,10-Oct-2019,000008878794881,AMZNMktplace,5999,Other consumables,39.95,6.66,33.29
Children and Young Peoples Services,Head of Early Help Inclusion & Vulnerable Children.,088100,Durham West & CLS 0-19 Targeted Family Support,Supplies and Services,328041,Clothing uniforms and laundry E328,10-Oct-2019,000008878794889,ASDA STORES LTD 4313,5411,Clothing uniforms and laundry,16.00,0.00,16.00
Children and Young Peoples Services,Head of Early Help Inclusion & Vulnerable Children.,088100,Durham West & CLS 0-19 Targeted Family Support,Supplies and Services,324117,Provisions E324,10-Oct-2019,000008878794895,ASDA GEORGE COM LEEDS,5411,Catering costs - provisions,40.00,0.00,40.00
Children and Young Peoples Services,Head of Early Help Inclusion & Vulnerable Children.,088100,Durham West & CLS 0-19 Targeted Family Support,Supplies and Services,328041,Clothing uniforms and laundry E328,10-Oct-2019,000008878794901,ASDA GEORGE COM LEEDS,5411,Clothing uniforms and laundry,12.00,0.00,12.00
Children and Young Peoples Services,Head of Early Help Inclusion & Vulnerable Children.,088101,CLS 0-19 Community Family Hub,Supplies and Services,384999,Miscellaneous Expenses,10-Oct-2019,000008878794905,WWW.THEWORKS.CO.UK,5310,Other expenses,39.00,0.00,39.00
Children and Young Peoples Services,Head of Early Help Inclusion & Vulnerable Children.,074000,TTF-Attachment and Results,Transfer Payments,525033,Other,10-Oct-2019,000008878794909,ASDA GEORGE COM LEEDS,5411,Grants to individuals,102.95,17.16,85.79
Resources BK0010,Digital and Customer Services,065236,Operations - Desktop Services,Supplies and Services,342033,Computers and Communications,10-Oct-2019,000008878794937,AMZNMKTPLACE AMAZON.CO,5999,Computer hardware,13.99,0.00,13.99
Resources BK0010,Digital and Customer Services,065335,School Services - Implementations,Supplies and Services,304303,Equipment and Materials,10-Oct-2019,000008878794943,WWW.TOOLSTATION.COM,5251,Network for resale,13.54,2.26,11.28
Resources BK0010,Digital and Customer Services,065236,Operations - Desktop Services,Supplies and Services,342033,Computers and Communications,10-Oct-2019,000008878794951,AMZ BLOOM Store,5999,Computer hardware,-13.99,0.00,-13.99
Adult and Health Services,Commissioning inc Supporting People,052100,Supporting the Provider Market,Supplies and Services,338057,Services,10-Oct-2019,000008878794981,WWW.WESSEX-MEDICAL.COM,5047,Medical fees 338057,478.20,79.70,398.50
Children and Young Peoples Services,Childrens Services Operational Support,052711,CYPS - Development and Learning,Supplies and Services,364320,Grants to Voluntary Organisations,10-Oct-2019,000008878794983,ROYAL LANCASTER LONDON,7011,Accommodation assistance,480.00,0.00,480.00
Regeneration and Local Services,Environmental Services,010301,C&G - North Grounds Maintenance,Supplies and Services,304221,Equipment and Materials,10-Oct-2019,000008878794993,B & Q 1332,5200,Direct materials,52.00,8.67,43.33
Resources BK0010,People & Talent Management,010984,Training and Development,Employees,040149,Recruitment Instruction and Training,10-Oct-2019,000008878795041,NCS VUE WAMITAB TEST,8299,Training-all costs,139.00,0.00,139.00
Resources BK0010,People & Talent Management,010984,Training and Development,Employees,040149,Recruitment Instruction and Training,10-Oct-2019,000008878795047,NCS VUE WAMITAB TEST,8299,Training-all costs,139.00,0.00,139.00
Resources BK0010,People & Talent Management,010984,Training and Development,Employees,040149,Recruitment Instruction and Training,10-Oct-2019,000008878795053,NCS VUE WAMITAB TEST,8299,Training-all costs,139.00,0.00,139.00
Resources BK0010,People & Talent Management,010984,Training and Development,Employees,040149,Recruitment Instruction and Training,10-Oct-2019,000008878795069,NCS VUE WAMITAB TEST,8299,Training-all costs,-139.00,0.00,-139.00
Children and Young Peoples Services,Head of Childrens Social Care,085332,Middlestone Moor CU,Supplies and Services,324117,Provisions E324,10-Oct-2019,000008878795109,1405 COLL DURHAM,5811,Catering costs - provisions,6.40,0.00,6.40
Children and Young Peoples Services,Head of Early Help Inclusion & Vulnerable Children.,088107,Ferryhill & Newton Aycliffe 0-19 Community Family Hub,Supplies and Services,324117,Provisions E324,10-Oct-2019,000008878795123,WILKO RETAIL LIMITED,5399,Catering costs - provisions,12.50,0.00,12.50
Regeneration and Local Services,Corporate Property and Land,036000,Asset Management 036000,Employees,040149,Recruitment Instruction and Training,10-Oct-2019,000008878795171,RICS COM GBP CYBS,8699,Training-all costs,162.00,0.00,162.00
Adult and Health Services,Commissioning inc Supporting People,052100,Supporting the Provider Market,Supplies and Services,338057,Services,10-Oct-2019,000008878795177,WWW.WESSEX-MEDICAL.COM,5047,Medical fees 338057,477.00,0.00,477.00
Children and Young Peoples Services,Head of Education and Skills,076001,Music Service,Supplies and Services,324117,Provisions E324,10-Oct-2019,000008878795183,TESCO STORES 2371,5411,Catering costs - provisions,18.00,0.00,18.00
Transformation and Partnerships,Partnerships & Community Engagement Div.,060472,Syrian Vulnerable Persons Scheme,Supplies and Services,308011,Furniture,10-Oct-2019,000008878795229,www.247blinds.co.uk,5714,Furniture repair and replacement,476.07,79.35,396.72
Regeneration and Local Services,Business Durham CL0850,030694,Plexus 2,Supplies and Services,384999,Miscellaneous Expenses,10-Oct-2019,000008878795239,Amazon.co.uk MO8T62EP4,5969,Other expenses,7.99,1.33,6.66
Regeneration and Local Services,Development and Housing,031576,B& B - Temp Accom,Supplies and Services,364320,Grants to Voluntary Organisations,10-Oct-2019,000008885791427,SLEEPERDORM,7011,Accommodation assistance,30.00,0.00,30.00
Regeneration and Local Services,Development and Housing,031500,Housing Solutions - Core Team,Supplies and Services,352001,Conference Expenses,10-Oct-2019,000008885791497,HOLIDAYINN E MIDDLESBR,7011,Conferencesseminars fees etc,-158.95,0.00,-158.95
Regeneration and Local Services,Corporate Property and Land,021242,Catering - County Hall,Supplies and Services,324117,Provisions E324,10-Oct-2019,000008885791643,BATLEYS PERTH,5300,Catering costs - provisions,484.08,80.68,403.40
Regeneration and Local Services,Corporate Property and Land,021242,Catering - County Hall,Supplies and Services,324117,Provisions E324,10-Oct-2019,000008885791643 - 1,BATLEYS PERTH,5300,Catering costs - provisions,177.82,,177.82
Regeneration and Local Services,Culture Sport and Tourism,054812,Gala Theatre - Catering etc,Supplies and Services,324117,Provisions E324,10-Oct-2019,000008885791689,BATLEYS PERTH,5300,Catering costs - provisions,-5.30,0.00,-5.30
Children and Young Peoples Services,Head of Education and Skills,074699,Secondary Schools General-LA,Supplies and Services,304403,Equipment and Materials,10-Oct-2019,000008885792005,CYCLAIRE LTD,5661,Other consumables,36.25,0.00,36.25
Regeneration and Local Services,Environmental Services,011060,C&G - Hardwick Park Catering,Supplies and Services,324117,Provisions E324,10-Oct-2019,000008885792213,BATLEYS PERTH,5300,Catering costs - provisions,216.60,36.10,180.50
Regeneration and Local Services,Environmental Services,011060,C&G - Hardwick Park Catering,Supplies and Services,324117,Provisions E324,10-Oct-2019,000008885792213 - 1,BATLEYS PERTH,5300,Catering costs - provisions,218.32,,218.32
Regeneration and Local Services,Environmental Services,011060,C&G - Hardwick Park Catering,Supplies and Services,324117,Provisions E324,10-Oct-2019,000008885792225,BATLEYS PERTH,5300,Catering costs - provisions,29.66,4.94,24.72
Regeneration and Local Services,Environmental Services,011060,C&G - Hardwick Park Catering,Supplies and Services,324117,Provisions E324,10-Oct-2019,000008885792231,BATLEYS PERTH,5300,Catering costs - provisions,107.94,17.99,89.95
Regeneration and Local Services,Environmental Services,011060,C&G - Hardwick Park Catering,Supplies and Services,324117,Provisions E324,10-Oct-2019,000008885792231 - 1,BATLEYS PERTH,5300,Catering costs - provisions,86.63,,86.63
Regeneration and Local Services,Environmental Services,011060,C&G - Hardwick Park Catering,Supplies and Services,324117,Provisions E324,10-Oct-2019,000008885792239,BATLEYS PERTH,5300,Catering costs - provisions,17.52,0.00,17.52
Regeneration and Local Services,Environmental Services,011060,C&G - Hardwick Park Catering,Supplies and Services,324117,Provisions E324,10-Oct-2019,000008885792281,BATLEYS PERTH,5300,Catering costs - provisions,-25.52,0.00,-25.52
Regeneration and Local Services,Development and Housing,031576,B& B - Temp Accom,Supplies and Services,364320,Grants to Voluntary Organisations,10-Oct-2019,000008885792725,PREMIER INN,3811,Accommodation assistance,97.00,0.00,97.00
Transformation and Partnerships,Business Support,052986,CYPS - Locality and Operational Support,Supplies and Services,352001,Conference Expenses,10-Oct-2019,000008885792801,TVLICENSING.CO.UK,7392,Conferencesseminars fees etc,154.50,0.00,154.50
Regeneration and Local Services,Corporate Property and Land,021324,Catering - Meadowfield,Supplies and Services,324117,Provisions E324,10-Oct-2019,000008885792829,BATLEYS PERTH,5300,Catering costs - provisions,-13.25,0.00,-13.25
Regeneration and Local Services,Corporate Property and Land,021324,Catering - Meadowfield,Supplies and Services,324117,Provisions E324,10-Oct-2019,000008885792835,BATLEYS PERTH,5300,Catering costs - provisions,-2.18,0.00,-2.18
Children and Young Peoples Services,Head of Childrens Social Care,085363,LAC & Permanence Team 3,Supplies and Services,304259,Equipment and Materials,10-Oct-2019,000008885793141,HM PASSPORT,9399,Equipment-purchase and rental,244.00,0.00,244.00
Children and Young Peoples Services,Head of Education and Skills,071801,Selby Cottage Childcare Centre,Supplies and Services,324117,Provisions E324,11-Oct-2019,000008885791387,TESCO STORES 2278,5411,Catering costs - provisions,8.76,0.00,8.76
Regeneration and Local Services,Development and Housing,031576,B& B - Temp Accom,Supplies and Services,364320,Grants to Voluntary Organisations,11-Oct-2019,000008885791423,HAYAT HOTEL,7011,Accommodation assistance,350.00,0.00,350.00
Children and Young Peoples Services,Head of Education and Skills,070264,EDC Premises,Supplies and Services,324117,Provisions E324,11-Oct-2019,000008885791439,HOPWELLS LTD,5811,Catering costs - provisions,75.89,0.00,75.89
Children and Young Peoples Services,Head of Childrens Social Care,085357,LAC Bespoke Placements,Supplies and Services,338099,Services,11-Oct-2019,000008885791455,PARDEAN /HO,7033,Other services,350.00,0.00,350.00
Children and Young Peoples Services,Head of Childrens Social Care,085357,LAC Bespoke Placements,Supplies and Services,338099,Services,11-Oct-2019,000008885791457,PARKDEAN RESORTS H,7033,Other services,79.00,0.00,79.00
Children and Young Peoples Services,Head of Childrens Social Care,085357,LAC Bespoke Placements,Supplies and Services,338099,Services,11-Oct-2019,000008885791463,PARKDEAN RESORTS H,7033,Other services,339.00,0.00,339.00
Regeneration and Local Services,Development and Housing,031500,Housing Solutions - Core Team,Supplies and Services,352001,Conference Expenses,11-Oct-2019,000008885791489,AYCLIFFE BIZ,7011,Conferencesseminars fees etc,115.00,0.00,115.00
Regeneration and Local Services,Development and Housing,031500,Housing Solutions - Core Team,Supplies and Services,352001,Conference Expenses,11-Oct-2019,000008885791493,AYCLIFFE BIZ,7011,Conferencesseminars fees etc,20.00,0.00,20.00
Regeneration and Local Services,Environmental Services,031200,North Pennines Core,Supplies and Services,324117,Provisions E324,11-Oct-2019,000008885791511,SCOTMID CO-OP STANHOPE,5411,Catering costs - provisions,15.18,0.00,15.18
Adult and Health Services,Head of Adults,055302,Durham Pathways,Supplies and Services,324117,Provisions E324,11-Oct-2019,000008885791517,LIDL GB DURHAM,5411,Catering costs - provisions,3.50,0.00,3.50
Regeneration and Local Services,Culture Sport and Tourism,030703,Partnership Services,Supplies and Services,384199,Miscellaneous Expenses,11-Oct-2019,000008885791523,GOOGLE ADS1872075479,5968,Other hired and contracted services,350.00,0.00,350.00
Children and Young Peoples Services,Head of Childrens Social Care,085333,Coxhoe Satelite Home,Supplies and Services,324117,Provisions E324,11-Oct-2019,000008885791587,WILKO RETAIL LIMITED,5399,Catering costs - provisions,21.02,0.00,21.02
Children and Young Peoples Services,Head of Childrens Social Care,085333,Coxhoe Satelite Home,Supplies and Services,348037,Subsistence E348,11-Oct-2019,000008885791591,GREEK GYROS,5812,Subsistence,15.20,0.00,15.20
Children and Young Peoples Services,Head of Childrens Social Care,085333,Coxhoe Satelite Home,Supplies and Services,328041,Clothing uniforms and laundry E328,11-Oct-2019,000008885791593,PRIMARK 670 GATESHEAD,5651,Clothing uniforms and laundry,104.90,0.00,104.90
Regeneration and Local Services,Environmental Services,010367,C&G - South Grounds Maintenance,Supplies and Services,304221,Equipment and Materials,11-Oct-2019,000008885791599,JT ATKINSON & SONS LTD,5211,Direct materials,35.95,5.99,29.96
Regeneration and Local Services,Environmental Services,010367,C&G - South Grounds Maintenance,Supplies and Services,304221,Equipment and Materials,11-Oct-2019,000008885791607,SCREWFIX PETERLEE,5211,Direct materials,15.93,2.66,13.27
Regeneration and Local Services,Development and Housing,030544,Rural Employability - Client Engagement,Transport,235057,Public Transport,11-Oct-2019,000008885791635,ARRIVA NORTH EAST,4131,Staff travelling,14.50,0.00,14.50
Regeneration and Local Services,Corporate Property and Land,021242,Catering - County Hall,Supplies and Services,324117,Provisions E324,11-Oct-2019,000008885791653,HOPWELLS LTD,5811,Catering costs - provisions,284.44,0.00,284.44
Regeneration and Local Services,Corporate Property and Land,021242,Catering - County Hall,Supplies and Services,324117,Provisions E324,11-Oct-2019,000008885791657,HOPWELLS LTD,5811,Catering costs - provisions,186.58,0.00,186.58
Regeneration and Local Services,Corporate Property and Land,021242,Catering - County Hall,Supplies and Services,324117,Provisions E324,11-Oct-2019,000008885791663,HOPWELLS LTD,5811,Catering costs - provisions,318.48,0.00,318.48
Regeneration and Local Services,Culture Sport and Tourism,054812,Gala Theatre - Catering etc,Premises,145009,Cleaning and Domestic Supplies,11-Oct-2019,000008885791695,ALLIANCE DISPOSABLES L,2842,Other cleaning and domestic costs,384.60,64.10,320.50
Regeneration and Local Services,Culture Sport and Tourism,054812,Gala Theatre - Catering etc,Premises,145009,Cleaning and Domestic Supplies,11-Oct-2019,000008885791695 - 1,ALLIANCE DISPOSABLES L,2842,Other cleaning and domestic costs,0.06,,0.06
Children and Young Peoples Services,Head of Childrens Social Care,085511,Emergency Duty Team,Supplies and Services,352001,Conference Expenses,11-Oct-2019,000008885791763,HOTEL 52,7011,Conferencesseminars fees etc,56.99,0.00,56.99
Children and Young Peoples Services,Head of Childrens Social Care,085511,Emergency Duty Team,Supplies and Services,352001,Conference Expenses,11-Oct-2019,000008885791769,Hotel on Booking.com B,7011,Conferencesseminars fees etc,165.00,0.00,165.00
Children and Young Peoples Services,Head of Childrens Social Care,085511,Emergency Duty Team,Supplies and Services,324117,Provisions E324,11-Oct-2019,000008885791771,TESCO STORES 6334,5411,Catering costs - provisions,26.15,0.00,26.15
Regeneration and Local Services,Development and Housing,030773,CLLD North,Supplies and Services,324117,Provisions E324,11-Oct-2019,000008885791811,TESCO STORES 6329,5411,Catering costs - provisions,45.00,0.00,45.00
Regeneration and Local Services,Development and Housing,030773,CLLD North,Supplies and Services,324117,Provisions E324,11-Oct-2019,000008885791817,ASDA STORES,5411,Catering costs - provisions,10.00,0.00,10.00
Regeneration and Local Services,Development and Housing,030773,CLLD North,Transport,215995,Running Costs of Vehicles,11-Oct-2019,000008885791825,ASDA PETROL UPT 4587,5542,Vehicle running expenses,38.50,6.42,32.08
Children and Young Peoples Services,Head of Childrens Social Care,085341,High Etherley Satelite Home,Supplies and Services,324117,Provisions E324,11-Oct-2019,000008885791841,TESCO STORES 6329,5411,Catering costs - provisions,5.27,0.00,5.27
Regeneration and Local Services,Development and Housing,031576,B& B - Temp Accom,Supplies and Services,364320,Grants to Voluntary Organisations,11-Oct-2019,000008885791875,BANNATYNE.CO.UK,7011,Accommodation assistance,165.00,27.50,137.50
Children and Young Peoples Services,Head of Childrens Social Care,085334,West Rainton Satelite Home,Supplies and Services,324117,Provisions E324,11-Oct-2019,000008885791893,TESCO STORES 2371,5411,Catering costs - provisions,25.42,0.00,25.42
Children and Young Peoples Services,Head of Childrens Social Care,085334,West Rainton Satelite Home,Supplies and Services,328041,Clothing uniforms and laundry E328,11-Oct-2019,000008885791899,POUNDSTRETCHER 7,5331,Clothing uniforms and laundry,29.90,0.00,29.90
Children and Young Peoples Services,Head of Childrens Social Care,085334,West Rainton Satelite Home,Supplies and Services,324117,Provisions E324,11-Oct-2019,000008885791903,ALDI 12 774,5411,Catering costs - provisions,59.93,0.00,59.93
Regeneration and Local Services,Development and Housing,030771,Durham Advance Flexible Fund,Supplies and Services,304259,Equipment and Materials,11-Oct-2019,000008885792067,DISCLOSURE & BARRING,9399,Equipment-purchase and rental,13.00,0.00,13.00
Regeneration and Local Services,Development and Housing,030771,Durham Advance Flexible Fund,Supplies and Services,324117,Provisions E324,11-Oct-2019,000008885792073,TESCO STORES 2371,5411,Catering costs - provisions,4.25,0.00,4.25
Regeneration and Local Services,Development and Housing,030771,Durham Advance Flexible Fund,Transport,235057,Public Transport,11-Oct-2019,000008885792077,GO NORTH EAST LIMITED,4131,Staff travelling,10.60,0.00,10.60
Children and Young Peoples Services,Head of Early Help Inclusion & Vulnerable Children.,085965,Barnard,Supplies and Services,324117,Provisions E324,11-Oct-2019,000008885792109,TESCO STORES 6329,5411,Catering costs - provisions,117.95,0.00,117.95
Regeneration and Local Services,Culture Sport and Tourism,054813,Gala Theatre - Technical,Supplies and Services,328041,Clothing uniforms and laundry E328,11-Oct-2019,000008885792137,Wish.com,5331,Clothing uniforms and laundry,61.00,0.00,61.00
Regeneration and Local Services,Culture Sport and Tourism,054813,Gala Theatre - Technical,Supplies and Services,304259,Equipment and Materials,11-Oct-2019,000008885792145,Prime Video MO4V360Z4,5735,Equipment-purchase and rental,4.49,0.00,4.49
Regeneration and Local Services,Environmental Services,010367,C&G - South Grounds Maintenance,Supplies and Services,304221,Equipment and Materials,11-Oct-2019,000008885792195,BREWERS,5211,Direct materials,165.62,27.60,138.02
Regeneration and Local Services,Environmental Services,011060,C&G - Hardwick Park Catering,Supplies and Services,324117,Provisions E324,11-Oct-2019,000008885792275,HOPWELLS LTD,5811,Catering costs - provisions,57.43,0.00,57.43
Regeneration and Local Services,Corporate Property and Land,021234,Catering - Locomotion,Supplies and Services,324117,Provisions E324,11-Oct-2019,000008885792315,HOPWELLS LTD,5811,Catering costs - provisions,413.01,0.00,413.01
Regeneration and Local Services,Corporate Property and Land,021234,Catering - Locomotion,Premises,145009,Cleaning and Domestic Supplies,11-Oct-2019,000008885792323,ALLIANCE DISPOSABLES L,2842,Other cleaning and domestic costs,45.38,7.56,37.82
Regeneration and Local Services,Corporate Property and Land,021234,Catering - Locomotion,Premises,145009,Cleaning and Domestic Supplies,11-Oct-2019,000008885792327,ALLIANCE DISPOSABLES L,2842,Other cleaning and domestic costs,32.70,5.45,27.25
Regeneration and Local Services,Corporate Property and Land,021234,Catering - Locomotion,Premises,145009,Cleaning and Domestic Supplies,11-Oct-2019,000008885792327 - 1,ALLIANCE DISPOSABLES L,2842,Other cleaning and domestic costs,0.04,,0.04
Regeneration and Local Services,Corporate Property and Land,010525,Catering - Green Lane,Supplies and Services,324117,Provisions E324,11-Oct-2019,000008885792361,HOPWELLS LTD,5811,Catering costs - provisions,97.95,0.00,97.95
Regeneration and Local Services,Corporate Property and Land,010525,Catering - Green Lane,Supplies and Services,324117,Provisions E324,11-Oct-2019,000008885792369,HOPWELLS LTD,5811,Catering costs - provisions,72.61,0.00,72.61
Regeneration and Local Services,Development and Housing,030771,Durham Advance Flexible Fund,Supplies and Services,372009,Subscriptions E372,11-Oct-2019,000008885792375,VISTAPRINT,2741,Subscriptions 372009,34.77,5.80,28.97
Regeneration and Local Services,Development and Housing,030771,Durham Advance Flexible Fund,Supplies and Services,304259,Equipment and Materials,11-Oct-2019,000008885792381,WWW.DURHAM.GOV.UK,9399,Equipment-purchase and rental,71.00,0.00,71.00
Regeneration and Local Services,Development and Housing,030554,International Relations 030554,Transport,235057,Public Transport,11-Oct-2019,000008885792443,EUROSTAR INTERNET,4112,Staff travelling,138.00,0.00,138.00
Children and Young Peoples Services,Head of Early Help Inclusion & Vulnerable Children.,071443,Stanley One Point Hub,Supplies and Services,304403,Equipment and Materials,11-Oct-2019,000008885792457,AMZNMKTPLACE AMAZON.CO,5999,Other consumables,199.87,33.31,166.56
Children and Young Peoples Services,Head of Childrens Social Care,085333,Coxhoe Satelite Home,Supplies and Services,328041,Clothing uniforms and laundry E328,11-Oct-2019,000008885792549,FLOWERS BY MICHELL,5992,Clothing uniforms and laundry,30.00,0.00,30.00
Children and Young Peoples Services,Head of Childrens Social Care,085333,Coxhoe Satelite Home,Supplies and Services,324117,Provisions E324,11-Oct-2019,000008885792555,ASDA SUPERSTORE 4987,5411,Catering costs - provisions,189.98,0.00,189.98
Children and Young Peoples Services,Head of Childrens Social Care,085342,9 Cedar Drive Aycliffe,Supplies and Services,324117,Provisions E324,11-Oct-2019,000008885792609,TESCO STORES 2916,5411,Catering costs - provisions,17.55,0.00,17.55
Children and Young Peoples Services,Head of Childrens Social Care,085352,Tow Law CU,Supplies and Services,324117,Provisions E324,11-Oct-2019,000008885792631,ASDA STORES,5411,Catering costs - provisions,144.24,0.00,144.24
Children and Young Peoples Services,Head of Childrens Social Care,085352,Tow Law CU,Supplies and Services,324117,Provisions E324,11-Oct-2019,000008885792637,ASDA STORES,5411,Catering costs - provisions,20.00,0.00,20.00
Regeneration and Local Services,Corporate Property and Land,030691,Catering - Durham Dales Centre,Supplies and Services,324117,Provisions E324,11-Oct-2019,000008885792653,HOPWELLS LTD,5811,Catering costs - provisions,63.62,0.00,63.62
Regeneration and Local Services,Corporate Property and Land,030691,Catering - Durham Dales Centre,Supplies and Services,324117,Provisions E324,11-Oct-2019,000008885792659,HOPWELLS LTD,5811,Catering costs - provisions,83.03,0.00,83.03
Regeneration and Local Services,Corporate Property and Land,030691,Catering - Durham Dales Centre,Premises,145009,Cleaning and Domestic Supplies,11-Oct-2019,000008885792665,ALLIANCE DISPOSABLES L,2842,Other cleaning and domestic costs,32.94,5.49,27.45
Regeneration and Local Services,Corporate Property and Land,030691,Catering - Durham Dales Centre,Premises,145009,Cleaning and Domestic Supplies,11-Oct-2019,000008885792665 - 1,ALLIANCE DISPOSABLES L,2842,Other cleaning and domestic costs,25.40,,25.40
Adult and Health Services,Head of Adults,055643,Hawthorn House LD Respite Unit,Supplies and Services,324117,Provisions E324,11-Oct-2019,000008885792739,HOPWELLS LTD,5811,Catering costs - provisions,1.50,0.25,1.25
Adult and Health Services,Head of Adults,055643,Hawthorn House LD Respite Unit,Supplies and Services,324117,Provisions E324,11-Oct-2019,000008885792739 - 1,HOPWELLS LTD,5811,Catering costs - provisions,55.53,,55.53
Regeneration and Local Services,Culture Sport and Tourism,011263,Louisa Centre 011263,Supplies and Services,328041,Clothing uniforms and laundry E328,11-Oct-2019,000008885792747,ARGOS LTD,5310,Clothing uniforms and laundry,29.99,0.00,29.99
Children and Young Peoples Services,Head of Early Help Inclusion & Vulnerable Children.,088100,Durham West & CLS 0-19 Targeted Family Support,Supplies and Services,328041,Clothing uniforms and laundry E328,11-Oct-2019,000008885792763,ASDA GEORGE COM LEEDS,5411,Clothing uniforms and laundry,-5.00,0.00,-5.00
Regeneration and Local Services,Development and Housing,030771,Durham Advance Flexible Fund,Transport,235057,Public Transport,11-Oct-2019,000008885792781,GO NORTH EAST LIMITED,4131,Staff travelling,5.30,0.00,5.30
Transformation and Partnerships,Business Support,052986,CYPS - Locality and Operational Support,Supplies and Services,304259,Equipment and Materials,11-Oct-2019,000008885792807,GEN REGISTER OFFICE,9399,Equipment-purchase and rental,18.00,0.00,18.00
Transformation and Partnerships,Business Support,052986,CYPS - Locality and Operational Support,Supplies and Services,304259,Equipment and Materials,11-Oct-2019,000008885792813,Durham County CNCL,9399,Equipment-purchase and rental,11.00,0.00,11.00
Regeneration and Local Services,Corporate Property and Land,021324,Catering - Meadowfield,Supplies and Services,324117,Provisions E324,11-Oct-2019,000008885792825,HOPWELLS LTD,5811,Catering costs - provisions,66.98,0.00,66.98
Children and Young Peoples Services,Head of Early Help Inclusion & Vulnerable Children.,085801,CDYJS - Support,Supplies and Services,304259,Equipment and Materials,11-Oct-2019,000008885792857,JD SPORTS INTERNET,5941,Equipment-purchase and rental,43.99,0.00,43.99
Children and Young Peoples Services,Head of Education and Skills,071802,Louisa Cent Nursery,Supplies and Services,324117,Provisions E324,11-Oct-2019,000008885792911,ASDA SUPERSTORE,5411,Catering costs - provisions,142.99,0.00,142.99
Resources BK0010,Corporate Finance & Commercial Services,069800,Corporate Procurement 069800,Employees,040149,Recruitment Instruction and Training,11-Oct-2019,000008885792969,WWW.CIPS.ORG,8699,Training-all costs,60.00,0.00,60.00
Resources BK0010,People & Talent Management,010984,Training and Development,Employees,040149,Recruitment Instruction and Training,11-Oct-2019,000008885792987,NCS VUE WAMITAB TEST,8299,Training-all costs,139.00,0.00,139.00
Children and Young Peoples Services,Head of Childrens Social Care,085332,Middlestone Moor CU,Transport,235057,Public Transport,11-Oct-2019,000008885793009,NATIONAL EXPRESS LIMIT,4131,Staff travelling,104.80,0.00,104.80
Transformation and Partnerships,Business Support,069010,Administration 069010,Supplies and Services,332047,Printing Stationery and Gen Off Exps,11-Oct-2019,000008885793095,WWW.UKPACKAGING.COM,5111,Stationery,39.84,0.00,39.84
Adult and Health Services,Head of Adults,055310,Positive Journeys (Tudhoe),Supplies and Services,324117,Provisions E324,11-Oct-2019,000008885793101,ASDA SUPERSTORE 4987,5411,Catering costs - provisions,1.48,0.00,1.48
Regeneration and Local Services,Corporate Property and Land,021235,Catering - Wharton Park,Supplies and Services,324117,Provisions E324,11-Oct-2019,000008885793123,HOPWELLS LTD,5811,Catering costs - provisions,80.94,0.00,80.94
Children and Young Peoples Services,Head of Childrens Social Care,085334,West Rainton Satelite Home,Supplies and Services,304999,Equipment and Materials,11-Oct-2019,000008885793149,www.groupon.co.uk,7278,Misc equipment tools and materials,44.71,0.00,44.71
Children and Young Peoples Services,Head of Childrens Social Care,085332,Middlestone Moor CU,Supplies and Services,348037,Subsistence E348,11-Oct-2019,000008885793195,BUFFET KING,5812,Subsistence,30.90,0.00,30.90
Regeneration and Local Services,Development and Housing,030771,Durham Advance Flexible Fund,Supplies and Services,324117,Provisions E324,11-Oct-2019,000008885793205,PPOINT_ FAMILY SHOPPER,5411,Catering costs - provisions,100.00,0.00,100.00
Transformation and Partnerships,Partnerships & Community Engagement Div.,060472,Syrian Vulnerable Persons Scheme,Supplies and Services,308011,Furniture,11-Oct-2019,000008885793215,SP TERRYS FABRICS,5691,Furniture repair and replacement,471.82,78.64,393.18
Transformation and Partnerships,Partnerships & Community Engagement Div.,060472,Syrian Vulnerable Persons Scheme,Supplies and Services,308011,Furniture,11-Oct-2019,000008885793221,SP TERRYS FABRICS,5691,Furniture repair and replacement,430.83,71.81,359.02
Transformation and Partnerships,Partnerships & Community Engagement Div.,060472,Syrian Vulnerable Persons Scheme,Supplies and Services,308011,Furniture,11-Oct-2019,000008885793225,WILKO.COM,5399,Furniture repair and replacement,498.00,83.00,415.00
Transformation and Partnerships,Partnerships & Community Engagement Div.,060472,Syrian Vulnerable Persons Scheme,Supplies and Services,308011,Furniture,11-Oct-2019,000008885793231,WILKO.COM,5399,Furniture repair and replacement,207.00,34.50,172.50
Transformation and Partnerships,Partnerships & Community Engagement Div.,060472,Syrian Vulnerable Persons Scheme,Supplies and Services,308011,Furniture,11-Oct-2019,000008885793235,ASDA GEORGE COM LEEDS,5411,Furniture repair and replacement,615.40,102.57,512.83
Transformation and Partnerships,Partnerships & Community Engagement Div.,060472,Syrian Vulnerable Persons Scheme,Supplies and Services,308011,Furniture,11-Oct-2019,000008885793239,DUNELM ONLINE ORDER,5714,Furniture repair and replacement,660.00,110.00,550.00
Transformation and Partnerships,Partnerships & Community Engagement Div.,060472,Syrian Vulnerable Persons Scheme,Supplies and Services,308011,Furniture,11-Oct-2019,000008885793245,B&Q DIRECT,5200,Furniture repair and replacement,107.00,17.83,89.17
Children and Young Peoples Services,Head of Early Help Inclusion & Vulnerable Children.,085810,CDYJS - Interventions Team,Supplies and Services,304999,Equipment and Materials,11-Oct-2019,000008885793299,HOME BARGAINS,5251,Misc equipment tools and materials,4.98,0.83,4.15
Children and Young Peoples Services,Head of Early Help Inclusion & Vulnerable Children.,085810,CDYJS - Interventions Team,Supplies and Services,304999,Equipment and Materials,11-Oct-2019,000008885793299 - 1,HOME BARGAINS,5251,Misc equipment tools and materials,4.86,,4.86
Children and Young Peoples Services,Head of Education and Skills,070264,EDC Premises,Supplies and Services,324117,Provisions E324,11-Oct-2019,000008893720911,BATLEYS PERTH,5300,Catering costs - provisions,53.15,0.00,53.15
Regeneration and Local Services,Environmental Services,011060,C&G - Hardwick Park Catering,Supplies and Services,324117,Provisions E324,11-Oct-2019,000008893721569,BATLEYS PERTH,5300,Catering costs - provisions,104.28,17.38,86.90
Regeneration and Local Services,Environmental Services,011060,C&G - Hardwick Park Catering,Supplies and Services,324117,Provisions E324,11-Oct-2019,000008893721569 - 1,BATLEYS PERTH,5300,Catering costs - provisions,146.32,,146.32
Regeneration and Local Services,Corporate Property and Land,021234,Catering - Locomotion,Supplies and Services,324117,Provisions E324,11-Oct-2019,000008893721625,BATLEYS PERTH,5300,Catering costs - provisions,75.84,12.64,63.20
Regeneration and Local Services,Corporate Property and Land,021234,Catering - Locomotion,Supplies and Services,324117,Provisions E324,11-Oct-2019,000008893721625 - 1,BATLEYS PERTH,5300,Catering costs - provisions,41.71,,41.71
Regeneration and Local Services,Corporate Property and Land,010525,Catering - Green Lane,Supplies and Services,324117,Provisions E324,11-Oct-2019,000008893721673,BATLEYS PERTH,5300,Catering costs - provisions,174.36,29.06,145.30
Regeneration and Local Services,Corporate Property and Land,010525,Catering - Green Lane,Supplies and Services,324117,Provisions E324,11-Oct-2019,000008893721673 - 1,BATLEYS PERTH,5300,Catering costs - provisions,56.84,,56.84
Adult and Health Services,Head of Adults,055643,Hawthorn House LD Respite Unit,Supplies and Services,324117,Provisions E324,11-Oct-2019,000008893721973,BATLEYS PERTH,5300,Catering costs - provisions,102.18,0.00,102.18
Regeneration and Local Services,Development and Housing,031576,B& B - Temp Accom,Supplies and Services,352001,Conference Expenses,12-Oct-2019,000008885791881,BANNATYNE.CO.UK,7011,Conferencesseminars fees etc,110.00,0.00,110.00
Children and Young Peoples Services,Head of Childrens Social Care,085352,Tow Law CU,Supplies and Services,324117,Provisions E324,12-Oct-2019,000008885791923,BARRYS BARGAIN STORE,5499,Catering costs - provisions,6.00,0.00,6.00
Children and Young Peoples Services,Head of Childrens Social Care,085352,Tow Law CU,Supplies and Services,324117,Provisions E324,12-Oct-2019,000008885791929,WM MORRISONS STORE,5411,Catering costs - provisions,3.25,0.00,3.25
Children and Young Peoples Services,Head of Childrens Social Care,085352,Tow Law CU,Transport,215995,Running Costs of Vehicles,12-Oct-2019,000008885791931,THE KAY GROUP,5541,Vehicle running expenses,6.03,0.00,6.03
Children and Young Peoples Services,Head of Childrens Social Care,085352,Tow Law CU,Supplies and Services,348037,Subsistence E348,12-Oct-2019,000008885791935,GREGGS PLC,5812,Subsistence,6.90,0.00,6.90
